Workbook

Sheet TD_ListaInd (hidden)
A3: Concatenador | B3: (Todas)
A5: Suma de Valor | F5: Año
A6: Etiquetas de fila | B6: Indicador | C6: Subindicador | D6: Unidad | E6: Fuente web | F6: 2014 | G6: 2015 | H6: 2016 | I6: 2017 | J6: 2018 | K6: 2019 | L6: 2020 | M6: 2021 | N6: 2022 | O6: 2023 | P6: (en blanco) | Q6: 2011 | R6: 2012 | S6: 2013 | T6: 2010
A7: I. LINEAMIENTO DE POLITICA Mejorar la Gestión Ambiental. | B7: Acciones implementadas para proteger los derechos de los pueblos indígenas en situación de aislamiento y contacto inicial (PIACI) | C7: Proteccion aprobado | D7: Plan | E7: Organismo de Evaluación y Fiscalización Ambiental (OEFA)-Entidades de Fiscalización Ambiental (EFA) | F7: 0 | Q7: 1 | R7: 0 | S7: 0
B8: Agenda Ambiente 2017-2018 aprobada e implementada | C8: Nacional | D8: Sin datos | E8: Resolución Ministerial aprobada. Responsable: Ministerio del Ambiente ( MINAM )
B9: Estudios de Impacto Ambiental detallados aprobados y desaprobados por el SENACE | C9: EIA | D9: EIA | E9: Ministerio de Cultura( MINCUL ) - DEFENSORIA DEL PUEBLO
B10: Incremento en el presupuesto del SENACE | C10: Porcentaje | D10: Porcentaje | E10: DEFENSORIA DEL PUEBLO - Reporte Mensual de Conflictos Sociales N.° 170 – Abril 2018 | F10: 0 | H10: 53.8 | I10: 20.9 | J10: 3.7 | K10: 3.8 | L10: 3.8 | M10: 4.1 | Q10: 2.8 | R10: 0 | S10: 0
B11: Marco normativo para el Ordenamiento Territorial aprobado, actualizado e implementado por todos los niveles de gobierno en forma coordinada. | C11: Ley de Ordenamiento Territorial en discusion en Congreso | D11: Sin datos | E11: Ministerio del Ambiente ( MINAM ) y Gobierno Regional (GORE)
B12: Monto del Presupuesto público ejecutado en la función ambiental (instancias, planes, programas y proyectos de gestión ambiental en los tres niveles de gobierno) - Millones de Soles | C12: Gasto Corriente | D12: Gasto | E12: Ministerio del Ambiente ( MINAM )/ Dirección General de Políticas, Normas e Instrumentos de Gestión Ambiental | F12: 2670 | H12: 2356.2 | I12: 2565.5 | J12: 2695.2 | K12: 2654.6 | L12: 2841.2 | M12: 3040.1 | Q12: 2119 | R12: 2356 | S12: 2465
C13: Gasto de Inversion | D13: Gasto | E13: Instituto Nacional de Estadística e Informática (INEI) - Registro Nacional de Municipalidades (RENAMU) | F13: 659 | H13: 427.3 | I13: 458 | J13: 658.9 | K13: 627.2 | L13: 577.3 | M13: 618.2 | Q13: 424 | R13: 427 | S13: 458
B14: Norma que regula la aplicación de la Evaluación Ambiental Estratégica (EAE) | C14: Directivas | D14: Directivas | E14: Ministerio del Ambiente ( MINAM )- Gobiernos Regionales - Gobiernos Locales
B15: Número de acciones de vigilancia y control para garantizar el uso sostenible de los recursos naturales bajo su jurisdicción | C15: actividades multiples | D15: Actividades multiples | E15: Ministro de Energía y Minas (MEM) - Ministerio del Ambiente ( MINAM ) - Presidencia del Consejo de Ministros (PCM) Comisionado Alto Nivel de Minería Informal | F15: 0 | Q15: 3 | R15: 0 | S15: 0
C16: electricas | D16: electricas | E16: Ministro de Energía y Minas (MEM) - Ministerio del Ambiente ( MINAM ) - Presidencia del Consejo de Ministros (PCM) Comisionado Alto Nivel de Minería Informal | F16: 0 | Q16: 1 | R16: 0 | S16: 0
C17: Hidrocarburos | D17: Hidrocarburos | E17: Ministro de Energía y Minas (MEM) - Ministerio del Ambiente ( MINAM ) - Presidencia del Consejo de Ministros (PCM) Comisionado Alto Nivel de Minería Informal | F17: 0 | Q17: 3 | R17: 0 | S17: 0
C18: Mineria | D18: Mineria | E18: Ministerio del Ambiente ( MINAM ) - Gobiernos Regionales - Gobiernos Locales | F18: 0 | Q18: 4 | R18: 0 | S18: 0
C19: pesca | D19: pesca | E19: Ministro de Energía y Minas (MEM) - Ministerio del Ambiente ( MINAM ) - Presidencia del Consejo de Ministros (PCM) Comisionado Alto Nivel de Minería Informal | F19: 0 | Q19: 4 | R19: 0 | S19: 0
B20: Número de autoridades y funcionarios capacitados en temas de fiscalización ambiental | C20: Nacional | D20: Sin datos | E20: SIAAMAZONIA, Ministerio del Ambiente ( MINAM ), Sistema Nacional de Información Ambiental ( SINIA ), SERNAP
B21: Número de Certificaciones Ambientales Globales a cargo del SENACE | C21: Certificaciones | D21: Certificaciones | E21: Ministerio de Cultura( MINCUL )
B22: Número de conflictos mensuales, según su situación: activos y latentes | C22: Activos | D22: Conflictos | E22: Dirección de Conservación y Planeamiento de los Recursos Hídricos - DCPRH-Autoridad Nacional del Agua ( ANA ) | F22: 144 | H22: 156 | I22: 118 | J22: 130 | K22: 133 | L22: 146 | M22: 148 | Q22: 143 | R22: 156 | S22: 118
C23: Conflictos sociales reportados | D23: Conflictos | E23: Dirección de Conservación y Planeamiento de los Recursos Hídricos - DCPRH-Autoridad Nacional del Agua ( ANA ) | F23: 196 | H23: 212 | I23: 171 | J23: 181 | K23: 184 | L23: 197 | M23: 202 | Q23: 211 | R23: 212 | S23: 171
C24: Latentes | D24: Conflictos | E24: Autoridad Nacional del Agua ( ANA ) | F24: 52 | H24: 56 | I24: 53 | J24: 51 | K24: 51 | L24: 51 | M24: 54 | Q24: 68 | R24: 56 | S24: 53
B25: Número de conflictos y costos económicos y sociales | C25: Nacional | D25: Sin datos | E25: Dirección de Conservación y Planeamiento de los Recursos Hídricos - DCPRH-Autoridad Nacional del Agua ( ANA )
B26: Número de Convenios del MINAM con Universidades para investigación y formación en temas ambientales. | C26: Convenios con universidades Publicas y privadas | D26: Convenios | E26: Ministerio del Ambiente ( MINAM ) - Gobierno Regional (GORE) - Ministerio de Educación (MINEDU) | F26: 0 | Q26: 10 | R26: 0 | S26: 0
B27: Número de Convenios del MINEDU con Universidades para la investigación, formación y gestión del conocimiento en temáticas ambientales | C27: Nacional | D27: Sin datos | E27: Instituto Nacional de Estadística e Informática (INEI) - Registro Nacional de Municipalidades (RENAMU)
B28: Numero de entidades nacionales que reportan medidas de ecoeficiencia | C28: Nacional | D28: Sin datos | E28: Dirección de Administración de Recursos Hídricos (DARH)-Autoridad Nacional del Agua ( ANA )
B29: Número de estudios realizados para mejorar el conocimiento y las tecnologías para el uso sostenible de la biodiversidad, valorizando el conocimiento tradicional (investigaciones, estudios de mercado, usos) | C29: Nacional | D29: Sin datos | E29: Ministerio del Ambiente ( MINAM ) y sectores
B30: Número de Gobiernos Regionales que cuentan con instrumentos de Gestión Ambiental aprobados y en implementación | C30: Nacional | D30: Sin datos | E30: Ministerio del Ambiente ( MINAM )
B31: Numero de gobiernos regionales que reportan medidas de ecoeficiencia, incluyendo sus distintas gerencias y direcciones | C31: Nacional | D31: Sin datos | E31: Dirección de Gestión de Calidad de los Recursos Hídricos - DGCRH-Autoridad Nacional del Agua ( ANA )
B32: Número de gobiernos regionales y locales que cuentan con agenda de investigación ambiental | C32: Gobiernos Regionales | D32: Gobiernos | E32: Consejo Nacional de Ciencia , Tecnologia , e Innovacion de Tecnologia ( CONCYTEC) - Instituto de Investigaciones de la Amazonía Peruana – IIAP -Sistema Nacional de Información Ambiental ( SINIA )-Ministerio del Ambiente ( MINAM ) | F32: 0 | Q32: 3 | R32: 0 | S32: 0
B33: Número de Gobiernos regionales y locales que reciben asesoría técnica en la concordancia entre SEIA - SNIP | C33: Funcionarios | D33: Funcionarios | E33: Informe de gestión anual ONDS 2015 - Oficina Nacional de Diálogo ONDS | F33: 0 | Q33: 147 | R33: 0 | S33: 0
B34: Número de gobiernos regionales y municipalidades provinciales que cuentan con un Sistema de Información Ambiental, integrado con el SINIA | C34: Gobiernos regionales cuentan con SIAL | D34: Gobiernos | E34: Ministerio del Ambiente ( MINAM ) | F34: 0 | Q34: 65 | R34: 0 | S34: 0
C35: Gobiernos regionales cuentan con SIAR | D35: Gobiernos | E35: Congreso de la República | F35: 0 | Q35: 25 | R35: 0 | S35: 0
B36: Número de GR y GL que cuentan con procesos de Ordenamiento Territorial culminados y en ejecución | C36: GL provinciales | D36: Porcentaje | E36: Ministerio del Ambiente ( MINAM ) | F36: 0 | Q36: 20 | R36: 0 | S36: 0
C37: GR avanzando | D37: Gobiernos Regionales | E37: SENACE | F37: 0 | Q37: 7 | R37: 0 | S37: 0
C38: GR cuentan con ZEE aprobados | D38: Gobiernos Regionales | E38: Ministerio del Ambiente ( MINAM ) - Servicio Nacional de Certificacion Ambiental para las Inversiones Sostenibles ( SENACE ) | F38: 0 | Q38: 14 | R38: 0 | S38: 0
B39: Numero de IGAC en proceso de implementación | C39: IGAC | D39: IGAC aprobados | E39: Dirección de Gestión de Calidad de los Recursos Hídricos - DGCRH-Autoridad Nacional del Agua ( ANA ) | F39: 0 | Q39: 110 | R39: 0 | S39: 0
B40: Número de Informes de Evaluación Ambiental Integrada por año | C40: Informes de evaluacion ambiental | D40: Sin datos | E40: Ministerio de Economía y Finanzas (MEF) - CONCYTEC
B41: Número de instancias de coordinación intersectorial, intergubernamental funcionando | C41: Nacional | D41: Sin datos | E41: Ministerio del Ambiente ( MINAM )
B42: Número de instrumentos de compensación ambiental implementados | C42: Nacional | D42: Sin datos | E42: DEFENSORIA DEL PUEBLO - Reporte Mensual de Conflictos Sociales N.° 170 – Abril 2018
B43: Número de instrumentos de gestión ambiental que incorporan indicadores de género e interculturalidad. | C43: Número de instrumentos | D43: Número de instrumentos | E43: Ministerio del Ambiente ( MINAM )
B44: Numero de mineros artesanales formalizados a nivel regional y nacional | C44: Nacional | D44: Sin datos | E44: OSNIRH-Autoridad Nacional del Agua ( ANA )
B45: Numero de municipalidades que reportan medidas de ecoeficiencia, incluyendo sus distintas gerencias y direcciones | C45: Nacional | D45: Sin datos | E45: Dirección de Administración de Recursos Hídricos (DARH)-Autoridad Nacional del Agua ( ANA )
B46: Número de normas que regulan el procedimiento de evaluación de impacto ambiental a cargo de los Gobiernos Regionales | C46: Normas | D46: Normas | E46: Ministerio del Ambiente ( MINAM ) - Ministerio de Agricultura y Riego ( MINAGRI) - Gobierno Regional (GORE)
B47: Número de Organizaciones comunales, indígenas, de jóvenes y de la sociedad civil que participan en mecanismos de monitoreo, vigilancia ambiental | C47: Programas de monitoreo ambiental funcionando | D47: Programas | E47: Ministerio del Ambiente ( MINAM )/ Dirección General de Diversidad Biológica | F47: 0 | Q47: 3 | R47: 0 | S47: 0
B48: Número de procesos de consulta previa culminados con participación del sector ambiente | C48: Procesos de consulta previa realizados | D48: Procesos | E48: Ministerio del Ambiente ( MINAM )/ Dirección General de Diversidad Biológica | F48: 0 | Q48: 25 | R48: 0 | S48: 0
B49: Número de procesos de EAE con asesoría de MINAM (políticas, programas y proyectos) | C49: EAE | D49: EAE | E49: DEFENSORIA DEL PUEBLO - Reporte Mensual de Conflictos Sociales N.° 170 – Abril 2018 | F49: 0 | Q49: 3 | R49: 0 | S49: 0
B50: Número de pueblos indigenas que han completado la titulación de sus tierras sin trabas y barreras burocráticas | C50: Comunidades Nativas | D50: Comunidades | E50: Ministerio del Ambiente ( MINAM ) | F50: 0 | Q50: 165 | R50: 0 | S50: 0
B51: Número de pueblos indígenas y personas de estos pueblos que reciben beneficos directos por actividades extractivas | C51: Nacional | D51: Sin datos | E51: Ministerio del Ambiente ( MINAM )
B52: Número de reglamentos de protección ambiental a nivel sectorial aprobados | C52: Subsectores | D52: Subsectores | E52: Instituto Nacional de Estadística e Informática (INEI) - Ministerio de Agricultura y Riego ( MINAGRI) - Gobierno Regional (GORE) | F52: 0 | Q52: 5 | R52: 0 | S52: 0
B53: Número de Sanciones ejecutadas por OEFA anualmente | C53: Nacional | D53: Sin datos | E53: Ministerio del Ambiente ( MINAM )
B54: Número de sanciones por el incumplimiento de las obligaciones ambientales fiscalizables | C54: Regionales | D54: Regionales | E54: Ministerio del Ambiente ( MINAM ) - Gobiernos Regionales - Gobiernos Locales | F54: 0 | Q54: 9 | R54: 0 | S54: 0
B55: Número de supervisiones que realice OEFA a las EFA a fin de verificar el cumplimiento de las obligaciones ambientales | C55: Nacional | D55: Sin datos | E55: Ministerio del Ambiente ( MINAM )
B56: Observatorio de Conflictos Sociales de la Defensoría del Pueblo funcionando y reportando procesos de conflictos | C56: Conflictos por Actividad Hidrocarburíferas | D56: Número de conflictos. | E56: Defensoría del Pueblo | F56: 15 | Q56: 23 | R56: 23 | S56: 17 | T56: 17
C57: Conflictos por Actividad Minera | D57: Número de conflictos. | E57: Defensoría del Pueblo | F57: 73 | Q57: 91 | R57: 95 | S57: 78 | T57: 78
C58: Conflictos por Actividades Energéticas | D58: Número de conflictos. | E58: Defensoría del Pueblo | F58: 7 | Q58: 11 | R58: 12 | S58: 8 | T58: 9
C59: Conflictos Socioambientales | D59: Número de conflictos. | E59: Defensoría del Pueblo | F59: 113 | Q59: 145 | R59: 146 | S59: 120 | T59: 116
C60: Energia | D60: Porcentaje | E60: Autoridad Nacional del Agua ( ANA ) | F60: 7.9 | Q60: 7.6 | R60: 8.2 | S60: 6.7
C61: Hidrocarburos | D61: Porcentaje | E61: Dirección de Conservación y Planeamiento de los Recursos Hídricos - DCPRH-Autoridad Nacional del Agua ( ANA ) | F61: 13.4 | Q61: 15.9 | R61: 15.8 | S61: 14.2
C62: Minera | D62: Porcentaje | E62: Dirección de Conservación y Planeamiento de los Recursos Hídricos - DCPRH-Autoridad Nacional del Agua ( ANA ) | F62: 65.4 | Q62: 62.8 | R62: 65.1 | S62: 65
C63: Nacional | D63: Porcentaje | E63: Dirección de Conservación y Planeamiento de los Recursos Hídricos - DCPRH-Autoridad Nacional del Agua ( ANA ) | F63: 64.8 | Q63: 68.7 | R63: 68.9 | S63: 71
B64: Plan Nacional de Acción Ambiental 2016-2021 actualizado e implementado | C64: Nacional | D64: Sin datos | E64: Decreto Supremo aprobado. Responsable: Ministerio del Ambiente ( MINAM )
B65: Plan Nacional de Educación Ambiental 2016-2021 (PLANEA) aprobado e implementado | C65: Nacional | D65: Sin datos | E65: Decreto Supremo aprobado. Responsable: MINEDU y MINAM
B66: Porcentaje de Municipalidades cuentan con instrumentos de gestión ambiental aprobados y en implementación | C66: Agenda ambiental-Municipios distritales | D66: Porcentaje | E66: Organismo de Evaluación y Fiscalización Ambiental (OEFA)- OSINFOR | F66: 21.4 | H66: 19 | I66: 18 | J66: 20 | K66: 10 | L66: 12 | Q66: 14 | R66: 19 | S66: 18
C67: Diagnostico ambiental-Municipios distritales | D67: Porcentaje | E67: Ministerio del Ambiente ( MINAM ) | F67: 41.4 | H67: 31 | I67: 32 | J67: 34 | K67: 14 | L67: 16 | Q67: 22 | R67: 33 | S67: 31
C68: Evaluaciones ambientales | D68: Porcentaje | E68: Organismo de Evaluación y Fiscalización Ambiental (OEFA)- OSINFOR | F68: 0 | H68: 18 | I68: 58 | J68: 20 | K68: 64 | L68: 94 | Q68: 10 | R68: 12 | S68: 18
C69: Fiscalizaciones ambientales | D69: Fiscalizaciones | E69: MINCUL - MINAM | F69: 0 | H69: 32 | I69: 58 | J69: 35 | K69: 64 | L69: 94 | Q69: 13 | R69: 27 | S69: 32
C70: Municipalidades que tienen instrumentos de gestion ambiental | D70: Porcentaje | E70: Ministerio de Economía y Finanzas (MEF) -Ministerio del Ambiente ( MINAM ) - Servicio Nacional de Certificacion Ambiental para las Inversiones Sostenibles ( SENACE ) | F70: 0 | H70: 61 | I70: 70 | J70: 75 | K70: 72 | L70: 83 | M70: 85 | Q70: 46 | R70: 59 | S70: 61
C71: Plan de accion ambiental | D71: Porcentaje | E71: Ministerio del Ambiente ( MINAM ) | F71: 0 | H71: 30 | I71: 28 | J71: 31 | K71: 14 | L71: 17 | Q71: 17 | R71: 24 | S71: 30
C72: Plan de calidad de aire | D72: Porcentaje | E72: Organismo de Evaluación y Fiscalización Ambiental (OEFA)-Entidades de Fiscalización Ambiental (EFA) | F72: 0 | H72: 3 | Q72: 3 | R72: 3 | S72: 3
C73: Politica ambiental | D73: Porcentaje | E73: Organismo de Evaluación y Fiscalización Ambiental (OEFA)- OSINFOR
C74: Sistema de gestion ambiental | D74: Porcentaje | E74: Organismo de Evaluación y Fiscalización Ambiental (OEFA)- OSINFOR | F74: 0 | H74: 18 | J74: 20 | Q74: 11 | R74: 18 | S74: 18
C75: ZEE | D75: Porcentaje | E75: Organismo de Evaluación y Fiscalización Ambiental (OEFA)- OSINFOR | F75: 0 | H75: 6 | I75: 6 | Q75: 5 | R75: 7 | S75: 6
B76: Porcentaje de Municipalidades que implementan acciones para la gestión ambiental a nivel distrital y provincial | C76: Municipalidades ejecutaron proyectos ambientales ( Porcentaje) | D76: Porcentaje | E76: Ministerio del Ambiente ( MINAM )-Sistema Nacional de Información Ambiental ( SINIA ) | F76: 0 | H76: 20 | I76: 14 | J76: 10 | Q76: 22 | R76: 18 | S76: 20
C77: Municipalidades formularon proyectos de atención(Porcentaje) | D77: Porcentaje | E77: Ministerio del Ambiente ( MINAM )-Sistema Nacional de Información Ambiental ( SINIA ) | F77: 0 | H77: 15 | I77: 12 | J77: 7 | Q77: 4 | R77: 15 | S77: 15
B78: Porcentaje de Presupuesto nacional, regional y local ejecutado para la implementación de estudios, investigaciones, centros de información y comunicación para la gestión ambiental | C78: Norma Técnica para la aprobación del enfoque ambiental en la educación básica | D78: Sin datos | E78: MINEDU | F78: 0 | H78: 20.3 | I78: 18.2 | J78: 18.5 | K78: 16.7 | L78: 13.2 | M78: 16.4 | Q78: 0 | R78: 0 | S78: 0
B79: Presupuesto ejecutado en la función ambiental en relación al total del presupuesto nacional - Millones de Soles | C79: Gasto publico | D79: Millones de soles | E79: Informe anual de Ministerio del Ambiente ( MINAM ) de la Ley 28983 Igualdad de Oportunidades entre Mujeres y Hombres | F79: 3328.1 | H79: 2783.5 | I79: 2923.5 | J79: 3328.1 | K79: 3287.9 | L79: 3418.4 | M79: 3658252551 | Q79: 0 | R79: 2783.5 | S79: 2923.5
C80: Porcentaje respecto al total de presupuesto | D80: Porcentaje | E80: Ministerio de Educación (MINEDU) | F80: 2.1 | H80: 2.03 | I80: 1.94 | J80: 2.07 | K80: 2.02 | L80: 1.87 | M80: 1.84 | Q80: 0 | R80: 2 | S80: 1.9
B81: Pueblos indigenas participando en iniciativas de gestión de recursos naturales | C81: Nacional | D81: Sin datos | E81: Ministerio del Ambiente ( MINAM )
B82: Sistema nacional de diálogo y gestión de conflictos funcionando en forma coordinada y descentralizada | C82: Nacional | D82: Sin datos | E82: Ministerio del Ambiente ( MINAM )
B83: Número de instancias participativas funcionando | C83: Comisiones Ambientales Municipales | D83: Comisiones Ambientales | E83: Sin datos | F83: 0 | Q83: 382 | R83: 0 | S83: 0
C84: Comisiones Ambientales Regionales | D84: Comisiones Ambientales Regionales | E84: Ministerio de Economía y Finanzas - MEF / SIAF Consulta Amigable Enero 2019 | F84: 0 | Q84: 24 | R84: 0 | S84: 0
C85: Comisiones Nacionales Instaladas | D85: Comisiones Nacionales | E85: Ministerio del Ambiente ( MINAM ) | F85: 0 | Q85: 4 | R85: 0 | S85: 0
A86: II. LINEAMIENTO DE POLITICA Fomentar el uso y aprovechamiento sostenible de los Recursos Naturales. | B86: % del ámbito marítimo que se encuentra bajo alguna modalidad de gestión efectiva de la biodiversidad | C86: Ambito marino | D86: Porcentaje | E86: Dirección de Gestión de Conocimiento y Coordinación Interinstitucional - DGCCI-Autoridad Nacional del Agua ( ANA )
B87: % del ámbito terrestre que se encuentra bajo alguna modalidad de gestión efectiva de la biodiversidad | C87: Porcentaje del ambito | D87: Porcentaje | E87: Dirección de Gestión de Conocimiento y Coordinación Interinstitucional - DGCCI-Autoridad Nacional del Agua ( ANA ) | F87: 0 | Q87: 12 | R87: 0 | S87: 0
B88: Creación y funcionamiento de Consejos de Recursos hídricos en cuencas con participación de sociedad civil | C88: Consejos de Recursos Hídricos en cuencas Instalados | D88: Consejos | E88: Dirección de Conservación y Planeamiento de los Recursos Hídricos - DCPRH-Autoridad Nacional del Agua ( ANA ) | F88: 0 | Q88: 6 | R88: 0 | S88: 0
B89: Diagnóstico nacional del estado de la biodiversidad del pais, actualizado y difundido anualmente | C89: Nacional | D89: Sin datos | E89: Dirección de Gestión de Calidad de los Recursos Hídricos - DGCRH-Autoridad Nacional del Agua ( ANA )
B90: Estado de la conservación del SINANPE | C90: AREAS DE CONSERVACION PRIVADA | D90: Área | E90: Dirección de Gestión de Calidad de los Recursos Hídricos - DGCRH-Autoridad Nacional del Agua ( ANA ) | F90: 0 | Q90: 62 | R90: 0 | S90: 0
C91: AREAS DE CONSERVACION REGIONAL | D91: Área | E91: Autoridad Nacional del Agua ( ANA ) | F91: 0 | Q91: 15 | R91: 0 | S91: 0
C92: AREAS NATURALES PROTEGIDAS | D92: Área | E92: Dirección de Gestión de Calidad de los Recursos Hídricos - DGCRH-Autoridad Nacional del Agua ( ANA ) | F92: 0 | Q92: 77 | R92: 0 | S92: 0
B93: Estrategia Nacional contra la Desertificación y Sequía implementada | C93: Nacional | D93: Sin datos | E93: Dirección de Gestión de Conocimiento y Coordinación Interinstitucional - DGCCI-Autoridad Nacional del Agua ( ANA )
B94: Estrategia Nacional de Humedales implementada | C94: Nacional | D94: Sin datos | E94: Dirección de Gestión de Conocimiento y Coordinación Interinstitucional - DGCCI-Autoridad Nacional del Agua ( ANA )
B95: Implementación del Sistema Nacional de Gestión de los Recursos Hídricos | C95: Nacional | D95: Sin datos | E95: Ministerio del Ambiente ( MINAM ) - PCB
B96: Implementar planes de gestión de recursos hídricos por cuencas transfronterizas. | C96: Nacional | D96: Sin datos | E96: Ministerio del Ambiente ( MINAM )
B97: N° de bionegocios competitivos, preferentemente orientados al modelo de biocomercio | C97: Competitivos Orientados | D97: Bionegocios | E97: Autoridad Nacional del Agua ( ANA ) - sectores públicos involucrados | F97: 0 | Q97: 89 | R97: 0 | S97: 0
B98: N° de proyectos de servicios ecosistemicos implementados y en funcionamiento | C98: Iniciativas | D98: Proyectos | E98: Autoridad Nacional del Agua ( ANA )-Ministerio del Ambiente ( MINAM )-Ministerio de Economía y Finanzas (MEF) | F98: 0 | Q98: 2 | R98: 0 | S98: 0
C99: Proceso | D99: Proyectos | E99: Ministerio de Energia y Mina ( MINEM) | F99: 0 | Q99: 6 | R99: 0 | S99: 0
B100: N° de GOREs que cuentan con Estrategias y Planes de acción para la gestión de la biodiversidad en implementación | C100: Estrategias Regionales | D100: GORES | E100: Dirección de Gestión de Conocimiento y Coordinación Interinstitucional - DGCCI-Autoridad Nacional del Agua ( ANA ) | F100: 0 | Q100: 10 | R100: 0 | S100: 0
B101: N° de Informes mensuales y anuales de Monitoreo del uso sectorial de los recursos hídricos | C101: Nacional | D101: Sin datos | E101: Ministerio de Economía y Finanzas - MEF / SIAF Consulta Amigable 2019
B102: N° de planes de conservación de especies elaborados y con implementación iniciada | C102: Numero de planes | D102: Plan | E102: Dirección de Gestión de Conocimiento y Coordinación Interinstitucional - DGCCI-Autoridad Nacional del Agua ( ANA ) | F102: 0 | Q102: 1 | R102: 0 | S102: 0
B103: N° de Programas y estrategias de conservación de los recursos hídricos implementados (para riego tecnificado, reuso de aguas, por ejemplo) | C103: Nacional | D103: Sin datos | E103: Autoridad Nacional del Agua ( ANA ) - sectores públicos involucrados
B104: Numero de autorizaciones de vertimiento de aguas residuales tratadas (RAVR) | C104: Nacional | D104: Sin datos | E104: Ministerio del Ambiente ( MINAM ), Programa Nacional de Conservación de Bosques
B105: Número de Comunidades nativas beneficiarias | C105: Nacional | D105: Sin datos | E105: Ministerio de Energia y Mina ( MINEM) - Ministerio de Educación (MINEDU)
B106: Número de familias participando anualmente en el Programa Bosques | C106: Nacional | D106: Sin datos | E106: Sistema Nacional de Información Ambiental ( SINIA ) | F106: 0 | I106: 14000 | J106: 8356 | K106: 12431 | Q106: 0 | R106: 0 | S106: 0
B107: Número de Ha. de cultivos ilegales erradicadas | C107: Comunidades nativas beneficiarias del mecanismo TDC | D107: Comunidades | E107: Ministerio del Ambiente ( MINAM )- PCB | F107: 0 | I107: 188 | J107: 241 | K107: 163 | Q107: 55 | R107: 0 | S107: 0
B108: Número de Informes anuales sobre estado de Superficie Marina protegida | C108: Nacional | D108: Sin datos | E108: Sistema Nacional de Información Ambiental ( SINIA )
B109: Número de Informes anuales sobre superficie del territorio y superficie de bosques amazónicos conservados | C109: Cultivos de coca | D109: Hectárea | E109: Reporte Oficina de las Naciones Unidas contra la Droga y el Delito ( UNODC)- Dic 2018 | F109: 0 | H109: 43900 | I109: 49900 | Q109: 40300 | R109: 43900 | S109: 49900
C110: Erradicadas | D110: Hectárea | E110: Reporte Oficina de las Naciones Unidas contra la Droga y el Delito ( UNODC)- Dic 2018 | F110: 0 | H110: 30151 | I110: 25784 | Q110: 35868 | R110: 30151 | S110: 25784
C111: Nacional | D111: Sin datos | E111: Ministerio del Ambiente ( MINAM ), Programa Nacional de Conservación de Bosques
B112: Número de Informes de Monitoreo de vertimientos | C112: Nacional | D112: Sin datos | E112: Ministerio de Economía y Finanzas - MEF / SIAF Consulta Amigable 2019
B113: Número de informes de Monitoreo participativo de la calidad de los recursos hídricos en las fuentes naturales para la prevención de conflictos vinculados con la calidad del agua. | C113: Cuencas | D113: Cuencas | E113: Ministerio de Economía y Finanzas - MEF / SIAF Consulta Amigable 2019 | F113: 0 | Q113: 106 | R113: 0 | S113: 0
B114: Número de Investigaciones realizadas para el mejoramiento del conocimiento y cultura del agua orientada al aprovechamiento de los recursos hídricos. | C114: Nacional | D114: Sin datos | E114: Instituto del Mar del Perú (IMARPE), Ministerio del Ambiente ( MINAM ),Ministerio de Educación (MINEDU)
B115: Número de Planes Ambientales de Agua-PAMA-AGUA aprobados | C115: Nacional | D115: Sin datos | E115: Ministerio del Ambiente ( MINAM )/ Dirección General de Ordenamiento Territorial
B116: Número de Planes de manejo de zonas marino-costeras | C116: Nacional | D116: Sin datos | E116: Ministerio del Ambiente ( MINAM )/ Dirección General de Ordenamiento Territorial
B117: Número de Programas de mejoramiento de la calidad de los recursos hídricos en unidades hidrográficas y marino costeras, implementados. | C117: Nacional | D117: Sin datos | E117: Sistema Nacional de Información Ambiental ( SINIA )
B118: Número de Propuestas curriculares implementadas en los diferentes niveles y modalidades educativas para el desarrollo de una cultura del agua, para cada realidad sociocultural. | C118: Directivas Regionales de Educación aprobadas | D118: Directivas | E118: Ministerio del Ambiente ( MINAM ) | F118: 0 | Q118: 6 | R118: 0 | S118: 0
B119: Número de propuestas de educación ambiental para el desarrollo de una cultura de conservación del ecosistema marino costero | C119: Nacional | D119: Sin datos | E119: Instituto del Mar del Perú (IMARPE), Ministerio del Ambiente ( MINAM ),Ministerio de Educación (MINEDU)
B120: Número de proyectos de Recursos de Energías Renovables (RER) en el Plan Energético Nacional | C120: Nacional | D120: Sin datos | E120: Ministerio de Energia y Mina ( MINEM)
B121: Porcentaje de implementación de la Estrategia Nacional de Lucha contra la Desertificación y la Sequía- ENLCDS | C121: Nacional | D121: Sin datos | E121: Ministerio del Ambiente ( MINAM )/ Dirección General de Cambio Climático, Desertificación y Recursos Hídricos
B122: Porcentaje de incremento del consumo de la electricidad generada por energias renovables no convencionales | C122: Energia consumida | D122: Porcentaje | E122: Ministerio de Energia y Mina ( MINEM) | F122: 0 | Q122: 40 | R122: 0 | S122: 0
B123: Porcentaje de tasa de degradación de los ecosistemas (Reducir al 5% al año 2021) | C123: Nacional | D123: Sin datos | E123: Congreso de la República
B124: Porcentaje de usuarios que formalizan sus derechos de usos de agua. | C124: Costa | D124: Porcentaje | E124: Dirección de Conservación y Planeamiento de los Recursos Hídricos - DCPRH-Autoridad Nacional del Agua ( ANA ) | F124: 0 | Q124: 70 | R124: 0 | S124: 0
C125: Sierra | D125: Porcentaje | E125: Dirección de Conservación y Planeamiento de los Recursos Hídricos - DCPRH-Autoridad Nacional del Agua ( ANA ) | F125: 0 | Q125: 10 | R125: 0 | S125: 0
C126: Titicaca | D126: Porcentaje | E126: Dirección de Conservación y Planeamiento de los Recursos Hídricos - DCPRH-Autoridad Nacional del Agua ( ANA ) | F126: 0 | Q126: 20 | R126: 0 | S126: 0
C127: Vertedero Atlantico | D127: Porcentaje | E127: Dirección de Conservación y Planeamiento de los Recursos Hídricos - DCPRH-Autoridad Nacional del Agua ( ANA )
B128: Presupuesto anual ejecutado en Gestión Sostenible de RRNN y diversidad Biológica (PP 0035) - Millones de Soles | C128: Gobierno Locales | D128: Millones de soles | E128: Ministerio de Economía y Finanzas - MEF / SIAF Consulta Amigable 2019 | F128: 33.4 | H128: 42.48 | I128: 21.13 | J128: 33.43 | K128: 34.19 | L128: 21.48 | M128: 26978754 | Q128: 49.2 | R128: 42.5 | S128: 21.1
C129: Gobierno Nacional | D129: Millones de soles | E129: Ministerio de Economía y Finanzas - MEF / SIAF Consulta Amigable 2019 | F129: 192.5 | H129: 129.59 | I129: 138.99 | J129: 192.46 | K129: 207.18 | L129: 212.69 | M129: 211617545 | Q129: 144.2 | R129: 129.6 | S129: 139
C130: Gobiernos Regionales | D130: Millones de soles | E130: Ministerio de Economía y Finanzas - MEF / SIAF Consulta Amigable 2019 | F130: 29.4 | H130: 45.76 | I130: 22 | J130: 29.38 | K130: 49.76 | L130: 43.79 | M130: 64997001 | Q130: 52.3 | R130: 45.8 | S130: 22
B131: Presupuesto anual ejecutado en Conservación de la Diversidad Biológica y Aprovechamiento Sostenible del RRNN en Área Natural Protegida (PP 0057) - Soles | C131: Gobierno Nacional | D131: Millones de soles | E131: Ministerio de Economía y Finanzas - MEF / SIAF Consulta Amigable 2019 | F131: 62.5 | H131: 53.97 | I131: 57.52 | J131: 62.5 | K131: 74.4 | L131: 70.41 | M131: 63287278 | Q131: 39.6 | R131: 54 | S131: 57.5
C132: Gobiernos Regionales | D132: Millones de soles | E132: Ministerio de Economía y Finanzas - MEF / SIAF Consulta Amigable 2019 | F132: 10.3 | H132: 10.24 | I132: 15.05 | J132: 10.25 | K132: 8.9 | L132: 9.63 | M132: 9513317 | Q132: 3.9 | R132: 10.2 | S132: 15.1
B133: Presupuesto Ejecutado en Reducción de la Degradación de los suelos agrarios (PP 0089) - Soles | C133: Gobierno Locales | D133: Millones de soles | E133: Ministerio de Economía y Finanzas - MEF / SIAF Consulta Amigable 2019 | F133: 12.2 | H133: 21.27 | I133: 11.32 | J133: 12.2 | K133: 8.23 | L133: 8.29 | M133: 8294266 | Q133: 22.9 | R133: 21.3 | S133: 11.3
C134: Gobierno Nacional | D134: Millones de soles | E134: Ministerio de Economía y Finanzas - MEF / SIAF Consulta Amigable 2019 | F134: 6.2 | H134: 9.66 | I134: 9.75 | J134: 6.17 | K134: 3.39 | L134: 3.89 | M134: 3894575 | Q134: 8.5 | R134: 9.7 | S134: 9.8
C135: Gobiernos Regionales | D135: Millones de soles | E135: Ministerio de Economía y Finanzas - MEF / SIAF Consulta Amigable 2019 | F135: 1.3 | H135: 0.94 | I135: 1.07 | J135: 1.29 | K135: 1.2 | L135: 6.57 | M135: 6573296 | Q135: 1.5 | R135: 0.9 | S135: 1.1
B136: Presupuesto ejecutado por los tres niveles de gobierno en manejo eficiente de Recursos Forestales y Fauna Silvestre (PP 0130) - Soles | C136: Gobierno Locales | D136: Millones de soles | E136: Ministerio de Economía y Finanzas - MEF / SIAF Consulta Amigable 2019 | F136: 24.2 | H136: 4.48 | I136: 14.07 | J136: 24.19 | K136: 18 | L136: 12.52 | M136: 31209944 | Q136: 4.7 | R136: 4.5 | S136: 14.1
C137: Gobierno Nacional | D137: Millones de soles | E137: Ministerio de Economía y Finanzas - MEF / SIAF Consulta Amigable 2019 | F137: 100.9 | H137: 55.39 | I137: 67.2 | J137: 100.92 | K137: 94.4 | L137: 87.39 | M137: 91507106 | Q137: 39.2 | R137: 55.4 | S137: 67.2
C138: Gobiernos Regionales | D138: Millones de soles | E138: Ministerio de Economía y Finanzas - MEF / SIAF Consulta Amigable 2019 | F138: 25.5 | H138: 15.31 | I138: 13.97 | J138: 25.47 | K138: 42.3 | L138: 47.11 | M138: 57160700 | Q138: 11.3 | R138: 15.3 | S138: 14
B139: Producción anual de energía eléctrica de acuerdo a fuentes de generación (Gigawatt hora) | C139: Nacional | D139: Sin datos | E139: Ministerio de Energia y Mina ( MINEM)
B140: Se cuenta con Estándares nacionales de la calidad ambiental del agua, y de los límites máximos permisibles actualizados y en ejecución | C140: Nacional | D140: Sin datos | E140: Ministerio de Economía y Finanzas - MEF / SIAF Consulta Amigable 2019
B141: Se cuenta con Instituto para el desarrollo de conocimiento y capacidades científicas y tecnológicas en materia de agua creado e implementado | C141: Nacional | D141: Sin datos | E141: Ministerio de Economía y Finanzas - MEF / SIAF Consulta Amigable 2019
B142: Se cuenta con Ley de micro generación eléctrica | C142: Nacional | D142: Sin datos | E142: Ministerio de Energia y Mina ( MINEM)
B143: Se cuenta con linea de base actualizada de la situacion de recursos hídricos (oferta, demanda y balance) y de su uso multisectorial. | C143: Estudios hidrológicos | D143: Acuíferos | E143: Autoridad Nacional del Agua ( ANA ) | F143: 0 | Q143: 51 | R143: 0 | S143: 0
C144: Nacional | D144: Sin datos | E144: Congreso de la República
E145: Ministerio de Energia y Mina ( MINEM)
B146: Se cuenta con metodología adecuada de cálculo de la retribución económica y pago de derechos de vertimiento para garantizar la sostenibilidad infraestructura hidráulica y la gestión de los recursos hídricos. | C146: Nacional | D146: Sin datos | E146: Programa de Desarrollo Productivo Agrario Rural
B147: Se cuenta con Planes de Gestión integrada de recursos hídricos a nivel nacional y por cuencas hidrograficas. | C147: Planes de Gestión de recursos hídricos | D147: Planes aprobados | E147: Dirección de Conservación y Planeamiento de los Recursos Hídricos - DCPRH-Autoridad Nacional del Agua ( ANA ) | F147: 0 | Q147: 6 | R147: 0 | S147: 0
B148: Se han protegido e incluido nuevas Áreas de humedales. | C148: Nacional | D148: Sin datos | E148: Ministerio del Ambiente ( MINAM )
B149: Se implementa Plan de alta especialización en gestión, investigación y desarrollo de innovaciones tecnológicas en recursos hídricos. | C149: Nacional | D149: Sin datos | E149: Ministerio del Ambiente ( MINAM )
E150: Ministerio del Ambiente ( MINAM )/ Dirección General de Cambio Climático, Desertificación y Recursos Hídricos
B151: Se implementa Plan para la valoración de los recursos hídricos y corresponsabilidad de la población en el pago de la retribución económica y de tarifas adecuadas por acceso y el uso del agua. | C151: Nacional | D151: Sin datos | E151: Ministerio de Economía y Finanzas - MEF / SIAF Consulta Amigable 2019
B152: Se mantienen bajos niveles de desertificación de suelos en el país | C152: Nacional | D152: Sin datos | E152: Ministerio del Ambiente ( MINAM )
B153: Sistema Nacional de información de Recursos Hídricos para la gestión y la prevención de riesgos por eventos climatológicos extremos en funcionamiento | C153: Nacional | D153: Sin datos | E153: Programa de Desarrollo Productivo Agrario Rural
B154: Superficie con manejo forestal por años | C154: Nacional | D154: Sin datos | E154: Programa de Desarrollo Productivo Agrario Rural
B155: Superficie de bosques perdidas anualmente | C155: Superficie de bosques | D155: Hectárea | E155: Ministerio del Ambiente ( MINAM ), Programa Nacional de Conservación de Bosques | F155: 0 | H155: 164662 | I155: 155914 | J155: 154766 | Q155: 115275 | R155: 164662 | S155: 155914
B156: Superficie reforestada anualmente | C156: Superficie reforestada anualmente | D156: Hectárea | E156: Programa de Desarrollo Productivo Agrario Rural | F156: 0 | Q156: 369 | R156: 369 | S156: 0
B157: Superficie(Ha.) de bosques para conservación gestionados por Comunidades nativas por año | C157: Conservacion | D157: Hectárea | E157: Ministerio del Ambiente ( MINAM ), Programa Nacional de Conservación de Bosques | F157: 0 | I157: 1821.82 | J157: 2409.52 | K157: 1862.06 | Q157: 542812.5 | R157: 0 | S157: 0
B158: Tasa anual de deforestación nacional | C158: Tasa de deforestación nacional | D158: Porcentaje | E158: Sistema Nacional de Información Ambiental ( SINIA ) | F158: 0 | H158: 0.24 | I158: 0.23 | Q158: 0.1 | R158: 0.2 | S158: 0.2
A159: III. LINEAMIENTO DE POLITICA: Impulsar acciones de reducción de gases de efecto invernadero, preparación y adaptación frente al Cambio Climático. | B159: % de población participando en mecanismos de adaptación frente al CC | C159: Nacional | D159: Sin datos | E159: Ministerio del Ambiente ( MINAM ), sectores públicos
B160: Emisiones per cápita (tCO2e del Inv./Pob. Nac) | C160: Nacional | D160: Sin datos | E160: Inventario Nacional de GEI e Informes de INDCs
B161: Estrategia Nacional de Crecimiento Verde aprobada e implementada | C161: Nacional | D161: Sin datos | E161: Ministerio de Economía y Finanzas (MEF) - Ministerio del Ambiente ( MINAM )
B162: Extensión anual de cobertura boscosa del país | C162: Extensión anual de cobertura | D162: Hectárea | E162: Ministerio del Ambiente ( MINAM )-Ministerio de Agricultura y Riego ( MINAGRI)-Servicio Nacional Forestal y de Fauna Silvestre ( SERFOR)-Organismo de Supervisión de los Recursos Forestales y de Fauna Silvestre ( OSINFOR )-Programa Nacional de Conservación de Bosques ( PNCB) | F162: 0 | I162: 68577.35 | J162: 68422.59 | Q162: 69170368 | R162: 0 | S162: 0
B163: Informes anuales emitidos sobre situación de daños producidos por el CC y su atención por el Estado | C163: Nacional | D163: Sin datos | E163: Sin datos
B164: Inventarios Nacionales Anuales de GEI (tCO2e) | C164: Nacional | D164: Sin datos | E164: Inventario Nacional de GEI e Informes de INDCs
B165: Montos anuales de daños y pérdidas por afecto del cambio climatico | C165: Nacional | D165: Sin datos | E165: Sin datos
B166: Número de agricultores y comuneros participando en actividades agroforestales | C166: Nacional | D166: Sin datos | E166: Sin datos
B167: Número de comuneros participando en proyectos MFC (Mecanismo de Fondos Concursables) | C167: Nacional | D167: Sin datos | E167: Sin datos
B168: Número de Comunicaciones Nacionales publicadas y difundidas | C168: Nacional | D168: Sin datos | E168: Sin datos
B169: Número de Comunicaciones Nacionales remitidas a la CMNUCC | C169: Nacional | D169: Sin datos | E169: Sin datos
B170: Número de espacios de coordinación con sector privado y sociedad civil creados para promover el uso y hacer seguimiento a las políticas públicas sobre RER | C170: Nacional | D170: Sin datos | E170: Ministerio de Energia y Mina ( MINEM)
B171: Número de Gobiernos Regionales y Locales que implementan acciones frente al cambio climático | C171: Nacional | D171: Sin datos | E171: Instituto Nacional de Estadística e Informática (INEI) - Registro Nacional de Municipalidades (RENAMU)
B172: Número de Hectáreas protegidas por seguro catastrófico | C172: Nacional | D172: Sin datos | E172: Sin datos
B173: Número de hectáreas incorporadas a actividades forestales | C173: Nacional | D173: Sin datos | E173: Sin datos
B174: Número de IIEE que implementan acciones pedagógicas e institucionales de adaptación al cambio climático. | C174: Nacional | D174: Sin datos | E174: Ministerio de Educación (MINEDU)
B175: Número de proyectos de adaptación implementados por organizaciones indígenas y agricultores con el apoyo del estado | C175: Nacional | D175: Sin datos | E175: Sin datos
B176: Númerode Gobiernos Regionales con Estrategias Regionales de Cambio Climático, incluidas en PDC y en implementación | C176: Gobiernos regionales tienen Estrategias, formuladas y aprobadas. | D176: Gobiernos | E176: Ministerio del Ambiente ( MINAM ), sectores públicos | F176: 0 | Q176: 11 | R176: 0 | S176: 0
B177: Porcentaje de generación eléctrica con RER no convencional hacia al 2021 | C177: Nacional | D177: Sin datos | E177: Ministerio de Energia y Mina ( MINEM)
B178: Porcentaje de recursos públicos destinados a apoyar acciones de adaptación | C178: Nacional | D178: Sin datos | E178: Ministerio del Ambiente ( MINAM ), sectores públicos
B179: Reducción de emisiones de GEI en % (Emisiones LB - Emisiones Inv)/Emisiones LB) | C179: Nacional | D179: Sin datos | E179: Inventario Nacional de GEI e Informes de INDCs
B180: Tasa de deforestación anual | C180: Deforestacion | D180: Hectárea | E180: Ministerio del Ambiente ( MINAM )-Ministerio de Agricultura y Riego ( MINAGRI)-Servicio Nacional Forestal y de Fauna Silvestre ( SERFOR)-Organismo de Supervisión de los Recursos Forestales y de Fauna Silvestre ( OSINFOR )-Programa Nacional de Conservación de Bosques ( PNCB) | F180: 0 | H180: 164662 | I180: 155914 | J180: 154766 | Q180: 115275 | R180: 0 | S180: 0
B181: Tn de Consumo de sustancias agotadoras de la capa de ozono | C181: Tn | D181: Tn | E181: Superintendencia Nacional de Aduanas. Ministerio de la Producción | F181: 0 | Q181: 386 | R181: 0 | S181: 0
B182: Tn de Consumo potencial agotador de ozono | C182: Tn | D182: Tn | E182: Superintendencia Nacional de Aduanas. Ministerio de la Producción | F182: 0 | Q182: 24 | R182: 0 | S182: 0
B183: Volumen anual de fondos públicos y proyectos para apoyar la actividad forestal | C183: Nacional | D183: Sin datos | E183: Sin datos
A184: IV. LINEAMIENTO DE POLITICA: Promover Ciudades y Comunidades Saludables en armonía con su entorno natural. | B184: Áreas verdes por estudiante en IIEE por departamento. | C184: Hectáreas | D184: Hectárea | E184: Ministerio de Educación (MINEDU) | F184: 0 | Q184: 8990 | R184: 0 | S184: 0
B185: Áreas verdes por habitante por departamento menos de 8m2/hab. | C185: Nacional | D185: Sin datos | E185: Sin datos
B186: Implementación de tambos comunales en distritos de pobreza | C186: Tambos | D186: Tambos | E186: Memoria Institucional del Ministerio de Vivienda | F186: 0 | Q186: 212 | R186: 0 | S186: 0
B187: Medición del cloro residual libre del agua para consumo humano | C187: Agua con dosificación de cloro residual, Total | D187: Porcentaje | E187: Instituto Nacional de Estadística e Informatica (INEI) - Acceso al Agua y Saneamiento 2017 - Cuadro No. 13 Perú: Población que consume agua proveniente de red pública, según niveles de cloro, 2010 - 2017 | F187: 0 | H187: 47.2 | I187: 48.1 | J187: 52.3 | K187: 53.5 | L187: 53.7 | Q187: 48.6 | R187: 47.2 | S187: 47.8
C188: Agua con dosificación de cloro residual,Adecuado | D188: Porcentaje | E188: Instituto Nacional de Estadística e Informatica (INEI) - Acceso al Agua y Saneamiento 2017 - Cuadro No. 13 Perú: Población que consume agua proveniente de red pública, según niveles de cloro, 2010 - 2018 | F188: 0 | H188: 31.4 | I188: 33.1 | J188: 36.3 | K188: 39 | L188: 38.6 | Q188: 28.4 | R188: 31.4 | S188: 32.8
C189: Agua con dosificación de cloro residual,Inadecuado | D189: Porcentaje | E189: Instituto Nacional de Estadística e Informatica (INEI) - Acceso al Agua y Saneamiento 2017 - Cuadro No. 13 Perú: Población que consume agua proveniente de red pública, según niveles de cloro, 2010 - 2019 | F189: 0 | H189: 15.8 | I189: 15 | J189: 16 | K189: 14.6 | L189: 15 | Q189: 20.2 | R189: 15.8 | S189: 15
C190: Rural | D190: Porcentaje | E190: Instituto Nacional de Estadística e Informatica (INEI) - Acceso al Agua y Saneamiento 2017 - Cuadro No. 13 Perú: Población que consume agua proveniente de red pública, según niveles de cloro, 2010 - 2021 | F190: 0 | H190: 4.3 | I190: 4.9 | J190: 7.4 | K190: 9.3 | L190: 9.2 | Q190: 48.6 | R190: 61 | S190: 4.9
C191: Urbana | D191: Porcentaje | E191: Instituto Nacional de Estadística e Informatica (INEI) - Acceso al Agua y Saneamiento 2017 - Cuadro No. 13 Perú: Población que consume agua proveniente de red pública, según niveles de cloro, 2010 - 2020 | F191: 0 | H191: 60.9 | I191: 61.3 | J191: 65 | K191: 66.4 | L191: 66.3 | Q191: 48.6 | R191: 61 | S191: 4.3
B192: Mejoramiento de los sistemas de gestión de los RRSS y porcentaje de Entidades de Fiscalización Ambiental (EFA) supervisadas | C192: cuentan con caracterización de RRSS | D192: cuentan con caracterización de RRSS | E192: Organismo de Evaluación y Fiscalización Ambiental (OEFA) | F192: 0 | Q192: 57 | R192: 0 | S192: 0
C193: PIGARS (Planes Integrales de Gestión Ambiental de RRSS) | D193: PIGARS (Planes Integrales de Gestión Ambiental de RRSS) | E193: Organismo de Evaluación y Fiscalización Ambiental (OEFA) | F193: 0 | Q193: 62 | R193: 0 | S193: 0
C194: Programa de segregación | D194: Programa de segregación | E194: Organismo de Evaluación y Fiscalización Ambiental (OEFA) | F194: 0 | Q194: 42 | R194: 0 | S194: 0
C195: Promueven formalización de recicladores | D195: Promueven formalización de recicladores | E195: Organismo de Evaluación y Fiscalización Ambiental (OEFA) | F195: 0 | Q195: 17 | R195: 0 | S195: 0
C196: reportan la gestión y el manejo de los RRSS en el SIGERSOL (Sistema de Información para la Gestión de Residuos Sólidos) y 5% cuentan con plan de cierre y recuperación de botaderos | D196: reportan la gestión y el manejo de los RRSS en el SIGERSOL (Sistema de Información para la Gestión de Residuos Sólidos) y 5% cuentan con plan de cierre y recuperación de botaderos | E196: Organismo de Evaluación y Fiscalización Ambiental (OEFA) | F196: 0 | Q196: 44 | R196: 0 | S196: 0
B197: Número de acciones de evaluación, monitoreo, vigilancia, control y sanción de las diversas actividades económicas realizados por OEFA y EFA, nacionales, regionales y locales | C197: Nacional | D197: Sin datos | E197: Organismo de Evaluación y Fiscalización Ambiental (OEFA).Entidades de Fiscalización Ambiental (EFA)
B198: Número de árboles sembrados y con mantenimiento. | C198: Nacional | D198: Sin datos | E198: Sin datos
B199: Número de conexiones anualizado: Total, Sedapal, EPS Grandes, EPS Medianas, EPS Pequeñas | C199: EPS grandes | D199: Eps grandes | E199: Superintendencia Nacional de Servicio de Saneamiento | F199: 0 | Q199: 1545278 | R199: 1438026 | S199: 211.8
C200: EPS medianas | D200: Eps medianas | E200: Superintendencia Nacional de Servicio de Saneamiento | F200: 0 | Q200: 332314 | R200: 0 | S200: 0
C201: EPS pequeñas | D201: Eps pequeñas | E201: Superintendencia Nacional de Servicio de Saneamiento | F201: 0 | Q201: 163830 | R201: 0 | S201: 0
C202: Sedapal | D202: Sedapal | E202: Superintendencia Nacional de Servicio de Saneamiento | F202: 0 | Q202: 1438026 | R202: 0 | S202: 0
B203: Número de familias beneficiadas con Programa Nacional de Vivienda Rural | C203: Familias | D203: Familias | E203: Memoria institucional anual del Ministerio de Vivienda | F203: 0 | Q203: 1032 | R203: 0 | S203: 0
... 117 more rows

Sheet Menu

Sheet Rep_Balance
B4: Balance | D4: PRIMER DERECHO: AL NOMBRE Y A LA IDENTIDAD
D6: =CONCATENATE("N° de compromisos: ",SUM(ListaIndicadores!H323:H325)) -> N° de compromisos: 0 | F6: =CONCATENATE("N° ListaIndicadores!de compromisos: ",SUM(ListaIndicadores!H328:H330)) -> N° ListaIndicadores!de compromisos: 0
B10: =CONCATENATE("N° de compromisos: ",SUM(ListaIndicadores!H352:H355)) -> N° de compromisos: 0 | D10: =CONCATENATE("N° de compromisos: ",SUM(ListaIndicadores!H333:H336)) -> N° de compromisos: 0 | F10: =CONCATENATE("N° de compromisos: ",SUM(ListaIndicadores!H338:H340)) -> N° de compromisos: 0 | H10: =CONCATENATE("N° de compromisos: ",SUM(ListaIndicadores!H343:H345)) -> N° de compromisos: 0
B14: =CONCATENATE("N° de compromisos: ",SUM(ListaIndicadores!H347:H349)) -> N° de compromisos: 0
B16: Nota técnica
B18: Color del semaforo :
B19: Caso 1, con indicadores positivos (ejemplo cobertura de seguro de salud):
B20: Color verde: Cuando la meta proyectada al 2021/ valor de la meta al 2021 >=85%;
B21: Color ambar: Cuando la meta proyectada al 2021/ valor de la meta al 2021 se ecuentra entre >=50 y <85%;
B22: Color rojo: Cuando la meta proyectada al 2021/ valor de la meta al 2021 se ecuentra <50%
B23: Caso 2, con indicadores negativos (ejemplo: tasa de desnutrición crónica):
B24: Color verde: Cuando la meta proyectada al 2021/ valor de la meta al 2021 <=115%;
B25: Color ambar: Cuando la meta proyectada al 2021/ valor de la meta al 2021 se ecuentra entre <115% y =< 150%;
B26: Color rojo: Cuando la meta proyectada al 2021/ valor de la meta al 2021 >150%

Sheet ReporteIndicador
B4: Gráfico | T4: Comando
T6: Primer paso: Seleccionar el Lineamiento
T7: Lineamiento
T8: I. LINEAMIENTO DE POLITICA Mejorar la Gestión Ambiental.
T9: Segundo paso: Seleccionar el indicador
T10: Indicador:
T11: Monto del Presupuesto público ejecutado en la función ambiental (instancias, planes, programas y proyectos de gestión ambiental en los tres niveles de gobierno) - Millones de Soles
T12: Tercer paso: Seleccionar el Sub Indicador
T13: Sub indicador:
T14: Gasto Corriente
B15: Información Histórica
B16: 2010 | C16: 2011 | D16: 2012 | E16: 2013 | F16: 2014 | G16: 2015 | H16: 2016 | I16: 2017 | J16: 2018 | K16: 2019 | L16: 2020 | M16: 2021 | N16: 2022 | O16: 2023 | P16: 2024 | Q16: 2025 | R16: 2026
B17: =IFERROR(HLOOKUP(ReporteIndicador!B$16,TDValor!$C$5:$P$6,2,FALSE),"") -> 0 | C17: =IFERROR(HLOOKUP(ReporteIndicador!C$16,TDValor!$C$5:$M$6,2,FALSE),"") -> 2119 | D17: =IFERROR(HLOOKUP(ReporteIndicador!D$16,TDValor!$C$5:$P$6,2,FALSE),"") -> 2356 | E17: =IFERROR(HLOOKUP(ReporteIndicador!E$16,TDValor!$C$5:$P$6,2,FALSE),"") -> 2465 | F17: =IFERROR(HLOOKUP(ReporteIndicador!F$16,TDValor!$C$5:$P$6,2,FALSE),"") -> 2670 | G17: =IFERROR(HLOOKUP(ReporteIndicador!G$16,TDValor!$C$5:$P$6,2,FALSE),"") -> 0 | H17: =IFERROR(HLOOKUP(ReporteIndicador!H$16,TDValor!$C$5:$P$6,2,FALSE),"") -> 2356.2 | I17: =IFERROR(HLOOKUP(ReporteIndicador!I$16,TDValor!$C$5:$P$6,2,FALSE),"") -> 2565.5 | J17: =IFERROR(HLOOKUP(ReporteIndicador!J$16,TDValor!$C$5:$P$6,2,FALSE),"") -> 2695.2 | K17: =IFERROR(HLOOKUP(ReporteIndicador!K$16,TDValor!$C$5:$P$6,2,FALSE),"") -> 2654.6 | L17: =IFERROR(HLOOKUP(ReporteIndicador!L$16,TDValor!$C$5:$P$6,2,FALSE),"") -> 2841.2 | M17: =IFERROR(HLOOKUP(ReporteIndicador!M$16,TDValor!$C$5:$P$6,2,FALSE),"") -> 3040.1 | N17: =IFERROR(HLOOKUP(ReporteIndicador!N$16,TDValor!$C$5:$M$6,2,FALSE),"") -> 0 | O17: =IFERROR(HLOOKUP(ReporteIndicador!O$16,TDValor!$C$5:$M$6,2,FALSE),"") -> 0 | P17: =IFERROR(HLOOKUP(ReporteIndicador!P$16,TDValor!$C$5:$M$6,2,FALSE),"") ->  | Q17: =IFERROR(HLOOKUP(ReporteIndicador!Q$16,TDValor!$C$5:$M$6,2,FALSE),"") ->  | R17: =IFERROR(HLOOKUP(ReporteIndicador!R$16,TDValor!$C$5:$M$6,2,FALSE),"") -> 
B19: Fuente | D19: =+TDValor!B6 -> Ministerio del Ambiente ( MINAM )/ Dirección General de Políticas, Normas e Instrumentos de Gestión Ambiental
B20: Unidad de medida | D20: =+TDValor!A6 -> Gasto
B22: Desempeño
B24: Proyección 2021 | F24: Meta 2021 | I24: Semaforo
B25: =IFERROR(IF(VLOOKUP($T$11&$T$14,ListaIndicadores!$AD$7:$AI$319,4,FALSE)="","",VLOOKUP($T$11&$T$14,ListaIndicadores!$AD$7:$AI$319,4,FALSE)),"") -> 1658213872 | F25: =IFERROR(IF(VLOOKUP($T$11&$T$14,ListaIndicadores!$AD$7:$AI$319,2,FALSE)="","",VLOOKUP($T$11&$T$14,ListaIndicadores!$AD$7:$AI$319,2,FALSE)),"") ->  | I25: =IFERROR(IF(VLOOKUP($T$11&$T$14,ListaIndicadores!$AD$7:$AI$533,6,FALSE)="","",VLOOKUP($T$11&$T$14,ListaIndicadores!$AD$7:$AI$533,6,FALSE)),"") -> ¡Faltan datos!
B27: Proyección 2026 | F27: Meta 2026 | I27: Semaforo
B28: =IFERROR(IF(VLOOKUP($T$11&$T$14,ListaIndicadores!$AD$7:$AJ$319,5,FALSE)="","",VLOOKUP($T$11&$T$14,ListaIndicadores!$AD$7:$AJ$319,5,FALSE)),"") -> 108088.7 | F28: =IFERROR(IF(VLOOKUP($T$11&$T$14,ListaIndicadores!$AD$7:$AI$319,3,FALSE)="","",VLOOKUP($T$11&$T$14,ListaIndicadores!$AD$7:$AI$319,3,FALSE)),"") -> 100000 | I28: =IFERROR(IF(VLOOKUP($T$11&$T$14,ListaIndicadores!$AD$7:$AJ$533,7,FALSE)="","",VLOOKUP($T$11&$T$14,ListaIndicadores!$AD$7:$AJ$533,7,FALSE)),"") -> Verde

Sheet Auxliar (hidden)
A2: Tiene Meta 2021 | B2: si
B5: si
B6: si
B7: si
B8: si
B9: si
B10: si
B11: si
B12: si
B13: si
B14: si
B15: si
B16: si
B17: si
B18: si
B19: si
B20: si
B21: si
B22: si
B23: si
B24: si
B25: si
B26: si
B27: si
B28: si
B29: si
B30: si
B31: si
B32: si
B33: si
B34: si
B35: si
B36: si
B37: si
B38: si
B39: si
B40: si
B41: si
B42: si
B43: si
B44: si
B45: si
B46: si
B47: si
B48: si
B49: si
B50: si
B51: si
B52: si
B53: si
B54: si
B55: si
B56: si
B57: si
B58: si
B59: si
B60: si
B61: si
B62: si
B63: si
B64: si
B65: si
B66: si
B67: si
B68: si
B69: si
B70: si
B71: si
B72: si
B73: si
B74: si
B75: si
B76: si
B77: si
B78: si
B79: si
B80: si
B81: si
B82: si
B83: si
B84: si
B85: si
B86: si
B87: si
B88: si
B89: si
B90: si
B91: si
B92: si
B93: si
B94: si
B95: si
B96: si
B97: si
B98: si
B99: si
B100: si
B101: si
B102: si
B103: si
B104: si
B105: si
B106: si
B107: si
B108: si
B109: si
B110: si
B111: si
B112: si
B113: si
B114: si
B115: si
B116: si
B117: si
B118: si
B119: si
B120: si
B121: si
B122: si
B123: si
B124: si
B125: si
B126: si
B127: si
B128: si
B129: si
B130: si
B131: si
B132: si
B133: si
B134: si
B135: si
B136: si
B137: si
B138: si
B139: si
B140: si
B141: si
B142: si
B143: si
B144: si
B145: si
B146: si
B147: si
B148: si
B149: si
B150: si
B151: si
B152: si
B153: si
B154: si
B155: si
B156: si
B157: si
B158: si
B159: si
B160: si
B161: si
B162: si
B163: si
B164: si
B165: si
B166: si
B167: si
B168: si
B169: si
B170: si
B171: si
B172: si
B173: si
B174: si
B175: si
B176: si
B177: si
B178: si
B179: si
B180: si
B181: si
B182: si
B183: si
B184: si
B185: si
B186: si
B187: si
B188: si
B189: si
B190: si
B191: si
B192: si
B193: si
B194: si
B195: si
B196: si
B197: si
B198: si
B199: si
B200: si
B201: si
B202: si
B203: si
... 73 more rows

Sheet BD_Ambiental
A1: Num. | B1: Dimensión | C1: Segundo Nivel | D1: Matriz de Resultado | E1: Indicador | F1: Subindicador | G1: Nombre de la región/Nacional | H1: Año | I1: Valor | J1: Unidad | K1: Fuente web | L1: Fuente ficha tecnica | M1: Link | N1: Descripción del indicador | O1: Observaciones internas | P1: Concatenador | Q1: Tiene Meta 2021 | R1: Proyección | S1: Semáforo
A2: 1 | B2: Ambiental | C2: I. LINEAMIENTO DE POLITICA Mejorar la Gestión Ambiental. | D2: AGA.1.1 | E2: Plan Nacional de Acción Ambiental 2016-2021 actualizado e implementado | F2: Nacional | G2: Nacional | H2: 2010 | J2: Sin datos | K2: Decreto Supremo aprobado. Responsable: Ministerio del Ambiente ( MINAM ) | L2: Ministerio del Ambiente ( MINAM ) | M2: http://www.minam.gob.pe/?option=com_docman&Itemid=65 | P2: =CONCATENATE(C2,F2) -> I. LINEAMIENTO DE POLITICA Mejorar la Gestión Ambiental.Nacional
A3: 2 | B3: Ambiental | C3: I. LINEAMIENTO DE POLITICA Mejorar la Gestión Ambiental. | D3: AGA.1.1 | E3: Plan Nacional de Acción Ambiental 2016-2021 actualizado e implementado | F3: Nacional | G3: Nacional | H3: 2011 | J3: Sin datos | K3: Decreto Supremo aprobado. Responsable: Ministerio del Ambiente ( MINAM ) | L3: Ministerio del Ambiente ( MINAM ) | M3: http://www.minam.gob.pe/?option=com_docman&Itemid=65 | P3: =CONCATENATE(C3,F3) -> I. LINEAMIENTO DE POLITICA Mejorar la Gestión Ambiental.Nacional
A4: 3 | B4: Ambiental | C4: I. LINEAMIENTO DE POLITICA Mejorar la Gestión Ambiental. | D4: AGA.1.1 | E4: Plan Nacional de Acción Ambiental 2016-2021 actualizado e implementado | F4: Nacional | G4: Nacional | H4: 2012 | J4: Sin datos | K4: Decreto Supremo aprobado. Responsable: Ministerio del Ambiente ( MINAM ) | L4: Ministerio del Ambiente ( MINAM ) | M4: http://www.minam.gob.pe/?option=com_docman&Itemid=65 | P4: I. LINEAMIENTO DE POLITICA Mejorar la Gestión Ambiental.Nacional
A5: 4 | B5: Ambiental | C5: I. LINEAMIENTO DE POLITICA Mejorar la Gestión Ambiental. | D5: AGA.1.1 | E5: Plan Nacional de Acción Ambiental 2016-2021 actualizado e implementado | F5: Nacional | G5: Nacional | H5: 2013 | J5: Sin datos | K5: Decreto Supremo aprobado. Responsable: Ministerio del Ambiente ( MINAM ) | L5: Ministerio del Ambiente ( MINAM ) | M5: http://www.minam.gob.pe/?option=com_docman&Itemid=65 | P5: I. LINEAMIENTO DE POLITICA Mejorar la Gestión Ambiental.Nacional
A6: 4 | B6: Ambiental | C6: I. LINEAMIENTO DE POLITICA Mejorar la Gestión Ambiental. | D6: AGA.1.1 | E6: Plan Nacional de Acción Ambiental 2016-2021 actualizado e implementado | F6: Nacional | G6: Nacional | H6: 2014 | J6: Sin datos | K6: Decreto Supremo aprobado. Responsable: Ministerio del Ambiente ( MINAM ) | L6: Ministerio del Ambiente ( MINAM ) | M6: http://www.minam.gob.pe/?option=com_docman&Itemid=65 | P6: I. LINEAMIENTO DE POLITICA Mejorar la Gestión Ambiental.Nacional
A7: 4 | B7: Ambiental | C7: I. LINEAMIENTO DE POLITICA Mejorar la Gestión Ambiental. | D7: AGA.1.1 | E7: Plan Nacional de Acción Ambiental 2016-2021 actualizado e implementado | F7: Nacional | G7: Nacional | H7: 2015 | J7: Sin datos | K7: Decreto Supremo aprobado. Responsable: Ministerio del Ambiente ( MINAM ) | L7: Ministerio del Ambiente ( MINAM ) | M7: http://www.minam.gob.pe/?option=com_docman&Itemid=65 | P7: I. LINEAMIENTO DE POLITICA Mejorar la Gestión Ambiental.Nacional
A8: 4 | B8: Ambiental | C8: I. LINEAMIENTO DE POLITICA Mejorar la Gestión Ambiental. | D8: AGA.1.1 | E8: Plan Nacional de Acción Ambiental 2016-2021 actualizado e implementado | F8: Nacional | G8: Nacional | H8: 2016 | J8: Sin datos | K8: Decreto Supremo aprobado. Responsable: Ministerio del Ambiente ( MINAM ) | L8: Ministerio del Ambiente ( MINAM ) | M8: http://www.minam.gob.pe/?option=com_docman&Itemid=65 | P8: I. LINEAMIENTO DE POLITICA Mejorar la Gestión Ambiental.Nacional
A9: 4 | B9: Ambiental | C9: I. LINEAMIENTO DE POLITICA Mejorar la Gestión Ambiental. | D9: AGA.1.1 | E9: Plan Nacional de Acción Ambiental 2016-2021 actualizado e implementado | F9: Nacional | G9: Nacional | H9: 2017 | J9: Sin datos | K9: Decreto Supremo aprobado. Responsable: Ministerio del Ambiente ( MINAM ) | L9: Ministerio del Ambiente ( MINAM ) | M9: http://www.minam.gob.pe/?option=com_docman&Itemid=65 | P9: I. LINEAMIENTO DE POLITICA Mejorar la Gestión Ambiental.Nacional
A10: 4 | B10: Ambiental | C10: I. LINEAMIENTO DE POLITICA Mejorar la Gestión Ambiental. | D10: AGA.1.1 | E10: Plan Nacional de Acción Ambiental 2016-2021 actualizado e implementado | F10: Nacional | G10: Nacional | H10: 2018 | J10: Sin datos | K10: Decreto Supremo aprobado. Responsable: Ministerio del Ambiente ( MINAM ) | L10: Ministerio del Ambiente ( MINAM ) | M10: http://www.minam.gob.pe/?option=com_docman&Itemid=65 | P10: I. LINEAMIENTO DE POLITICA Mejorar la Gestión Ambiental.Nacional
A11: 4 | B11: Ambiental | C11: I. LINEAMIENTO DE POLITICA Mejorar la Gestión Ambiental. | D11: AGA.1.1 | E11: Plan Nacional de Acción Ambiental 2016-2021 actualizado e implementado | F11: Nacional | G11: Nacional | H11: 2019 | J11: Sin datos | K11: Decreto Supremo aprobado. Responsable: Ministerio del Ambiente ( MINAM ) | L11: Ministerio del Ambiente ( MINAM ) | M11: http://www.minam.gob.pe/?option=com_docman&Itemid=65 | P11: I. LINEAMIENTO DE POLITICA Mejorar la Gestión Ambiental.Nacional
A12: 4 | B12: Ambiental | C12: I. LINEAMIENTO DE POLITICA Mejorar la Gestión Ambiental. | D12: AGA.1.1 | E12: Plan Nacional de Acción Ambiental 2016-2021 actualizado e implementado | F12: Nacional | G12: Nacional | H12: 2020 | J12: Sin datos | K12: Decreto Supremo aprobado. Responsable: Ministerio del Ambiente ( MINAM ) | L12: Ministerio del Ambiente ( MINAM ) | M12: http://www.minam.gob.pe/?option=com_docman&Itemid=65 | P12: I. LINEAMIENTO DE POLITICA Mejorar la Gestión Ambiental.Nacional
A13: 4 | B13: Ambiental | C13: I. LINEAMIENTO DE POLITICA Mejorar la Gestión Ambiental. | D13: AGA.1.1 | E13: Plan Nacional de Acción Ambiental 2016-2021 actualizado e implementado | F13: Nacional | G13: Nacional | H13: 2021 | J13: Sin datos | K13: Decreto Supremo aprobado. Responsable: Ministerio del Ambiente ( MINAM ) | L13: Ministerio del Ambiente ( MINAM ) | M13: http://www.minam.gob.pe/?option=com_docman&Itemid=65 | P13: I. LINEAMIENTO DE POLITICA Mejorar la Gestión Ambiental.Nacional
A14: 4 | B14: Ambiental | C14: I. LINEAMIENTO DE POLITICA Mejorar la Gestión Ambiental. | D14: AGA.1.1 | E14: Plan Nacional de Acción Ambiental 2016-2021 actualizado e implementado | F14: Nacional | G14: Nacional | H14: 2022 | J14: Sin datos | K14: Decreto Supremo aprobado. Responsable: Ministerio del Ambiente ( MINAM ) | L14: Ministerio del Ambiente ( MINAM ) | M14: http://www.minam.gob.pe/?option=com_docman&Itemid=65 | P14: I. LINEAMIENTO DE POLITICA Mejorar la Gestión Ambiental.Nacional
A15: 4 | B15: Ambiental | C15: I. LINEAMIENTO DE POLITICA Mejorar la Gestión Ambiental. | D15: AGA.1.1 | E15: Plan Nacional de Acción Ambiental 2016-2021 actualizado e implementado | F15: Nacional | G15: Nacional | H15: 2023 | J15: Sin datos | K15: Decreto Supremo aprobado. Responsable: Ministerio del Ambiente ( MINAM ) | L15: Ministerio del Ambiente ( MINAM ) | M15: http://www.minam.gob.pe/?option=com_docman&Itemid=65 | P15: I. LINEAMIENTO DE POLITICA Mejorar la Gestión Ambiental.Nacional
A16: 5 | B16: Ambiental | C16: I. LINEAMIENTO DE POLITICA Mejorar la Gestión Ambiental. | D16: AGA.1.10 | E16: Número de instrumentos de gestión ambiental que incorporan indicadores de género e interculturalidad. | F16: Número de instrumentos | G16: Nacional | H16: 2010 | J16: Número de instrumentos | K16: Ministerio del Ambiente ( MINAM ) | L16: Ministerio del Ambiente ( MINAM ) | M16: http://www.minam.gob.pe/?option=com_docman&Itemid=65 | P16: I. LINEAMIENTO DE POLITICA Mejorar la Gestión Ambiental.Número de instrumentos
A17: 6 | B17: Ambiental | C17: I. LINEAMIENTO DE POLITICA Mejorar la Gestión Ambiental. | D17: AGA.1.10 | E17: Número de instrumentos de gestión ambiental que incorporan indicadores de género e interculturalidad. | F17: Número de instrumentos | G17: Nacional | H17: 2011 | J17: Número de instrumentos | K17: Ministerio del Ambiente ( MINAM ) | L17: Ministerio del Ambiente ( MINAM ) | M17: http://www.minam.gob.pe/?option=com_docman&Itemid=65 | P17: I. LINEAMIENTO DE POLITICA Mejorar la Gestión Ambiental.Número de instrumentos
A18: 7 | B18: Ambiental | C18: I. LINEAMIENTO DE POLITICA Mejorar la Gestión Ambiental. | D18: AGA.1.10 | E18: Número de instrumentos de gestión ambiental que incorporan indicadores de género e interculturalidad. | F18: Número de instrumentos | G18: Nacional | H18: 2012 | J18: Número de instrumentos | K18: Ministerio del Ambiente ( MINAM ) | L18: Ministerio del Ambiente ( MINAM ) | M18: http://www.minam.gob.pe/?option=com_docman&Itemid=65 | P18: I. LINEAMIENTO DE POLITICA Mejorar la Gestión Ambiental.Número de instrumentos
A19: 8 | B19: Ambiental | C19: I. LINEAMIENTO DE POLITICA Mejorar la Gestión Ambiental. | D19: AGA.1.10 | E19: Número de instrumentos de gestión ambiental que incorporan indicadores de género e interculturalidad. | F19: Número de instrumentos | G19: Nacional | H19: 2013 | J19: Número de instrumentos | K19: Ministerio del Ambiente ( MINAM ) | L19: Ministerio del Ambiente ( MINAM ) | M19: http://www.minam.gob.pe/?option=com_docman&Itemid=65 | P19: I. LINEAMIENTO DE POLITICA Mejorar la Gestión Ambiental.Número de instrumentos
A20: 7 | B20: Ambiental | C20: I. LINEAMIENTO DE POLITICA Mejorar la Gestión Ambiental. | D20: AGA.1.10 | E20: Número de instrumentos de gestión ambiental que incorporan indicadores de género e interculturalidad. | F20: Número de instrumentos | G20: Nacional | H20: 2014 | J20: Número de instrumentos | K20: Ministerio del Ambiente ( MINAM ) | L20: Ministerio del Ambiente ( MINAM ) | M20: http://www.minam.gob.pe/?option=com_docman&Itemid=65 | P20: I. LINEAMIENTO DE POLITICA Mejorar la Gestión Ambiental.Número de instrumentos
A21: 7 | B21: Ambiental | C21: I. LINEAMIENTO DE POLITICA Mejorar la Gestión Ambiental. | D21: AGA.1.10 | E21: Número de instrumentos de gestión ambiental que incorporan indicadores de género e interculturalidad. | F21: Número de instrumentos | G21: Nacional | H21: 2015 | J21: Número de instrumentos | K21: Ministerio del Ambiente ( MINAM ) | L21: Ministerio del Ambiente ( MINAM ) | M21: http://www.minam.gob.pe/?option=com_docman&Itemid=65 | P21: I. LINEAMIENTO DE POLITICA Mejorar la Gestión Ambiental.Número de instrumentos
A22: 7 | B22: Ambiental | C22: I. LINEAMIENTO DE POLITICA Mejorar la Gestión Ambiental. | D22: AGA.1.10 | E22: Número de instrumentos de gestión ambiental que incorporan indicadores de género e interculturalidad. | F22: Número de instrumentos | G22: Nacional | H22: 2016 | J22: Número de instrumentos | K22: Ministerio del Ambiente ( MINAM ) | L22: Ministerio del Ambiente ( MINAM ) | M22: http://www.minam.gob.pe/?option=com_docman&Itemid=65 | P22: I. LINEAMIENTO DE POLITICA Mejorar la Gestión Ambiental.Número de instrumentos
A23: 7 | B23: Ambiental | C23: I. LINEAMIENTO DE POLITICA Mejorar la Gestión Ambiental. | D23: AGA.1.10 | E23: Número de instrumentos de gestión ambiental que incorporan indicadores de género e interculturalidad. | F23: Número de instrumentos | G23: Nacional | H23: 2017 | J23: Número de instrumentos | K23: Ministerio del Ambiente ( MINAM ) | L23: Ministerio del Ambiente ( MINAM ) | M23: http://www.minam.gob.pe/?option=com_docman&Itemid=65 | P23: I. LINEAMIENTO DE POLITICA Mejorar la Gestión Ambiental.Número de instrumentos
A24: 7 | B24: Ambiental | C24: I. LINEAMIENTO DE POLITICA Mejorar la Gestión Ambiental. | D24: AGA.1.10 | E24: Número de instrumentos de gestión ambiental que incorporan indicadores de género e interculturalidad. | F24: Número de instrumentos | G24: Nacional | H24: 2018 | J24: Número de instrumentos | K24: Ministerio del Ambiente ( MINAM ) | L24: Ministerio del Ambiente ( MINAM ) | M24: http://www.minam.gob.pe/?option=com_docman&Itemid=65 | P24: I. LINEAMIENTO DE POLITICA Mejorar la Gestión Ambiental.Número de instrumentos
A25: 7 | B25: Ambiental | C25: I. LINEAMIENTO DE POLITICA Mejorar la Gestión Ambiental. | D25: AGA.1.10 | E25: Número de instrumentos de gestión ambiental que incorporan indicadores de género e interculturalidad. | F25: Número de instrumentos | G25: Nacional | H25: 2019 | J25: Número de instrumentos | K25: Ministerio del Ambiente ( MINAM ) | L25: Ministerio del Ambiente ( MINAM ) | M25: http://www.minam.gob.pe/?option=com_docman&Itemid=65 | P25: I. LINEAMIENTO DE POLITICA Mejorar la Gestión Ambiental.Número de instrumentos
A26: 7 | B26: Ambiental | C26: I. LINEAMIENTO DE POLITICA Mejorar la Gestión Ambiental. | D26: AGA.1.10 | E26: Número de instrumentos de gestión ambiental que incorporan indicadores de género e interculturalidad. | F26: Número de instrumentos | G26: Nacional | H26: 2020 | J26: Número de instrumentos | K26: Ministerio del Ambiente ( MINAM ) | L26: Ministerio del Ambiente ( MINAM ) | M26: http://www.minam.gob.pe/?option=com_docman&Itemid=65 | P26: I. LINEAMIENTO DE POLITICA Mejorar la Gestión Ambiental.Número de instrumentos
A27: 7 | B27: Ambiental | C27: I. LINEAMIENTO DE POLITICA Mejorar la Gestión Ambiental. | D27: AGA.1.10 | E27: Número de instrumentos de gestión ambiental que incorporan indicadores de género e interculturalidad. | F27: Número de instrumentos | G27: Nacional | H27: 2021 | J27: Número de instrumentos | K27: Ministerio del Ambiente ( MINAM ) | L27: Ministerio del Ambiente ( MINAM ) | M27: http://www.minam.gob.pe/?option=com_docman&Itemid=65 | P27: I. LINEAMIENTO DE POLITICA Mejorar la Gestión Ambiental.Número de instrumentos
A28: 7 | B28: Ambiental | C28: I. LINEAMIENTO DE POLITICA Mejorar la Gestión Ambiental. | D28: AGA.1.10 | E28: Número de instrumentos de gestión ambiental que incorporan indicadores de género e interculturalidad. | F28: Número de instrumentos | G28: Nacional | H28: 2022 | J28: Número de instrumentos | K28: Ministerio del Ambiente ( MINAM ) | L28: Ministerio del Ambiente ( MINAM ) | M28: http://www.minam.gob.pe/?option=com_docman&Itemid=65 | P28: I. LINEAMIENTO DE POLITICA Mejorar la Gestión Ambiental.Número de instrumentos
A29: 7 | B29: Ambiental | C29: I. LINEAMIENTO DE POLITICA Mejorar la Gestión Ambiental. | D29: AGA.1.10 | E29: Número de instrumentos de gestión ambiental que incorporan indicadores de género e interculturalidad. | F29: Número de instrumentos | G29: Nacional | H29: 2023 | J29: Número de instrumentos | K29: Ministerio del Ambiente ( MINAM ) | L29: Ministerio del Ambiente ( MINAM ) | M29: http://www.minam.gob.pe/?option=com_docman&Itemid=65 | P29: I. LINEAMIENTO DE POLITICA Mejorar la Gestión Ambiental.Número de instrumentos
A30: 9 | B30: Ambiental | C30: I. LINEAMIENTO DE POLITICA Mejorar la Gestión Ambiental. | D30: AGA.1.2 | E30: Agenda Ambiente 2017-2018 aprobada e implementada | F30: Nacional | G30: Nacional | H30: 2010 | J30: Sin datos | K30: Resolución Ministerial aprobada. Responsable: Ministerio del Ambiente ( MINAM ) | L30: Ministerio del Ambiente ( MINAM ) | M30: http://www.minam.gob.pe/?option=com_docman&Itemid=65 | P30: I. LINEAMIENTO DE POLITICA Mejorar la Gestión Ambiental.Nacional
A31: 10 | B31: Ambiental | C31: I. LINEAMIENTO DE POLITICA Mejorar la Gestión Ambiental. | D31: AGA.1.2 | E31: Agenda Ambiente 2017-2018 aprobada e implementada | F31: Nacional | G31: Nacional | H31: 2011 | J31: Sin datos | K31: Resolución Ministerial aprobada. Responsable: Ministerio del Ambiente ( MINAM ) | L31: Ministerio del Ambiente ( MINAM ) | M31: http://www.minam.gob.pe/?option=com_docman&Itemid=65 | P31: I. LINEAMIENTO DE POLITICA Mejorar la Gestión Ambiental.Nacional
A32: 11 | B32: Ambiental | C32: I. LINEAMIENTO DE POLITICA Mejorar la Gestión Ambiental. | D32: AGA.1.2 | E32: Agenda Ambiente 2017-2018 aprobada e implementada | F32: Nacional | G32: Nacional | H32: 2012 | J32: Sin datos | K32: Resolución Ministerial aprobada. Responsable: Ministerio del Ambiente ( MINAM ) | L32: Ministerio del Ambiente ( MINAM ) | M32: http://www.minam.gob.pe/?option=com_docman&Itemid=65 | P32: I. LINEAMIENTO DE POLITICA Mejorar la Gestión Ambiental.Nacional
A33: 12 | B33: Ambiental | C33: I. LINEAMIENTO DE POLITICA Mejorar la Gestión Ambiental. | D33: AGA.1.2 | E33: Agenda Ambiente 2017-2018 aprobada e implementada | F33: Nacional | G33: Nacional | H33: 2013 | J33: Sin datos | K33: Resolución Ministerial aprobada. Responsable: Ministerio del Ambiente ( MINAM ) | L33: Ministerio del Ambiente ( MINAM ) | M33: http://www.minam.gob.pe/?option=com_docman&Itemid=65 | P33: I. LINEAMIENTO DE POLITICA Mejorar la Gestión Ambiental.Nacional
A34: 11 | B34: Ambiental | C34: I. LINEAMIENTO DE POLITICA Mejorar la Gestión Ambiental. | D34: AGA.1.2 | E34: Agenda Ambiente 2017-2018 aprobada e implementada | F34: Nacional | G34: Nacional | H34: 2014 | J34: Sin datos | K34: Resolución Ministerial aprobada. Responsable: Ministerio del Ambiente ( MINAM ) | L34: Ministerio del Ambiente ( MINAM ) | M34: http://www.minam.gob.pe/?option=com_docman&Itemid=65 | P34: I. LINEAMIENTO DE POLITICA Mejorar la Gestión Ambiental.Nacional
A35: 11 | B35: Ambiental | C35: I. LINEAMIENTO DE POLITICA Mejorar la Gestión Ambiental. | D35: AGA.1.2 | E35: Agenda Ambiente 2017-2018 aprobada e implementada | F35: Nacional | G35: Nacional | H35: 2015 | J35: Sin datos | K35: Resolución Ministerial aprobada. Responsable: Ministerio del Ambiente ( MINAM ) | L35: Ministerio del Ambiente ( MINAM ) | M35: http://www.minam.gob.pe/?option=com_docman&Itemid=65 | P35: I. LINEAMIENTO DE POLITICA Mejorar la Gestión Ambiental.Nacional
A36: 11 | B36: Ambiental | C36: I. LINEAMIENTO DE POLITICA Mejorar la Gestión Ambiental. | D36: AGA.1.2 | E36: Agenda Ambiente 2017-2018 aprobada e implementada | F36: Nacional | G36: Nacional | H36: 2016 | J36: Sin datos | K36: Resolución Ministerial aprobada. Responsable: Ministerio del Ambiente ( MINAM ) | L36: Ministerio del Ambiente ( MINAM ) | M36: http://www.minam.gob.pe/?option=com_docman&Itemid=65 | P36: I. LINEAMIENTO DE POLITICA Mejorar la Gestión Ambiental.Nacional
A37: 11 | B37: Ambiental | C37: I. LINEAMIENTO DE POLITICA Mejorar la Gestión Ambiental. | D37: AGA.1.2 | E37: Agenda Ambiente 2017-2018 aprobada e implementada | F37: Nacional | G37: Nacional | H37: 2017 | J37: Sin datos | K37: Resolución Ministerial aprobada. Responsable: Ministerio del Ambiente ( MINAM ) | L37: Ministerio del Ambiente ( MINAM ) | M37: http://www.minam.gob.pe/?option=com_docman&Itemid=65 | P37: I. LINEAMIENTO DE POLITICA Mejorar la Gestión Ambiental.Nacional
A38: 11 | B38: Ambiental | C38: I. LINEAMIENTO DE POLITICA Mejorar la Gestión Ambiental. | D38: AGA.1.2 | E38: Agenda Ambiente 2017-2018 aprobada e implementada | F38: Nacional | G38: Nacional | H38: 2018 | J38: Sin datos | K38: Resolución Ministerial aprobada. Responsable: Ministerio del Ambiente ( MINAM ) | L38: Ministerio del Ambiente ( MINAM ) | M38: http://www.minam.gob.pe/?option=com_docman&Itemid=65 | P38: I. LINEAMIENTO DE POLITICA Mejorar la Gestión Ambiental.Nacional
A39: 11 | B39: Ambiental | C39: I. LINEAMIENTO DE POLITICA Mejorar la Gestión Ambiental. | D39: AGA.1.2 | E39: Agenda Ambiente 2017-2018 aprobada e implementada | F39: Nacional | G39: Nacional | H39: 2019 | J39: Sin datos | K39: Resolución Ministerial aprobada. Responsable: Ministerio del Ambiente ( MINAM ) | L39: Ministerio del Ambiente ( MINAM ) | M39: http://www.minam.gob.pe/?option=com_docman&Itemid=65 | P39: I. LINEAMIENTO DE POLITICA Mejorar la Gestión Ambiental.Nacional
A40: 11 | B40: Ambiental | C40: I. LINEAMIENTO DE POLITICA Mejorar la Gestión Ambiental. | D40: AGA.1.2 | E40: Agenda Ambiente 2017-2018 aprobada e implementada | F40: Nacional | G40: Nacional | H40: 2020 | J40: Sin datos | K40: Resolución Ministerial aprobada. Responsable: Ministerio del Ambiente ( MINAM ) | L40: Ministerio del Ambiente ( MINAM ) | M40: http://www.minam.gob.pe/?option=com_docman&Itemid=65 | P40: I. LINEAMIENTO DE POLITICA Mejorar la Gestión Ambiental.Nacional
A41: 11 | B41: Ambiental | C41: I. LINEAMIENTO DE POLITICA Mejorar la Gestión Ambiental. | D41: AGA.1.2 | E41: Agenda Ambiente 2017-2018 aprobada e implementada | F41: Nacional | G41: Nacional | H41: 2021 | J41: Sin datos | K41: Resolución Ministerial aprobada. Responsable: Ministerio del Ambiente ( MINAM ) | L41: Ministerio del Ambiente ( MINAM ) | M41: http://www.minam.gob.pe/?option=com_docman&Itemid=65 | P41: I. LINEAMIENTO DE POLITICA Mejorar la Gestión Ambiental.Nacional
A42: 11 | B42: Ambiental | C42: I. LINEAMIENTO DE POLITICA Mejorar la Gestión Ambiental. | D42: AGA.1.2 | E42: Agenda Ambiente 2017-2018 aprobada e implementada | F42: Nacional | G42: Nacional | H42: 2022 | J42: Sin datos | K42: Resolución Ministerial aprobada. Responsable: Ministerio del Ambiente ( MINAM ) | L42: Ministerio del Ambiente ( MINAM ) | M42: http://www.minam.gob.pe/?option=com_docman&Itemid=65 | P42: I. LINEAMIENTO DE POLITICA Mejorar la Gestión Ambiental.Nacional
A43: 11 | B43: Ambiental | C43: I. LINEAMIENTO DE POLITICA Mejorar la Gestión Ambiental. | D43: AGA.1.2 | E43: Agenda Ambiente 2017-2018 aprobada e implementada | F43: Nacional | G43: Nacional | H43: 2023 | J43: Sin datos | K43: Resolución Ministerial aprobada. Responsable: Ministerio del Ambiente ( MINAM ) | L43: Ministerio del Ambiente ( MINAM ) | M43: http://www.minam.gob.pe/?option=com_docman&Itemid=65 | P43: I. LINEAMIENTO DE POLITICA Mejorar la Gestión Ambiental.Nacional
A44: 13 | B44: Ambiental | C44: I. LINEAMIENTO DE POLITICA Mejorar la Gestión Ambiental. | D44: AGA.1.3 | E44: Número de instancias de coordinación intersectorial, intergubernamental funcionando | F44: Nacional | G44: Nacional | H44: 2010 | J44: Sin datos | K44: Ministerio del Ambiente ( MINAM ) | L44: Ministerio del Ambiente ( MINAM ) | M44: http://www.minam.gob.pe/?option=com_docman&Itemid=65 | P44: I. LINEAMIENTO DE POLITICA Mejorar la Gestión Ambiental.Nacional
A45: 14 | B45: Ambiental | C45: I. LINEAMIENTO DE POLITICA Mejorar la Gestión Ambiental. | D45: AGA.1.3 | E45: Número de instancias de coordinación intersectorial, intergubernamental funcionando | F45: Nacional | G45: Nacional | H45: 2011 | J45: Sin datos | K45: Ministerio del Ambiente ( MINAM ) | L45: Ministerio del Ambiente ( MINAM ) | M45: http://www.minam.gob.pe/?option=com_docman&Itemid=65 | P45: I. LINEAMIENTO DE POLITICA Mejorar la Gestión Ambiental.Nacional
A46: 15 | B46: Ambiental | C46: I. LINEAMIENTO DE POLITICA Mejorar la Gestión Ambiental. | D46: AGA.1.3 | E46: Número de instancias de coordinación intersectorial, intergubernamental funcionando | F46: Nacional | G46: Nacional | H46: 2012 | J46: Sin datos | K46: Ministerio del Ambiente ( MINAM ) | L46: Ministerio del Ambiente ( MINAM ) | M46: http://www.minam.gob.pe/?option=com_docman&Itemid=65 | P46: I. LINEAMIENTO DE POLITICA Mejorar la Gestión Ambiental.Nacional
A47: 16 | B47: Ambiental | C47: I. LINEAMIENTO DE POLITICA Mejorar la Gestión Ambiental. | D47: AGA.1.3 | E47: Número de instancias de coordinación intersectorial, intergubernamental funcionando | F47: Nacional | G47: Nacional | H47: 2013 | J47: Sin datos | K47: Ministerio del Ambiente ( MINAM ) | L47: Ministerio del Ambiente ( MINAM ) | M47: http://www.minam.gob.pe/?option=com_docman&Itemid=65 | P47: I. LINEAMIENTO DE POLITICA Mejorar la Gestión Ambiental.Nacional
A48: 16 | B48: Ambiental | C48: I. LINEAMIENTO DE POLITICA Mejorar la Gestión Ambiental. | D48: AGA.1.3 | E48: Número de instancias de coordinación intersectorial, intergubernamental funcionando | F48: Nacional | G48: Nacional | H48: 2014 | J48: Sin datos | K48: Ministerio del Ambiente ( MINAM ) | L48: Ministerio del Ambiente ( MINAM ) | M48: http://www.minam.gob.pe/?option=com_docman&Itemid=65 | P48: I. LINEAMIENTO DE POLITICA Mejorar la Gestión Ambiental.Nacional
A49: 16 | B49: Ambiental | C49: I. LINEAMIENTO DE POLITICA Mejorar la Gestión Ambiental. | D49: AGA.1.3 | E49: Número de instancias de coordinación intersectorial, intergubernamental funcionando | F49: Nacional | G49: Nacional | H49: 2015 | J49: Sin datos | K49: Ministerio del Ambiente ( MINAM ) | L49: Ministerio del Ambiente ( MINAM ) | M49: http://www.minam.gob.pe/?option=com_docman&Itemid=65 | P49: I. LINEAMIENTO DE POLITICA Mejorar la Gestión Ambiental.Nacional
A50: 16 | B50: Ambiental | C50: I. LINEAMIENTO DE POLITICA Mejorar la Gestión Ambiental. | D50: AGA.1.3 | E50: Número de instancias de coordinación intersectorial, intergubernamental funcionando | F50: Nacional | G50: Nacional | H50: 2016 | J50: Sin datos | K50: Ministerio del Ambiente ( MINAM ) | L50: Ministerio del Ambiente ( MINAM ) | M50: http://www.minam.gob.pe/?option=com_docman&Itemid=65 | P50: I. LINEAMIENTO DE POLITICA Mejorar la Gestión Ambiental.Nacional
A51: 16 | B51: Ambiental | C51: I. LINEAMIENTO DE POLITICA Mejorar la Gestión Ambiental. | D51: AGA.1.3 | E51: Número de instancias de coordinación intersectorial, intergubernamental funcionando | F51: Nacional | G51: Nacional | H51: 2017 | J51: Sin datos | K51: Ministerio del Ambiente ( MINAM ) | L51: Ministerio del Ambiente ( MINAM ) | M51: http://www.minam.gob.pe/?option=com_docman&Itemid=65 | P51: I. LINEAMIENTO DE POLITICA Mejorar la Gestión Ambiental.Nacional
A52: 16 | B52: Ambiental | C52: I. LINEAMIENTO DE POLITICA Mejorar la Gestión Ambiental. | D52: AGA.1.3 | E52: Número de instancias de coordinación intersectorial, intergubernamental funcionando | F52: Nacional | G52: Nacional | H52: 2018 | J52: Sin datos | K52: Ministerio del Ambiente ( MINAM ) | L52: Ministerio del Ambiente ( MINAM ) | M52: http://www.minam.gob.pe/?option=com_docman&Itemid=65 | P52: I. LINEAMIENTO DE POLITICA Mejorar la Gestión Ambiental.Nacional
A53: 16 | B53: Ambiental | C53: I. LINEAMIENTO DE POLITICA Mejorar la Gestión Ambiental. | D53: AGA.1.3 | E53: Número de instancias de coordinación intersectorial, intergubernamental funcionando | F53: Nacional | G53: Nacional | H53: 2019 | J53: Sin datos | K53: Ministerio del Ambiente ( MINAM ) | L53: Ministerio del Ambiente ( MINAM ) | M53: http://www.minam.gob.pe/?option=com_docman&Itemid=65 | P53: I. LINEAMIENTO DE POLITICA Mejorar la Gestión Ambiental.Nacional
A54: 16 | B54: Ambiental | C54: I. LINEAMIENTO DE POLITICA Mejorar la Gestión Ambiental. | D54: AGA.1.3 | E54: Número de instancias de coordinación intersectorial, intergubernamental funcionando | F54: Nacional | G54: Nacional | H54: 2020 | J54: Sin datos | K54: Ministerio del Ambiente ( MINAM ) | L54: Ministerio del Ambiente ( MINAM ) | M54: http://www.minam.gob.pe/?option=com_docman&Itemid=65 | P54: I. LINEAMIENTO DE POLITICA Mejorar la Gestión Ambiental.Nacional
A55: 16 | B55: Ambiental | C55: I. LINEAMIENTO DE POLITICA Mejorar la Gestión Ambiental. | D55: AGA.1.3 | E55: Número de instancias de coordinación intersectorial, intergubernamental funcionando | F55: Nacional | G55: Nacional | H55: 2021 | J55: Sin datos | K55: Ministerio del Ambiente ( MINAM ) | L55: Ministerio del Ambiente ( MINAM ) | M55: http://www.minam.gob.pe/?option=com_docman&Itemid=65 | P55: I. LINEAMIENTO DE POLITICA Mejorar la Gestión Ambiental.Nacional
A56: 16 | B56: Ambiental | C56: I. LINEAMIENTO DE POLITICA Mejorar la Gestión Ambiental. | D56: AGA.1.3 | E56: Número de instancias de coordinación intersectorial, intergubernamental funcionando | F56: Nacional | G56: Nacional | H56: 2022 | J56: Sin datos | K56: Ministerio del Ambiente ( MINAM ) | L56: Ministerio del Ambiente ( MINAM ) | M56: http://www.minam.gob.pe/?option=com_docman&Itemid=65 | P56: I. LINEAMIENTO DE POLITICA Mejorar la Gestión Ambiental.Nacional
A57: 16 | B57: Ambiental | C57: I. LINEAMIENTO DE POLITICA Mejorar la Gestión Ambiental. | D57: AGA.1.3 | E57: Número de instancias de coordinación intersectorial, intergubernamental funcionando | F57: Nacional | G57: Nacional | H57: 2023 | J57: Sin datos | K57: Ministerio del Ambiente ( MINAM ) | L57: Ministerio del Ambiente ( MINAM ) | M57: http://www.minam.gob.pe/?option=com_docman&Itemid=65 | P57: I. LINEAMIENTO DE POLITICA Mejorar la Gestión Ambiental.Nacional
A58: 17 | B58: Ambiental | C58: I. LINEAMIENTO DE POLITICA Mejorar la Gestión Ambiental. | D58: AGA.1.4 | E58: Plan Nacional de Educación Ambiental 2016-2021 (PLANEA) aprobado e implementado | F58: Nacional | G58: Nacional | H58: 2010 | J58: Sin datos | K58: Decreto Supremo aprobado. Responsable: MINEDU y MINAM | L58: Ministerio del Ambiente ( MINAM ) | M58: http://www.minam.gob.pe/?option=com_docman&Itemid=65 | P58: I. LINEAMIENTO DE POLITICA Mejorar la Gestión Ambiental.Nacional
A59: 18 | B59: Ambiental | C59: I. LINEAMIENTO DE POLITICA Mejorar la Gestión Ambiental. | D59: AGA.1.4 | E59: Plan Nacional de Educación Ambiental 2016-2021 (PLANEA) aprobado e implementado | F59: Nacional | G59: Nacional | H59: 2011 | J59: Sin datos | K59: Decreto Supremo aprobado. Responsable: MINEDU y MINAM | L59: Ministerio del Ambiente ( MINAM ) | M59: http://www.minam.gob.pe/?option=com_docman&Itemid=65 | P59: I. LINEAMIENTO DE POLITICA Mejorar la Gestión Ambiental.Nacional
A60: 19 | B60: Ambiental | C60: I. LINEAMIENTO DE POLITICA Mejorar la Gestión Ambiental. | D60: AGA.1.4 | E60: Plan Nacional de Educación Ambiental 2016-2021 (PLANEA) aprobado e implementado | F60: Nacional | G60: Nacional | H60: 2012 | J60: Sin datos | K60: Decreto Supremo aprobado. Responsable: MINEDU y MINAM | L60: Ministerio del Ambiente ( MINAM ) | M60: http://www.minam.gob.pe/?option=com_docman&Itemid=65 | P60: I. LINEAMIENTO DE POLITICA Mejorar la Gestión Ambiental.Nacional
A61: 20 | B61: Ambiental | C61: I. LINEAMIENTO DE POLITICA Mejorar la Gestión Ambiental. | D61: AGA.1.4 | E61: Plan Nacional de Educación Ambiental 2016-2021 (PLANEA) aprobado e implementado | F61: Nacional | G61: Nacional | H61: 2013 | J61: Sin datos | K61: Decreto Supremo aprobado. Responsable: MINEDU y MINAM | L61: Ministerio del Ambiente ( MINAM ) | M61: http://www.minam.gob.pe/?option=com_docman&Itemid=65 | P61: I. LINEAMIENTO DE POLITICA Mejorar la Gestión Ambiental.Nacional
A62: 19 | B62: Ambiental | C62: I. LINEAMIENTO DE POLITICA Mejorar la Gestión Ambiental. | D62: AGA.1.4 | E62: Plan Nacional de Educación Ambiental 2016-2021 (PLANEA) aprobado e implementado | F62: Nacional | G62: Nacional | H62: 2014 | J62: Sin datos | K62: Decreto Supremo aprobado. Responsable: MINEDU y MINAM | L62: Ministerio del Ambiente ( MINAM ) | M62: http://www.minam.gob.pe/?option=com_docman&Itemid=65 | P62: I. LINEAMIENTO DE POLITICA Mejorar la Gestión Ambiental.Nacional
A63: 19 | B63: Ambiental | C63: I. LINEAMIENTO DE POLITICA Mejorar la Gestión Ambiental. | D63: AGA.1.4 | E63: Plan Nacional de Educación Ambiental 2016-2021 (PLANEA) aprobado e implementado | F63: Nacional | G63: Nacional | H63: 2015 | J63: Sin datos | K63: Decreto Supremo aprobado. Responsable: MINEDU y MINAM | L63: Ministerio del Ambiente ( MINAM ) | M63: http://www.minam.gob.pe/?option=com_docman&Itemid=65 | P63: I. LINEAMIENTO DE POLITICA Mejorar la Gestión Ambiental.Nacional
A64: 19 | B64: Ambiental | C64: I. LINEAMIENTO DE POLITICA Mejorar la Gestión Ambiental. | D64: AGA.1.4 | E64: Plan Nacional de Educación Ambiental 2016-2021 (PLANEA) aprobado e implementado | F64: Nacional | G64: Nacional | H64: 2016 | J64: Sin datos | K64: Decreto Supremo aprobado. Responsable: MINEDU y MINAM | L64: Ministerio del Ambiente ( MINAM ) | M64: http://www.minam.gob.pe/?option=com_docman&Itemid=65 | P64: I. LINEAMIENTO DE POLITICA Mejorar la Gestión Ambiental.Nacional
A65: 19 | B65: Ambiental | C65: I. LINEAMIENTO DE POLITICA Mejorar la Gestión Ambiental. | D65: AGA.1.4 | E65: Plan Nacional de Educación Ambiental 2016-2021 (PLANEA) aprobado e implementado | F65: Nacional | G65: Nacional | H65: 2017 | J65: Sin datos | K65: Decreto Supremo aprobado. Responsable: MINEDU y MINAM | L65: Ministerio del Ambiente ( MINAM ) | M65: http://www.minam.gob.pe/?option=com_docman&Itemid=65 | P65: I. LINEAMIENTO DE POLITICA Mejorar la Gestión Ambiental.Nacional
A66: 19 | B66: Ambiental | C66: I. LINEAMIENTO DE POLITICA Mejorar la Gestión Ambiental. | D66: AGA.1.4 | E66: Plan Nacional de Educación Ambiental 2016-2021 (PLANEA) aprobado e implementado | F66: Nacional | G66: Nacional | H66: 2018 | J66: Sin datos | K66: Decreto Supremo aprobado. Responsable: MINEDU y MINAM | L66: Ministerio del Ambiente ( MINAM ) | M66: http://www.minam.gob.pe/?option=com_docman&Itemid=65 | P66: I. LINEAMIENTO DE POLITICA Mejorar la Gestión Ambiental.Nacional
A67: 19 | B67: Ambiental | C67: I. LINEAMIENTO DE POLITICA Mejorar la Gestión Ambiental. | D67: AGA.1.4 | E67: Plan Nacional de Educación Ambiental 2016-2021 (PLANEA) aprobado e implementado | F67: Nacional | G67: Nacional | H67: 2019 | J67: Sin datos | K67: Decreto Supremo aprobado. Responsable: MINEDU y MINAM | L67: Ministerio del Ambiente ( MINAM ) | M67: http://www.minam.gob.pe/?option=com_docman&Itemid=65 | P67: =CONCATENATE(C67,F67) -> I. LINEAMIENTO DE POLITICA Mejorar la Gestión Ambiental.Nacional
A68: 19 | B68: Ambiental | C68: I. LINEAMIENTO DE POLITICA Mejorar la Gestión Ambiental. | D68: AGA.1.4 | E68: Plan Nacional de Educación Ambiental 2016-2021 (PLANEA) aprobado e implementado | F68: Nacional | G68: Nacional | H68: 2020 | J68: Sin datos | K68: Decreto Supremo aprobado. Responsable: MINEDU y MINAM | L68: Ministerio del Ambiente ( MINAM ) | M68: http://www.minam.gob.pe/?option=com_docman&Itemid=65 | P68: I. LINEAMIENTO DE POLITICA Mejorar la Gestión Ambiental.Nacional
A69: 19 | B69: Ambiental | C69: I. LINEAMIENTO DE POLITICA Mejorar la Gestión Ambiental. | D69: AGA.1.4 | E69: Plan Nacional de Educación Ambiental 2016-2021 (PLANEA) aprobado e implementado | F69: Nacional | G69: Nacional | H69: 2021 | J69: Sin datos | K69: Decreto Supremo aprobado. Responsable: MINEDU y MINAM | L69: Ministerio del Ambiente ( MINAM ) | M69: http://www.minam.gob.pe/?option=com_docman&Itemid=65 | P69: I. LINEAMIENTO DE POLITICA Mejorar la Gestión Ambiental.Nacional
A70: 19 | B70: Ambiental | C70: I. LINEAMIENTO DE POLITICA Mejorar la Gestión Ambiental. | D70: AGA.1.4 | E70: Plan Nacional de Educación Ambiental 2016-2021 (PLANEA) aprobado e implementado | F70: Nacional | G70: Nacional | H70: 2022 | J70: Sin datos | K70: Decreto Supremo aprobado. Responsable: MINEDU y MINAM | L70: Ministerio del Ambiente ( MINAM ) | M70: http://www.minam.gob.pe/?option=com_docman&Itemid=65 | P70: I. LINEAMIENTO DE POLITICA Mejorar la Gestión Ambiental.Nacional
A71: 19 | B71: Ambiental | C71: I. LINEAMIENTO DE POLITICA Mejorar la Gestión Ambiental. | D71: AGA.1.4 | E71: Plan Nacional de Educación Ambiental 2016-2021 (PLANEA) aprobado e implementado | F71: Nacional | G71: Nacional | H71: 2023 | J71: Sin datos | K71: Decreto Supremo aprobado. Responsable: MINEDU y MINAM | L71: Ministerio del Ambiente ( MINAM ) | M71: http://www.minam.gob.pe/?option=com_docman&Itemid=65 | P71: I. LINEAMIENTO DE POLITICA Mejorar la Gestión Ambiental.Nacional
A72: 21 | B72: Ambiental | C72: I. LINEAMIENTO DE POLITICA Mejorar la Gestión Ambiental. | D72: AGA.1.5 | E72: Número de instancias participativas funcionando | F72: Comisiones Ambientales Municipales | G72: Nacional | H72: 2010 | J72: Comisiones Ambientales | K72: Sin datos | L72: Sin datos | M72: Sin datos | P72: I. LINEAMIENTO DE POLITICA Mejorar la Gestión Ambiental.Comisiones Ambientales Municipales
A73: 22 | B73: Ambiental | C73: I. LINEAMIENTO DE POLITICA Mejorar la Gestión Ambiental. | D73: AGA.1.5 | E73: Número de instancias participativas funcionando | F73: Comisiones Ambientales Municipales | G73: Nacional | H73: 2011 | I73: 382 | J73: Comisiones Ambientales | K73: Sin datos | L73: Sin datos | M73: Sin datos | P73: I. LINEAMIENTO DE POLITICA Mejorar la Gestión Ambiental.Comisiones Ambientales Municipales
A74: 23 | B74: Ambiental | C74: I. LINEAMIENTO DE POLITICA Mejorar la Gestión Ambiental. | D74: AGA.1.5 | E74: Número de instancias participativas funcionando | F74: Comisiones Ambientales Municipales | G74: Nacional | H74: 2012 | I74: 0 | J74: Comisiones Ambientales | K74: Sin datos | L74: Sin datos | M74: Sin datos | P74: I. LINEAMIENTO DE POLITICA Mejorar la Gestión Ambiental.Comisiones Ambientales Municipales
A75: 24 | B75: Ambiental | C75: I. LINEAMIENTO DE POLITICA Mejorar la Gestión Ambiental. | D75: AGA.1.5 | E75: Número de instancias participativas funcionando | F75: Comisiones Ambientales Municipales | G75: Nacional | H75: 2013 | I75: 0 | J75: Comisiones Ambientales | K75: Sin datos | L75: Sin datos | M75: Sin datos | P75: I. LINEAMIENTO DE POLITICA Mejorar la Gestión Ambiental.Comisiones Ambientales Municipales
A76: 23 | B76: Ambiental | C76: I. LINEAMIENTO DE POLITICA Mejorar la Gestión Ambiental. | D76: AGA.1.5 | E76: Número de instancias participativas funcionando | F76: Comisiones Ambientales Municipales | G76: Nacional | H76: 2014 | I76: 0 | J76: Comisiones Ambientales | K76: Sin datos | L76: Sin datos | M76: Sin datos | P76: I. LINEAMIENTO DE POLITICA Mejorar la Gestión Ambiental.Comisiones Ambientales Municipales
A77: 23 | B77: Ambiental | C77: I. LINEAMIENTO DE POLITICA Mejorar la Gestión Ambiental. | D77: AGA.1.5 | E77: Número de instancias participativas funcionando | F77: Comisiones Ambientales Municipales | G77: Nacional | H77: 2015 | J77: Comisiones Ambientales | K77: Sin datos | L77: Sin datos | M77: Sin datos | P77: I. LINEAMIENTO DE POLITICA Mejorar la Gestión Ambiental.Comisiones Ambientales Municipales
A78: 23 | B78: Ambiental | C78: I. LINEAMIENTO DE POLITICA Mejorar la Gestión Ambiental. | D78: AGA.1.5 | E78: Número de instancias participativas funcionando | F78: Comisiones Ambientales Municipales | G78: Nacional | H78: 2016 | J78: Comisiones Ambientales | K78: Sin datos | L78: Sin datos | M78: Sin datos | P78: I. LINEAMIENTO DE POLITICA Mejorar la Gestión Ambiental.Comisiones Ambientales Municipales
A79: 23 | B79: Ambiental | C79: I. LINEAMIENTO DE POLITICA Mejorar la Gestión Ambiental. | D79: AGA.1.5 | E79: Número de instancias participativas funcionando | F79: Comisiones Ambientales Municipales | G79: Nacional | H79: 2017 | J79: Comisiones Ambientales | K79: Sin datos | L79: Sin datos | M79: Sin datos | P79: I. LINEAMIENTO DE POLITICA Mejorar la Gestión Ambiental.Comisiones Ambientales Municipales
A80: 23 | B80: Ambiental | C80: I. LINEAMIENTO DE POLITICA Mejorar la Gestión Ambiental. | D80: AGA.1.5 | E80: Número de instancias participativas funcionando | F80: Comisiones Ambientales Municipales | G80: Nacional | H80: 2018 | J80: Comisiones Ambientales | K80: Sin datos | L80: Sin datos | M80: Sin datos | P80: I. LINEAMIENTO DE POLITICA Mejorar la Gestión Ambiental.Comisiones Ambientales Municipales
A81: 23 | B81: Ambiental | C81: I. LINEAMIENTO DE POLITICA Mejorar la Gestión Ambiental. | D81: AGA.1.5 | E81: Número de instancias participativas funcionando | F81: Comisiones Ambientales Municipales | G81: Nacional | H81: 2019 | J81: Comisiones Ambientales | K81: Sin datos | L81: Sin datos | M81: Sin datos | P81: I. LINEAMIENTO DE POLITICA Mejorar la Gestión Ambiental.Comisiones Ambientales Municipales
A82: 23 | B82: Ambiental | C82: I. LINEAMIENTO DE POLITICA Mejorar la Gestión Ambiental. | D82: AGA.1.5 | E82: Número de instancias participativas funcionando | F82: Comisiones Ambientales Municipales | G82: Nacional | H82: 2020 | J82: Comisiones Ambientales | K82: Sin datos | L82: Sin datos | M82: Sin datos | P82: I. LINEAMIENTO DE POLITICA Mejorar la Gestión Ambiental.Comisiones Ambientales Municipales
A83: 23 | B83: Ambiental | C83: I. LINEAMIENTO DE POLITICA Mejorar la Gestión Ambiental. | D83: AGA.1.5 | E83: Número de instancias participativas funcionando | F83: Comisiones Ambientales Municipales | G83: Nacional | H83: 2021 | J83: Comisiones Ambientales | K83: Sin datos | L83: Sin datos | M83: Sin datos | P83: I. LINEAMIENTO DE POLITICA Mejorar la Gestión Ambiental.Comisiones Ambientales Municipales
A84: 23 | B84: Ambiental | C84: I. LINEAMIENTO DE POLITICA Mejorar la Gestión Ambiental. | D84: AGA.1.5 | E84: Número de instancias participativas funcionando | F84: Comisiones Ambientales Municipales | G84: Nacional | H84: 2022 | J84: Comisiones Ambientales | K84: Sin datos | L84: Sin datos | M84: Sin datos | P84: I. LINEAMIENTO DE POLITICA Mejorar la Gestión Ambiental.Comisiones Ambientales Municipales
A85: 23 | B85: Ambiental | C85: I. LINEAMIENTO DE POLITICA Mejorar la Gestión Ambiental. | D85: AGA.1.5 | E85: Número de instancias participativas funcionando | F85: Comisiones Ambientales Municipales | G85: Nacional | H85: 2023 | J85: Comisiones Ambientales | K85: Sin datos | L85: Sin datos | M85: Sin datos | P85: I. LINEAMIENTO DE POLITICA Mejorar la Gestión Ambiental.Comisiones Ambientales Municipales
A86: 25 | B86: Ambiental | C86: I. LINEAMIENTO DE POLITICA Mejorar la Gestión Ambiental. | D86: AGA.1.5 | E86: Número de instancias participativas funcionando | F86: Comisiones Ambientales Regionales | G86: Nacional | H86: 2010 | J86: Comisiones Ambientales Regionales | K86: Ministerio de Economía y Finanzas - MEF / SIAF Consulta Amigable Enero 2019 | L86: Ministerio de Economía y Finanzas (MEF) | M86: http://apps5.mineco.gob.pe/transparencia/Navegador/default.aspx | P86: I. LINEAMIENTO DE POLITICA Mejorar la Gestión Ambiental.Comisiones Ambientales Regionales
A87: 26 | B87: Ambiental | C87: I. LINEAMIENTO DE POLITICA Mejorar la Gestión Ambiental. | D87: AGA.1.5 | E87: Número de instancias participativas funcionando | F87: Comisiones Ambientales Regionales | G87: Nacional | H87: 2011 | I87: 24 | J87: Comisiones Ambientales Regionales | K87: Ministerio de Economía y Finanzas - MEF / SIAF Consulta Amigable Enero 2019 | L87: Ministerio de Economía y Finanzas (MEF) | M87: http://apps5.mineco.gob.pe/transparencia/Navegador/default.aspx | P87: I. LINEAMIENTO DE POLITICA Mejorar la Gestión Ambiental.Comisiones Ambientales Regionales
A88: 27 | B88: Ambiental | C88: I. LINEAMIENTO DE POLITICA Mejorar la Gestión Ambiental. | D88: AGA.1.5 | E88: Número de instancias participativas funcionando | F88: Comisiones Ambientales Regionales | G88: Nacional | H88: 2012 | I88: 0 | J88: Comisiones Ambientales Regionales | K88: Ministerio de Economía y Finanzas - MEF / SIAF Consulta Amigable Enero 2019 | L88: Ministerio de Economía y Finanzas (MEF) | M88: http://apps5.mineco.gob.pe/transparencia/Navegador/default.aspx | P88: I. LINEAMIENTO DE POLITICA Mejorar la Gestión Ambiental.Comisiones Ambientales Regionales
A89: 28 | B89: Ambiental | C89: I. LINEAMIENTO DE POLITICA Mejorar la Gestión Ambiental. | D89: AGA.1.5 | E89: Número de instancias participativas funcionando | F89: Comisiones Ambientales Regionales | G89: Nacional | H89: 2013 | I89: 0 | J89: Comisiones Ambientales Regionales | K89: Ministerio de Economía y Finanzas - MEF / SIAF Consulta Amigable Enero 2019 | L89: Ministerio de Economía y Finanzas (MEF) | M89: http://apps5.mineco.gob.pe/transparencia/Navegador/default.aspx | P89: I. LINEAMIENTO DE POLITICA Mejorar la Gestión Ambiental.Comisiones Ambientales Regionales
A90: 28 | B90: Ambiental | C90: I. LINEAMIENTO DE POLITICA Mejorar la Gestión Ambiental. | D90: AGA.1.5 | E90: Número de instancias participativas funcionando | F90: Comisiones Ambientales Regionales | G90: Nacional | H90: 2014 | I90: 0 | J90: Comisiones Ambientales Regionales | K90: Ministerio de Economía y Finanzas - MEF / SIAF Consulta Amigable Enero 2019 | L90: Ministerio de Economía y Finanzas (MEF) | M90: http://apps5.mineco.gob.pe/transparencia/Navegador/default.aspx | P90: I. LINEAMIENTO DE POLITICA Mejorar la Gestión Ambiental.Comisiones Ambientales Regionales
A91: 28 | B91: Ambiental | C91: I. LINEAMIENTO DE POLITICA Mejorar la Gestión Ambiental. | D91: AGA.1.5 | E91: Número de instancias participativas funcionando | F91: Comisiones Ambientales Regionales | G91: Nacional | H91: 2015 | J91: Comisiones Ambientales Regionales | K91: Ministerio de Economía y Finanzas - MEF / SIAF Consulta Amigable Enero 2019 | L91: Ministerio de Economía y Finanzas (MEF) | M91: http://apps5.mineco.gob.pe/transparencia/Navegador/default.aspx | P91: I. LINEAMIENTO DE POLITICA Mejorar la Gestión Ambiental.Comisiones Ambientales Regionales
A92: 28 | B92: Ambiental | C92: I. LINEAMIENTO DE POLITICA Mejorar la Gestión Ambiental. | D92: AGA.1.5 | E92: Número de instancias participativas funcionando | F92: Comisiones Ambientales Regionales | G92: Nacional | H92: 2016 | J92: Comisiones Ambientales Regionales | K92: Ministerio de Economía y Finanzas - MEF / SIAF Consulta Amigable Enero 2019 | L92: Ministerio de Economía y Finanzas (MEF) | M92: http://apps5.mineco.gob.pe/transparencia/Navegador/default.aspx | P92: I. LINEAMIENTO DE POLITICA Mejorar la Gestión Ambiental.Comisiones Ambientales Regionales
A93: 28 | B93: Ambiental | C93: I. LINEAMIENTO DE POLITICA Mejorar la Gestión Ambiental. | D93: AGA.1.5 | E93: Número de instancias participativas funcionando | F93: Comisiones Ambientales Regionales | G93: Nacional | H93: 2017 | J93: Comisiones Ambientales Regionales | K93: Ministerio de Economía y Finanzas - MEF / SIAF Consulta Amigable Enero 2019 | L93: Ministerio de Economía y Finanzas (MEF) | M93: http://apps5.mineco.gob.pe/transparencia/Navegador/default.aspx | P93: I. LINEAMIENTO DE POLITICA Mejorar la Gestión Ambiental.Comisiones Ambientales Regionales
A94: 28 | B94: Ambiental | C94: I. LINEAMIENTO DE POLITICA Mejorar la Gestión Ambiental. | D94: AGA.1.5 | E94: Número de instancias participativas funcionando | F94: Comisiones Ambientales Regionales | G94: Nacional | H94: 2018 | J94: Comisiones Ambientales Regionales | K94: Ministerio de Economía y Finanzas - MEF / SIAF Consulta Amigable Enero 2019 | L94: Ministerio de Economía y Finanzas (MEF) | M94: http://apps5.mineco.gob.pe/transparencia/Navegador/default.aspx | P94: I. LINEAMIENTO DE POLITICA Mejorar la Gestión Ambiental.Comisiones Ambientales Regionales
A95: 28 | B95: Ambiental | C95: I. LINEAMIENTO DE POLITICA Mejorar la Gestión Ambiental. | D95: AGA.1.5 | E95: Número de instancias participativas funcionando | F95: Comisiones Ambientales Regionales | G95: Nacional | H95: 2019 | J95: Comisiones Ambientales Regionales | K95: Ministerio de Economía y Finanzas - MEF / SIAF Consulta Amigable Enero 2019 | L95: Ministerio de Economía y Finanzas (MEF) | M95: http://apps5.mineco.gob.pe/transparencia/Navegador/default.aspx | P95: I. LINEAMIENTO DE POLITICA Mejorar la Gestión Ambiental.Comisiones Ambientales Regionales
A96: 28 | B96: Ambiental | C96: I. LINEAMIENTO DE POLITICA Mejorar la Gestión Ambiental. | D96: AGA.1.5 | E96: Número de instancias participativas funcionando | F96: Comisiones Ambientales Regionales | G96: Nacional | H96: 2020 | J96: Comisiones Ambientales Regionales | K96: Ministerio de Economía y Finanzas - MEF / SIAF Consulta Amigable Enero 2019 | L96: Ministerio de Economía y Finanzas (MEF) | M96: http://apps5.mineco.gob.pe/transparencia/Navegador/default.aspx | P96: I. LINEAMIENTO DE POLITICA Mejorar la Gestión Ambiental.Comisiones Ambientales Regionales
A97: 28 | B97: Ambiental | C97: I. LINEAMIENTO DE POLITICA Mejorar la Gestión Ambiental. | D97: AGA.1.5 | E97: Número de instancias participativas funcionando | F97: Comisiones Ambientales Regionales | G97: Nacional | H97: 2021 | J97: Comisiones Ambientales Regionales | K97: Ministerio de Economía y Finanzas - MEF / SIAF Consulta Amigable Enero 2019 | L97: Ministerio de Economía y Finanzas (MEF) | M97: http://apps5.mineco.gob.pe/transparencia/Navegador/default.aspx | P97: I. LINEAMIENTO DE POLITICA Mejorar la Gestión Ambiental.Comisiones Ambientales Regionales
A98: 28 | B98: Ambiental | C98: I. LINEAMIENTO DE POLITICA Mejorar la Gestión Ambiental. | D98: AGA.1.5 | E98: Número de instancias participativas funcionando | F98: Comisiones Ambientales Regionales | G98: Nacional | H98: 2022 | J98: Comisiones Ambientales Regionales | K98: Ministerio de Economía y Finanzas - MEF / SIAF Consulta Amigable Enero 2019 | L98: Ministerio de Economía y Finanzas (MEF) | M98: http://apps5.mineco.gob.pe/transparencia/Navegador/default.aspx | P98: I. LINEAMIENTO DE POLITICA Mejorar la Gestión Ambiental.Comisiones Ambientales Regionales
A99: 28 | B99: Ambiental | C99: I. LINEAMIENTO DE POLITICA Mejorar la Gestión Ambiental. | D99: AGA.1.5 | E99: Número de instancias participativas funcionando | F99: Comisiones Ambientales Regionales | G99: Nacional | H99: 2023 | J99: Comisiones Ambientales Regionales | K99: Ministerio de Economía y Finanzas - MEF / SIAF Consulta Amigable Enero 2019 | L99: Ministerio de Economía y Finanzas (MEF) | M99: http://apps5.mineco.gob.pe/transparencia/Navegador/default.aspx | P99: I. LINEAMIENTO DE POLITICA Mejorar la Gestión Ambiental.Comisiones Ambientales Regionales
A100: 29 | B100: Ambiental | C100: I. LINEAMIENTO DE POLITICA Mejorar la Gestión Ambiental. | D100: AGA.1.5 | E100: Número de instancias participativas funcionando | F100: Comisiones Nacionales Instaladas | G100: Nacional | H100: 2010 | J100: Comisiones Nacionales | K100: Ministerio del Ambiente ( MINAM ) | L100: Ministerio del Ambiente ( MINAM ) | M100: http://www.minam.gob.pe/?option=com_docman&Itemid=65 | P100: I. LINEAMIENTO DE POLITICA Mejorar la Gestión Ambiental.Comisiones Nacionales Instaladas
A101: 30 | B101: Ambiental | C101: I. LINEAMIENTO DE POLITICA Mejorar la Gestión Ambiental. | D101: AGA.1.5 | E101: Número de instancias participativas funcionando | F101: Comisiones Nacionales Instaladas | G101: Nacional | H101: 2011 | I101: 4 | J101: Comisiones Nacionales | K101: Ministerio del Ambiente ( MINAM ) | L101: Ministerio del Ambiente ( MINAM ) | M101: http://www.minam.gob.pe/?option=com_docman&Itemid=65 | P101: I. LINEAMIENTO DE POLITICA Mejorar la Gestión Ambiental.Comisiones Nacionales Instaladas
A102: 31 | B102: Ambiental | C102: I. LINEAMIENTO DE POLITICA Mejorar la Gestión Ambiental. | D102: AGA.1.5 | E102: Número de instancias participativas funcionando | F102: Comisiones Nacionales Instaladas | G102: Nacional | H102: 2012 | I102: 0 | J102: Comisiones Nacionales | K102: Ministerio del Ambiente ( MINAM ) | L102: Ministerio del Ambiente ( MINAM ) | M102: http://www.minam.gob.pe/?option=com_docman&Itemid=65 | P102: I. LINEAMIENTO DE POLITICA Mejorar la Gestión Ambiental.Comisiones Nacionales Instaladas
A103: 32 | B103: Ambiental | C103: I. LINEAMIENTO DE POLITICA Mejorar la Gestión Ambiental. | D103: AGA.1.5 | E103: Número de instancias participativas funcionando | F103: Comisiones Nacionales Instaladas | G103: Nacional | H103: 2013 | I103: 0 | J103: Comisiones Nacionales | K103: Ministerio del Ambiente ( MINAM ) | L103: Ministerio del Ambiente ( MINAM ) | M103: http://www.minam.gob.pe/?option=com_docman&Itemid=65 | P103: I. LINEAMIENTO DE POLITICA Mejorar la Gestión Ambiental.Comisiones Nacionales Instaladas
A104: 32 | B104: Ambiental | C104: I. LINEAMIENTO DE POLITICA Mejorar la Gestión Ambiental. | D104: AGA.1.5 | E104: Número de instancias participativas funcionando | F104: Comisiones Nacionales Instaladas | G104: Nacional | H104: 2014 | I104: 0 | J104: Comisiones Nacionales | K104: Ministerio del Ambiente ( MINAM ) | L104: Ministerio del Ambiente ( MINAM ) | M104: http://www.minam.gob.pe/?option=com_docman&Itemid=65 | P104: I. LINEAMIENTO DE POLITICA Mejorar la Gestión Ambiental.Comisiones Nacionales Instaladas
A105: 32 | B105: Ambiental | C105: I. LINEAMIENTO DE POLITICA Mejorar la Gestión Ambiental. | D105: AGA.1.5 | E105: Número de instancias participativas funcionando | F105: Comisiones Nacionales Instaladas | G105: Nacional | H105: 2015 | J105: Comisiones Nacionales | K105: Ministerio del Ambiente ( MINAM ) | L105: Ministerio del Ambiente ( MINAM ) | M105: http://www.minam.gob.pe/?option=com_docman&Itemid=65 | P105: I. LINEAMIENTO DE POLITICA Mejorar la Gestión Ambiental.Comisiones Nacionales Instaladas
A106: 32 | B106: Ambiental | C106: I. LINEAMIENTO DE POLITICA Mejorar la Gestión Ambiental. | D106: AGA.1.5 | E106: Número de instancias participativas funcionando | F106: Comisiones Nacionales Instaladas | G106: Nacional | H106: 2016 | J106: Comisiones Nacionales | K106: Ministerio del Ambiente ( MINAM ) | L106: Ministerio del Ambiente ( MINAM ) | M106: http://www.minam.gob.pe/?option=com_docman&Itemid=65 | P106: I. LINEAMIENTO DE POLITICA Mejorar la Gestión Ambiental.Comisiones Nacionales Instaladas
A107: 32 | B107: Ambiental | C107: I. LINEAMIENTO DE POLITICA Mejorar la Gestión Ambiental. | D107: AGA.1.5 | E107: Número de instancias participativas funcionando | F107: Comisiones Nacionales Instaladas | G107: Nacional | H107: 2017 | J107: Comisiones Nacionales | K107: Ministerio del Ambiente ( MINAM ) | L107: Ministerio del Ambiente ( MINAM ) | M107: http://www.minam.gob.pe/?option=com_docman&Itemid=65 | P107: I. LINEAMIENTO DE POLITICA Mejorar la Gestión Ambiental.Comisiones Nacionales Instaladas
A108: 32 | B108: Ambiental | C108: I. LINEAMIENTO DE POLITICA Mejorar la Gestión Ambiental. | D108: AGA.1.5 | E108: Número de instancias participativas funcionando | F108: Comisiones Nacionales Instaladas | G108: Nacional | H108: 2018 | J108: Comisiones Nacionales | K108: Ministerio del Ambiente ( MINAM ) | L108: Ministerio del Ambiente ( MINAM ) | M108: http://www.minam.gob.pe/?option=com_docman&Itemid=65 | P108: I. LINEAMIENTO DE POLITICA Mejorar la Gestión Ambiental.Comisiones Nacionales Instaladas
A109: 32 | B109: Ambiental | C109: I. LINEAMIENTO DE POLITICA Mejorar la Gestión Ambiental. | D109: AGA.1.5 | E109: Número de instancias participativas funcionando | F109: Comisiones Nacionales Instaladas | G109: Nacional | H109: 2019 | J109: Comisiones Nacionales | K109: Ministerio del Ambiente ( MINAM ) | L109: Ministerio del Ambiente ( MINAM ) | M109: http://www.minam.gob.pe/?option=com_docman&Itemid=65 | P109: I. LINEAMIENTO DE POLITICA Mejorar la Gestión Ambiental.Comisiones Nacionales Instaladas
A110: 32 | B110: Ambiental | C110: I. LINEAMIENTO DE POLITICA Mejorar la Gestión Ambiental. | D110: AGA.1.5 | E110: Número de instancias participativas funcionando | F110: Comisiones Nacionales Instaladas | G110: Nacional | H110: 2020 | J110: Comisiones Nacionales | K110: Ministerio del Ambiente ( MINAM ) | L110: Ministerio del Ambiente ( MINAM ) | M110: http://www.minam.gob.pe/?option=com_docman&Itemid=65 | P110: I. LINEAMIENTO DE POLITICA Mejorar la Gestión Ambiental.Comisiones Nacionales Instaladas
A111: 32 | B111: Ambiental | C111: I. LINEAMIENTO DE POLITICA Mejorar la Gestión Ambiental. | D111: AGA.1.5 | E111: Número de instancias participativas funcionando | F111: Comisiones Nacionales Instaladas | G111: Nacional | H111: 2021 | J111: Comisiones Nacionales | K111: Ministerio del Ambiente ( MINAM ) | L111: Ministerio del Ambiente ( MINAM ) | M111: http://www.minam.gob.pe/?option=com_docman&Itemid=65 | P111: I. LINEAMIENTO DE POLITICA Mejorar la Gestión Ambiental.Comisiones Nacionales Instaladas
A112: 32 | B112: Ambiental | C112: I. LINEAMIENTO DE POLITICA Mejorar la Gestión Ambiental. | D112: AGA.1.5 | E112: Número de instancias participativas funcionando | F112: Comisiones Nacionales Instaladas | G112: Nacional | H112: 2022 | J112: Comisiones Nacionales | K112: Ministerio del Ambiente ( MINAM ) | L112: Ministerio del Ambiente ( MINAM ) | M112: http://www.minam.gob.pe/?option=com_docman&Itemid=65 | P112: I. LINEAMIENTO DE POLITICA Mejorar la Gestión Ambiental.Comisiones Nacionales Instaladas
A113: 32 | B113: Ambiental | C113: I. LINEAMIENTO DE POLITICA Mejorar la Gestión Ambiental. | D113: AGA.1.5 | E113: Número de instancias participativas funcionando | F113: Comisiones Nacionales Instaladas | G113: Nacional | H113: 2023 | J113: Comisiones Nacionales | K113: Ministerio del Ambiente ( MINAM ) | L113: Ministerio del Ambiente ( MINAM ) | M113: http://www.minam.gob.pe/?option=com_docman&Itemid=65 | P113: I. LINEAMIENTO DE POLITICA Mejorar la Gestión Ambiental.Comisiones Nacionales Instaladas
A114: 33 | B114: Ambiental | C114: I. LINEAMIENTO DE POLITICA Mejorar la Gestión Ambiental. | D114: AGA.1.6 | E114: Monto del Presupuesto público ejecutado en la función ambiental (instancias, planes, programas y proyectos de gestión ambiental en los tres niveles de gobierno) - Millones de Soles | F114: Gasto Corriente | G114: Nacional | H114: 2010 | J114: Gasto | K114: Ministerio del Ambiente ( MINAM )/ Dirección General de Políticas, Normas e Instrumentos de Gestión Ambiental | L114: Ministerio del Ambiente ( MINAM ) | M114: http://www.minam.gob.pe/?option=com_docman&Itemid=65 | P114: I. LINEAMIENTO DE POLITICA Mejorar la Gestión Ambiental.Gasto Corriente
A115: 34 | B115: Ambiental | C115: I. LINEAMIENTO DE POLITICA Mejorar la Gestión Ambiental. | D115: AGA.1.6 | E115: Monto del Presupuesto público ejecutado en la función ambiental (instancias, planes, programas y proyectos de gestión ambiental en los tres niveles de gobierno) - Millones de Soles | F115: Gasto Corriente | G115: Nacional | H115: 2011 | I115: 2119 | J115: Gasto | K115: Ministerio del Ambiente ( MINAM )/ Dirección General de Políticas, Normas e Instrumentos de Gestión Ambiental | L115: Ministerio del Ambiente ( MINAM ) | M115: http://www.minam.gob.pe/?option=com_docman&Itemid=65 | P115: I. LINEAMIENTO DE POLITICA Mejorar la Gestión Ambiental.Gasto Corriente
A116: 35 | B116: Ambiental | C116: I. LINEAMIENTO DE POLITICA Mejorar la Gestión Ambiental. | D116: AGA.1.6 | E116: Monto del Presupuesto público ejecutado en la función ambiental (instancias, planes, programas y proyectos de gestión ambiental en los tres niveles de gobierno) - Millones de Soles | F116: Gasto Corriente | G116: Nacional | H116: 2012 | I116: 2356 | J116: Gasto | K116: Ministerio del Ambiente ( MINAM )/ Dirección General de Políticas, Normas e Instrumentos de Gestión Ambiental | L116: Ministerio del Ambiente ( MINAM ) | M116: http://www.minam.gob.pe/?option=com_docman&Itemid=65 | P116: I. LINEAMIENTO DE POLITICA Mejorar la Gestión Ambiental.Gasto Corriente
A117: 36 | B117: Ambiental | C117: I. LINEAMIENTO DE POLITICA Mejorar la Gestión Ambiental. | D117: AGA.1.6 | E117: Monto del Presupuesto público ejecutado en la función ambiental (instancias, planes, programas y proyectos de gestión ambiental en los tres niveles de gobierno) - Millones de Soles | F117: Gasto Corriente | G117: Nacional | H117: 2013 | I117: 2465 | J117: Gasto | K117: Ministerio del Ambiente ( MINAM )/ Dirección General de Políticas, Normas e Instrumentos de Gestión Ambiental | L117: Ministerio del Ambiente ( MINAM ) | M117: http://www.minam.gob.pe/?option=com_docman&Itemid=65 | P117: I. LINEAMIENTO DE POLITICA Mejorar la Gestión Ambiental.Gasto Corriente
A118: 36 | B118: Ambiental | C118: I. LINEAMIENTO DE POLITICA Mejorar la Gestión Ambiental. | D118: AGA.1.6 | E118: Monto del Presupuesto público ejecutado en la función ambiental (instancias, planes, programas y proyectos de gestión ambiental en los tres niveles de gobierno) - Millones de Soles | F118: Gasto Corriente | G118: Nacional | H118: 2014 | I118: 2670 | J118: Gasto | K118: Ministerio del Ambiente ( MINAM )/ Dirección General de Políticas, Normas e Instrumentos de Gestión Ambiental | L118: Ministerio del Ambiente ( MINAM ) | M118: http://www.minam.gob.pe/?option=com_docman&Itemid=65 | P118: I. LINEAMIENTO DE POLITICA Mejorar la Gestión Ambiental.Gasto Corriente
A119: 36 | B119: Ambiental | C119: I. LINEAMIENTO DE POLITICA Mejorar la Gestión Ambiental. | D119: AGA.1.6 | E119: Monto del Presupuesto público ejecutado en la función ambiental (instancias, planes, programas y proyectos de gestión ambiental en los tres niveles de gobierno) - Millones de Soles | F119: Gasto Corriente | G119: Nacional | H119: 2015 | J119: Gasto | K119: Ministerio del Ambiente ( MINAM )/ Dirección General de Políticas, Normas e Instrumentos de Gestión Ambiental | L119: Ministerio del Ambiente ( MINAM ) | M119: http://www.minam.gob.pe/?option=com_docman&Itemid=65 | P119: I. LINEAMIENTO DE POLITICA Mejorar la Gestión Ambiental.Gasto Corriente
A120: 36 | B120: Ambiental | C120: I. LINEAMIENTO DE POLITICA Mejorar la Gestión Ambiental. | D120: AGA.1.6 | E120: Monto del Presupuesto público ejecutado en la función ambiental (instancias, planes, programas y proyectos de gestión ambiental en los tres niveles de gobierno) - Millones de Soles | F120: Gasto Corriente | G120: Nacional | H120: 2016 | I120: 2356.2 | J120: Gasto | K120: Ministerio del Ambiente ( MINAM )/ Dirección General de Políticas, Normas e Instrumentos de Gestión Ambiental | L120: Ministerio del Ambiente ( MINAM ) | M120: http://www.minam.gob.pe/?option=com_docman&Itemid=65 | P120: I. LINEAMIENTO DE POLITICA Mejorar la Gestión Ambiental.Gasto Corriente
A121: 36 | B121: Ambiental | C121: I. LINEAMIENTO DE POLITICA Mejorar la Gestión Ambiental. | D121: AGA.1.6 | E121: Monto del Presupuesto público ejecutado en la función ambiental (instancias, planes, programas y proyectos de gestión ambiental en los tres niveles de gobierno) - Millones de Soles | F121: Gasto Corriente | G121: Nacional | H121: 2017 | I121: 2565.5 | J121: Gasto | K121: Ministerio del Ambiente ( MINAM )/ Dirección General de Políticas, Normas e Instrumentos de Gestión Ambiental | L121: Ministerio del Ambiente ( MINAM ) | M121: http://www.minam.gob.pe/?option=com_docman&Itemid=65 | P121: I. LINEAMIENTO DE POLITICA Mejorar la Gestión Ambiental.Gasto Corriente
A122: 36 | B122: Ambiental | C122: I. LINEAMIENTO DE POLITICA Mejorar la Gestión Ambiental. | D122: AGA.1.6 | E122: Monto del Presupuesto público ejecutado en la función ambiental (instancias, planes, programas y proyectos de gestión ambiental en los tres niveles de gobierno) - Millones de Soles | F122: Gasto Corriente | G122: Nacional | H122: 2018 | I122: 2695.2 | J122: Gasto | K122: Ministerio del Ambiente ( MINAM )/ Dirección General de Políticas, Normas e Instrumentos de Gestión Ambiental | L122: Ministerio del Ambiente ( MINAM ) | M122: http://www.minam.gob.pe/?option=com_docman&Itemid=65 | P122: I. LINEAMIENTO DE POLITICA Mejorar la Gestión Ambiental.Gasto Corriente
A123: 36 | B123: Ambiental | C123: I. LINEAMIENTO DE POLITICA Mejorar la Gestión Ambiental. | D123: AGA.1.6 | E123: Monto del Presupuesto público ejecutado en la función ambiental (instancias, planes, programas y proyectos de gestión ambiental en los tres niveles de gobierno) - Millones de Soles | F123: Gasto Corriente | G123: Nacional | H123: 2019 | I123: 2654.6 | J123: Gasto | K123: Ministerio del Ambiente ( MINAM )/ Dirección General de Políticas, Normas e Instrumentos de Gestión Ambiental | L123: Ministerio del Ambiente ( MINAM ) | M123: http://www.minam.gob.pe/?option=com_docman&Itemid=65 | P123: I. LINEAMIENTO DE POLITICA Mejorar la Gestión Ambiental.Gasto Corriente
A124: 36 | B124: Ambiental | C124: I. LINEAMIENTO DE POLITICA Mejorar la Gestión Ambiental. | D124: AGA.1.6 | E124: Monto del Presupuesto público ejecutado en la función ambiental (instancias, planes, programas y proyectos de gestión ambiental en los tres niveles de gobierno) - Millones de Soles | F124: Gasto Corriente | G124: Nacional | H124: 2020 | I124: 2841.2 | J124: Gasto | K124: Ministerio del Ambiente ( MINAM )/ Dirección General de Políticas, Normas e Instrumentos de Gestión Ambiental | L124: Ministerio del Ambiente ( MINAM ) | M124: http://www.minam.gob.pe/?option=com_docman&Itemid=65 | P124: I. LINEAMIENTO DE POLITICA Mejorar la Gestión Ambiental.Gasto Corriente
A125: 36 | B125: Ambiental | C125: I. LINEAMIENTO DE POLITICA Mejorar la Gestión Ambiental. | D125: AGA.1.6 | E125: Monto del Presupuesto público ejecutado en la función ambiental (instancias, planes, programas y proyectos de gestión ambiental en los tres niveles de gobierno) - Millones de Soles | F125: Gasto Corriente | G125: Nacional | H125: 2021 | I125: 3040.1 | J125: Gasto | K125: Ministerio del Ambiente ( MINAM )/ Dirección General de Políticas, Normas e Instrumentos de Gestión Ambiental | L125: Ministerio del Ambiente ( MINAM ) | M125: http://www.minam.gob.pe/?option=com_docman&Itemid=65 | P125: I. LINEAMIENTO DE POLITICA Mejorar la Gestión Ambiental.Gasto Corriente
A126: 36 | B126: Ambiental | C126: I. LINEAMIENTO DE POLITICA Mejorar la Gestión Ambiental. | D126: AGA.1.6 | E126: Monto del Presupuesto público ejecutado en la función ambiental (instancias, planes, programas y proyectos de gestión ambiental en los tres niveles de gobierno) - Millones de Soles | F126: Gasto Corriente | G126: Nacional | H126: 2022 | J126: Gasto | K126: Ministerio del Ambiente ( MINAM )/ Dirección General de Políticas, Normas e Instrumentos de Gestión Ambiental | L126: Ministerio del Ambiente ( MINAM ) | M126: http://www.minam.gob.pe/?option=com_docman&Itemid=65 | P126: I. LINEAMIENTO DE POLITICA Mejorar la Gestión Ambiental.Gasto Corriente
A127: 36 | B127: Ambiental | C127: I. LINEAMIENTO DE POLITICA Mejorar la Gestión Ambiental. | D127: AGA.1.6 | E127: Monto del Presupuesto público ejecutado en la función ambiental (instancias, planes, programas y proyectos de gestión ambiental en los tres niveles de gobierno) - Millones de Soles | F127: Gasto Corriente | G127: Nacional | H127: 2023 | J127: Gasto | K127: Ministerio del Ambiente ( MINAM )/ Dirección General de Políticas, Normas e Instrumentos de Gestión Ambiental | L127: Ministerio del Ambiente ( MINAM ) | M127: http://www.minam.gob.pe/?option=com_docman&Itemid=65 | P127: I. LINEAMIENTO DE POLITICA Mejorar la Gestión Ambiental.Gasto Corriente
A128: 37 | B128: Ambiental | C128: I. LINEAMIENTO DE POLITICA Mejorar la Gestión Ambiental. | D128: AGA.1.6 | E128: Monto del Presupuesto público ejecutado en la función ambiental (instancias, planes, programas y proyectos de gestión ambiental en los tres niveles de gobierno) - Millones de Soles | F128: Gasto de Inversion | G128: Nacional | H128: 2010 | J128: Gasto | K128: Instituto Nacional de Estadística e Informática (INEI) - Registro Nacional de Municipalidades (RENAMU) | L128: Instituto Nacional de Estadística e Informática (INEI) - Registro Nacional de Municipalidades (RENAMU) | M128: https://www.inei.gob.pe/media/MenuRecursivo/publicaciones_digitales/Est/Lib1474/libro.pdf | P128: I. LINEAMIENTO DE POLITICA Mejorar la Gestión Ambiental.Gasto de Inversion
A129: 38 | B129: Ambiental | C129: I. LINEAMIENTO DE POLITICA Mejorar la Gestión Ambiental. | D129: AGA.1.6 | E129: Monto del Presupuesto público ejecutado en la función ambiental (instancias, planes, programas y proyectos de gestión ambiental en los tres niveles de gobierno) - Millones de Soles | F129: Gasto de Inversion | G129: Nacional | H129: 2011 | I129: 424 | J129: Gasto | K129: Instituto Nacional de Estadística e Informática (INEI) - Registro Nacional de Municipalidades (RENAMU) | L129: Instituto Nacional de Estadística e Informática (INEI) - Registro Nacional de Municipalidades (RENAMU) | M129: https://www.inei.gob.pe/media/MenuRecursivo/publicaciones_digitales/Est/Lib1474/libro.pdf | P129: I. LINEAMIENTO DE POLITICA Mejorar la Gestión Ambiental.Gasto de Inversion
A130: 39 | B130: Ambiental | C130: I. LINEAMIENTO DE POLITICA Mejorar la Gestión Ambiental. | D130: AGA.1.6 | E130: Monto del Presupuesto público ejecutado en la función ambiental (instancias, planes, programas y proyectos de gestión ambiental en los tres niveles de gobierno) - Millones de Soles | F130: Gasto de Inversion | G130: Nacional | H130: 2012 | I130: 427 | J130: Gasto | K130: Instituto Nacional de Estadística e Informática (INEI) - Registro Nacional de Municipalidades (RENAMU) | L130: Instituto Nacional de Estadística e Informática (INEI) - Registro Nacional de Municipalidades (RENAMU) | M130: https://www.inei.gob.pe/media/MenuRecursivo/publicaciones_digitales/Est/Lib1474/libro.pdf | P130: I. LINEAMIENTO DE POLITICA Mejorar la Gestión Ambiental.Gasto de Inversion
A131: 40 | B131: Ambiental | C131: I. LINEAMIENTO DE POLITICA Mejorar la Gestión Ambiental. | D131: AGA.1.6 | E131: Monto del Presupuesto público ejecutado en la función ambiental (instancias, planes, programas y proyectos de gestión ambiental en los tres niveles de gobierno) - Millones de Soles | F131: Gasto de Inversion | G131: Nacional | H131: 2013 | I131: 458 | J131: Gasto | K131: Instituto Nacional de Estadística e Informática (INEI) - Registro Nacional de Municipalidades (RENAMU) | L131: Instituto Nacional de Estadística e Informática (INEI) - Registro Nacional de Municipalidades (RENAMU) | M131: https://www.inei.gob.pe/media/MenuRecursivo/publicaciones_digitales/Est/Lib1474/libro.pdf | P131: =CONCATENATE(C131,F131) -> I. LINEAMIENTO DE POLITICA Mejorar la Gestión Ambiental.Gasto de Inversion
A132: 40 | B132: Ambiental | C132: I. LINEAMIENTO DE POLITICA Mejorar la Gestión Ambiental. | D132: AGA.1.6 | E132: Monto del Presupuesto público ejecutado en la función ambiental (instancias, planes, programas y proyectos de gestión ambiental en los tres niveles de gobierno) - Millones de Soles | F132: Gasto de Inversion | G132: Nacional | H132: 2014 | I132: 659 | J132: Gasto | K132: Instituto Nacional de Estadística e Informática (INEI) - Registro Nacional de Municipalidades (RENAMU) | L132: Instituto Nacional de Estadística e Informática (INEI) - Registro Nacional de Municipalidades (RENAMU) | M132: https://www.inei.gob.pe/media/MenuRecursivo/publicaciones_digitales/Est/Lib1474/libro.pdf | P132: I. LINEAMIENTO DE POLITICA Mejorar la Gestión Ambiental.Gasto de Inversion
A133: 40 | B133: Ambiental | C133: I. LINEAMIENTO DE POLITICA Mejorar la Gestión Ambiental. | D133: AGA.1.6 | E133: Monto del Presupuesto público ejecutado en la función ambiental (instancias, planes, programas y proyectos de gestión ambiental en los tres niveles de gobierno) - Millones de Soles | F133: Gasto de Inversion | G133: Nacional | H133: 2015 | J133: Gasto | K133: Instituto Nacional de Estadística e Informática (INEI) - Registro Nacional de Municipalidades (RENAMU) | L133: Instituto Nacional de Estadística e Informática (INEI) - Registro Nacional de Municipalidades (RENAMU) | M133: https://www.inei.gob.pe/media/MenuRecursivo/publicaciones_digitales/Est/Lib1474/libro.pdf | P133: I. LINEAMIENTO DE POLITICA Mejorar la Gestión Ambiental.Gasto de Inversion
A134: 40 | B134: Ambiental | C134: I. LINEAMIENTO DE POLITICA Mejorar la Gestión Ambiental. | D134: AGA.1.6 | E134: Monto del Presupuesto público ejecutado en la función ambiental (instancias, planes, programas y proyectos de gestión ambiental en los tres niveles de gobierno) - Millones de Soles | F134: Gasto de Inversion | G134: Nacional | H134: 2016 | I134: 427.3 | J134: Gasto | K134: Instituto Nacional de Estadística e Informática (INEI) - Registro Nacional de Municipalidades (RENAMU) | L134: Instituto Nacional de Estadística e Informática (INEI) - Registro Nacional de Municipalidades (RENAMU) | M134: https://www.inei.gob.pe/media/MenuRecursivo/publicaciones_digitales/Est/Lib1474/libro.pdf | P134: I. LINEAMIENTO DE POLITICA Mejorar la Gestión Ambiental.Gasto de Inversion
A135: 40 | B135: Ambiental | C135: I. LINEAMIENTO DE POLITICA Mejorar la Gestión Ambiental. | D135: AGA.1.6 | E135: Monto del Presupuesto público ejecutado en la función ambiental (instancias, planes, programas y proyectos de gestión ambiental en los tres niveles de gobierno) - Millones de Soles | F135: Gasto de Inversion | G135: Nacional | H135: 2017 | I135: 458 | J135: Gasto | K135: Instituto Nacional de Estadística e Informática (INEI) - Registro Nacional de Municipalidades (RENAMU) | L135: Instituto Nacional de Estadística e Informática (INEI) - Registro Nacional de Municipalidades (RENAMU) | M135: https://www.inei.gob.pe/media/MenuRecursivo/publicaciones_digitales/Est/Lib1474/libro.pdf | P135: I. LINEAMIENTO DE POLITICA Mejorar la Gestión Ambiental.Gasto de Inversion
A136: 40 | B136: Ambiental | C136: I. LINEAMIENTO DE POLITICA Mejorar la Gestión Ambiental. | D136: AGA.1.6 | E136: Monto del Presupuesto público ejecutado en la función ambiental (instancias, planes, programas y proyectos de gestión ambiental en los tres niveles de gobierno) - Millones de Soles | F136: Gasto de Inversion | G136: Nacional | H136: 2018 | I136: 658.9 | J136: Gasto | K136: Instituto Nacional de Estadística e Informática (INEI) - Registro Nacional de Municipalidades (RENAMU) | L136: Instituto Nacional de Estadística e Informática (INEI) - Registro Nacional de Municipalidades (RENAMU) | M136: https://www.inei.gob.pe/media/MenuRecursivo/publicaciones_digitales/Est/Lib1474/libro.pdf | P136: I. LINEAMIENTO DE POLITICA Mejorar la Gestión Ambiental.Gasto de Inversion
A137: 40 | B137: Ambiental | C137: I. LINEAMIENTO DE POLITICA Mejorar la Gestión Ambiental. | D137: AGA.1.6 | E137: Monto del Presupuesto público ejecutado en la función ambiental (instancias, planes, programas y proyectos de gestión ambiental en los tres niveles de gobierno) - Millones de Soles | F137: Gasto de Inversion | G137: Nacional | H137: 2019 | I137: 627.2 | J137: Gasto | K137: Instituto Nacional de Estadística e Informática (INEI) - Registro Nacional de Municipalidades (RENAMU) | L137: Instituto Nacional de Estadística e Informática (INEI) - Registro Nacional de Municipalidades (RENAMU) | M137: https://www.inei.gob.pe/media/MenuRecursivo/publicaciones_digitales/Est/Lib1474/libro.pdf | P137: I. LINEAMIENTO DE POLITICA Mejorar la Gestión Ambiental.Gasto de Inversion
A138: 40 | B138: Ambiental | C138: I. LINEAMIENTO DE POLITICA Mejorar la Gestión Ambiental. | D138: AGA.1.6 | E138: Monto del Presupuesto público ejecutado en la función ambiental (instancias, planes, programas y proyectos de gestión ambiental en los tres niveles de gobierno) - Millones de Soles | F138: Gasto de Inversion | G138: Nacional | H138: 2020 | I138: 577.3 | J138: Gasto | K138: Instituto Nacional de Estadística e Informática (INEI) - Registro Nacional de Municipalidades (RENAMU) | L138: Instituto Nacional de Estadística e Informática (INEI) - Registro Nacional de Municipalidades (RENAMU) | M138: https://www.inei.gob.pe/media/MenuRecursivo/publicaciones_digitales/Est/Lib1474/libro.pdf | P138: I. LINEAMIENTO DE POLITICA Mejorar la Gestión Ambiental.Gasto de Inversion
A139: 40 | B139: Ambiental | C139: I. LINEAMIENTO DE POLITICA Mejorar la Gestión Ambiental. | D139: AGA.1.6 | E139: Monto del Presupuesto público ejecutado en la función ambiental (instancias, planes, programas y proyectos de gestión ambiental en los tres niveles de gobierno) - Millones de Soles | F139: Gasto de Inversion | G139: Nacional | H139: 2021 | I139: 618.2 | J139: Gasto | K139: Instituto Nacional de Estadística e Informática (INEI) - Registro Nacional de Municipalidades (RENAMU) | L139: Instituto Nacional de Estadística e Informática (INEI) - Registro Nacional de Municipalidades (RENAMU) | M139: https://www.inei.gob.pe/media/MenuRecursivo/publicaciones_digitales/Est/Lib1474/libro.pdf | P139: I. LINEAMIENTO DE POLITICA Mejorar la Gestión Ambiental.Gasto de Inversion
A140: 40 | B140: Ambiental | C140: I. LINEAMIENTO DE POLITICA Mejorar la Gestión Ambiental. | D140: AGA.1.6 | E140: Monto del Presupuesto público ejecutado en la función ambiental (instancias, planes, programas y proyectos de gestión ambiental en los tres niveles de gobierno) - Millones de Soles | F140: Gasto de Inversion | G140: Nacional | H140: 2022 | J140: Gasto | K140: Instituto Nacional de Estadística e Informática (INEI) - Registro Nacional de Municipalidades (RENAMU) | L140: Instituto Nacional de Estadística e Informática (INEI) - Registro Nacional de Municipalidades (RENAMU) | M140: https://www.inei.gob.pe/media/MenuRecursivo/publicaciones_digitales/Est/Lib1474/libro.pdf | P140: I. LINEAMIENTO DE POLITICA Mejorar la Gestión Ambiental.Gasto de Inversion
A141: 40 | B141: Ambiental | C141: I. LINEAMIENTO DE POLITICA Mejorar la Gestión Ambiental. | D141: AGA.1.6 | E141: Monto del Presupuesto público ejecutado en la función ambiental (instancias, planes, programas y proyectos de gestión ambiental en los tres niveles de gobierno) - Millones de Soles | F141: Gasto de Inversion | G141: Nacional | H141: 2023 | J141: Gasto | K141: Instituto Nacional de Estadística e Informática (INEI) - Registro Nacional de Municipalidades (RENAMU) | L141: Instituto Nacional de Estadística e Informática (INEI) - Registro Nacional de Municipalidades (RENAMU) | M141: https://www.inei.gob.pe/media/MenuRecursivo/publicaciones_digitales/Est/Lib1474/libro.pdf | P141: I. LINEAMIENTO DE POLITICA Mejorar la Gestión Ambiental.Gasto de Inversion
A142: 42 | B142: Ambiental | C142: I. LINEAMIENTO DE POLITICA Mejorar la Gestión Ambiental. | D142: AGA.1.7 | E142: Presupuesto ejecutado en la función ambiental en relación al total del presupuesto nacional - Millones de Soles | F142: Gasto publico | G142: Nacional | H142: 2010 | J142: Millones de soles | K142: Informe anual de Ministerio del Ambiente ( MINAM ) de la Ley 28983 Igualdad de Oportunidades entre Mujeres y Hombres | L142: Ministerio del Ambiente ( MINAM ) | M142: https://www.mimp.gob.pe/files/direcciones/dgignd/informes/2015-Informe_LIO.pdf | P142: I. LINEAMIENTO DE POLITICA Mejorar la Gestión Ambiental.Gasto publico
A143: 44 | B143: Ambiental | C143: I. LINEAMIENTO DE POLITICA Mejorar la Gestión Ambiental. | D143: AGA.1.7 | E143: Presupuesto ejecutado en la función ambiental en relación al total del presupuesto nacional - Millones de Soles | F143: Gasto publico | G143: Nacional | H143: 2011 | I143: 0 | J143: Millones de soles | K143: Informe anual de Ministerio del Ambiente ( MINAM ) de la Ley 28983 Igualdad de Oportunidades entre Mujeres y Hombres | L143: Ministerio del Ambiente ( MINAM ) | M143: https://www.mimp.gob.pe/files/direcciones/dgignd/informes/2015-Informe_LIO.pdf | P143: I. LINEAMIENTO DE POLITICA Mejorar la Gestión Ambiental.Gasto publico
A144: 46 | B144: Ambiental | C144: I. LINEAMIENTO DE POLITICA Mejorar la Gestión Ambiental. | D144: AGA.1.7 | E144: Presupuesto ejecutado en la función ambiental en relación al total del presupuesto nacional - Millones de Soles | F144: Gasto publico | G144: Nacional | H144: 2012 | I144: 2783.5 | J144: Millones de soles | K144: Informe anual de Ministerio del Ambiente ( MINAM ) de la Ley 28983 Igualdad de Oportunidades entre Mujeres y Hombres | L144: Ministerio del Ambiente ( MINAM ) | M144: https://www.mimp.gob.pe/files/direcciones/dgignd/informes/2015-Informe_LIO.pdf | P144: I. LINEAMIENTO DE POLITICA Mejorar la Gestión Ambiental.Gasto publico
A145: 48 | B145: Ambiental | C145: I. LINEAMIENTO DE POLITICA Mejorar la Gestión Ambiental. | D145: AGA.1.7 | E145: Presupuesto ejecutado en la función ambiental en relación al total del presupuesto nacional - Millones de Soles | F145: Gasto publico | G145: Nacional | H145: 2013 | I145: 2923.5 | J145: Millones de soles | K145: Informe anual de Ministerio del Ambiente ( MINAM ) de la Ley 28983 Igualdad de Oportunidades entre Mujeres y Hombres | L145: Ministerio del Ambiente ( MINAM ) | M145: https://www.mimp.gob.pe/files/direcciones/dgignd/informes/2015-Informe_LIO.pdf | P145: I. LINEAMIENTO DE POLITICA Mejorar la Gestión Ambiental.Gasto publico
A146: 48 | B146: Ambiental | C146: I. LINEAMIENTO DE POLITICA Mejorar la Gestión Ambiental. | D146: AGA.1.7 | E146: Presupuesto ejecutado en la función ambiental en relación al total del presupuesto nacional - Millones de Soles | F146: Gasto publico | G146: Nacional | H146: 2014 | I146: 3328.1 | J146: Millones de soles | K146: Informe anual de Ministerio del Ambiente ( MINAM ) de la Ley 28983 Igualdad de Oportunidades entre Mujeres y Hombres | L146: Ministerio del Ambiente ( MINAM ) | M146: https://www.mimp.gob.pe/files/direcciones/dgignd/informes/2015-Informe_LIO.pdf | P146: I. LINEAMIENTO DE POLITICA Mejorar la Gestión Ambiental.Gasto publico
A147: 48 | B147: Ambiental | C147: I. LINEAMIENTO DE POLITICA Mejorar la Gestión Ambiental. | D147: AGA.1.7 | E147: Presupuesto ejecutado en la función ambiental en relación al total del presupuesto nacional - Millones de Soles | F147: Gasto publico | G147: Nacional | H147: 2015 | J147: Millones de soles | K147: Informe anual de Ministerio del Ambiente ( MINAM ) de la Ley 28983 Igualdad de Oportunidades entre Mujeres y Hombres | L147: Ministerio del Ambiente ( MINAM ) | M147: https://www.mimp.gob.pe/files/direcciones/dgignd/informes/2015-Informe_LIO.pdf | P147: I. LINEAMIENTO DE POLITICA Mejorar la Gestión Ambiental.Gasto publico
A148: 48 | B148: Ambiental | C148: I. LINEAMIENTO DE POLITICA Mejorar la Gestión Ambiental. | D148: AGA.1.7 | E148: Presupuesto ejecutado en la función ambiental en relación al total del presupuesto nacional - Millones de Soles | F148: Gasto publico | G148: Nacional | H148: 2016 | I148: 2783.5 | J148: Millones de soles | K148: Informe anual de Ministerio del Ambiente ( MINAM ) de la Ley 28983 Igualdad de Oportunidades entre Mujeres y Hombres | L148: Ministerio del Ambiente ( MINAM ) | M148: https://www.mimp.gob.pe/files/direcciones/dgignd/informes/2015-Informe_LIO.pdf | P148: I. LINEAMIENTO DE POLITICA Mejorar la Gestión Ambiental.Gasto publico
A149: 48 | B149: Ambiental | C149: I. LINEAMIENTO DE POLITICA Mejorar la Gestión Ambiental. | D149: AGA.1.7 | E149: Presupuesto ejecutado en la función ambiental en relación al total del presupuesto nacional - Millones de Soles | F149: Gasto publico | G149: Nacional | H149: 2017 | I149: 2923.5 | J149: Millones de soles | K149: Informe anual de Ministerio del Ambiente ( MINAM ) de la Ley 28983 Igualdad de Oportunidades entre Mujeres y Hombres | L149: Ministerio del Ambiente ( MINAM ) | M149: https://www.mimp.gob.pe/files/direcciones/dgignd/informes/2015-Informe_LIO.pdf | P149: I. LINEAMIENTO DE POLITICA Mejorar la Gestión Ambiental.Gasto publico
A150: 48 | B150: Ambiental | C150: I. LINEAMIENTO DE POLITICA Mejorar la Gestión Ambiental. | D150: AGA.1.7 | E150: Presupuesto ejecutado en la función ambiental en relación al total del presupuesto nacional - Millones de Soles | F150: Gasto publico | G150: Nacional | H150: 2018 | I150: 3328.1 | J150: Millones de soles | K150: Informe anual de Ministerio del Ambiente ( MINAM ) de la Ley 28983 Igualdad de Oportunidades entre Mujeres y Hombres | L150: Ministerio del Ambiente ( MINAM ) | M150: https://www.mimp.gob.pe/files/direcciones/dgignd/informes/2015-Informe_LIO.pdf | P150: I. LINEAMIENTO DE POLITICA Mejorar la Gestión Ambiental.Gasto publico
A151: 48 | B151: Ambiental | C151: I. LINEAMIENTO DE POLITICA Mejorar la Gestión Ambiental. | D151: AGA.1.7 | E151: Presupuesto ejecutado en la función ambiental en relación al total del presupuesto nacional - Millones de Soles | F151: Gasto publico | G151: Nacional | H151: 2019 | I151: 3287.9 | J151: Millones de soles | K151: Informe anual de Ministerio del Ambiente ( MINAM ) de la Ley 28983 Igualdad de Oportunidades entre Mujeres y Hombres | L151: Ministerio del Ambiente ( MINAM ) | M151: https://www.mimp.gob.pe/files/direcciones/dgignd/informes/2015-Informe_LIO.pdf | P151: I. LINEAMIENTO DE POLITICA Mejorar la Gestión Ambiental.Gasto publico
A152: 48 | B152: Ambiental | C152: I. LINEAMIENTO DE POLITICA Mejorar la Gestión Ambiental. | D152: AGA.1.7 | E152: Presupuesto ejecutado en la función ambiental en relación al total del presupuesto nacional - Millones de Soles | F152: Gasto publico | G152: Nacional | H152: 2020 | I152: 3418.4 | J152: Millones de soles | K152: Informe anual de Ministerio del Ambiente ( MINAM ) de la Ley 28983 Igualdad de Oportunidades entre Mujeres y Hombres | L152: Ministerio del Ambiente ( MINAM ) | M152: https://www.mimp.gob.pe/files/direcciones/dgignd/informes/2015-Informe_LIO.pdf | P152: I. LINEAMIENTO DE POLITICA Mejorar la Gestión Ambiental.Gasto publico
A153: 48 | B153: Ambiental | C153: I. LINEAMIENTO DE POLITICA Mejorar la Gestión Ambiental. | D153: AGA.1.7 | E153: Presupuesto ejecutado en la función ambiental en relación al total del presupuesto nacional - Millones de Soles | F153: Gasto publico | G153: Nacional | H153: 2021 | I153: 3658252551 | J153: Millones de soles | K153: Informe anual de Ministerio del Ambiente ( MINAM ) de la Ley 28983 Igualdad de Oportunidades entre Mujeres y Hombres | L153: Ministerio del Ambiente ( MINAM ) | M153: https://www.mimp.gob.pe/files/direcciones/dgignd/informes/2015-Informe_LIO.pdf | P153: I. LINEAMIENTO DE POLITICA Mejorar la Gestión Ambiental.Gasto publico
A154: 48 | B154: Ambiental | C154: I. LINEAMIENTO DE POLITICA Mejorar la Gestión Ambiental. | D154: AGA.1.7 | E154: Presupuesto ejecutado en la función ambiental en relación al total del presupuesto nacional - Millones de Soles | F154: Gasto publico | G154: Nacional | H154: 2022 | J154: Millones de soles | K154: Informe anual de Ministerio del Ambiente ( MINAM ) de la Ley 28983 Igualdad de Oportunidades entre Mujeres y Hombres | L154: Ministerio del Ambiente ( MINAM ) | M154: https://www.mimp.gob.pe/files/direcciones/dgignd/informes/2015-Informe_LIO.pdf | P154: I. LINEAMIENTO DE POLITICA Mejorar la Gestión Ambiental.Gasto publico
A155: 48 | B155: Ambiental | C155: I. LINEAMIENTO DE POLITICA Mejorar la Gestión Ambiental. | D155: AGA.1.7 | E155: Presupuesto ejecutado en la función ambiental en relación al total del presupuesto nacional - Millones de Soles | F155: Gasto publico | G155: Nacional | H155: 2023 | J155: Millones de soles | K155: Informe anual de Ministerio del Ambiente ( MINAM ) de la Ley 28983 Igualdad de Oportunidades entre Mujeres y Hombres | L155: Ministerio del Ambiente ( MINAM ) | M155: https://www.mimp.gob.pe/files/direcciones/dgignd/informes/2015-Informe_LIO.pdf | P155: I. LINEAMIENTO DE POLITICA Mejorar la Gestión Ambiental.Gasto publico
A156: 41 | B156: Ambiental | C156: I. LINEAMIENTO DE POLITICA Mejorar la Gestión Ambiental. | D156: AGA.1.7 | E156: Presupuesto ejecutado en la función ambiental en relación al total del presupuesto nacional - Millones de Soles | F156: Porcentaje respecto al total de presupuesto | G156: Nacional | H156: 2010 | J156: Porcentaje | K156: Ministerio de Educación (MINEDU) | L156: Ministerio de Educación (MINEDU) | M156: https://proyectos.inei.gob.pe/endes/ppr.asp | P156: I. LINEAMIENTO DE POLITICA Mejorar la Gestión Ambiental.Porcentaje respecto al total de presupuesto
A157: 43 | B157: Ambiental | C157: I. LINEAMIENTO DE POLITICA Mejorar la Gestión Ambiental. | D157: AGA.1.7 | E157: Presupuesto ejecutado en la función ambiental en relación al total del presupuesto nacional - Millones de Soles | F157: Porcentaje respecto al total de presupuesto | G157: Nacional | H157: 2011 | I157: 0 | J157: Porcentaje | K157: Ministerio de Educación (MINEDU) | L157: Ministerio de Educación (MINEDU) | M157: https://proyectos.inei.gob.pe/endes/ppr.asp | P157: I. LINEAMIENTO DE POLITICA Mejorar la Gestión Ambiental.Porcentaje respecto al total de presupuesto
A158: 45 | B158: Ambiental | C158: I. LINEAMIENTO DE POLITICA Mejorar la Gestión Ambiental. | D158: AGA.1.7 | E158: Presupuesto ejecutado en la función ambiental en relación al total del presupuesto nacional - Millones de Soles | F158: Porcentaje respecto al total de presupuesto | G158: Nacional | H158: 2012 | I158: 2 | J158: Porcentaje | K158: Ministerio de Educación (MINEDU) | L158: Ministerio de Educación (MINEDU) | M158: https://proyectos.inei.gob.pe/endes/ppr.asp | P158: I. LINEAMIENTO DE POLITICA Mejorar la Gestión Ambiental.Porcentaje respecto al total de presupuesto
A159: 47 | B159: Ambiental | C159: I. LINEAMIENTO DE POLITICA Mejorar la Gestión Ambiental. | D159: AGA.1.7 | E159: Presupuesto ejecutado en la función ambiental en relación al total del presupuesto nacional - Millones de Soles | F159: Porcentaje respecto al total de presupuesto | G159: Nacional | H159: 2013 | I159: 1.9 | J159: Porcentaje | K159: Ministerio de Educación (MINEDU) | L159: Ministerio de Educación (MINEDU) | M159: https://proyectos.inei.gob.pe/endes/ppr.asp | P159: I. LINEAMIENTO DE POLITICA Mejorar la Gestión Ambiental.Porcentaje respecto al total de presupuesto
A160: 47 | B160: Ambiental | C160: I. LINEAMIENTO DE POLITICA Mejorar la Gestión Ambiental. | D160: AGA.1.7 | E160: Presupuesto ejecutado en la función ambiental en relación al total del presupuesto nacional - Millones de Soles | F160: Porcentaje respecto al total de presupuesto | G160: Nacional | H160: 2014 | I160: 2.1 | J160: Porcentaje | K160: Ministerio de Educación (MINEDU) | L160: Ministerio de Educación (MINEDU) | M160: https://proyectos.inei.gob.pe/endes/ppr.asp | P160: I. LINEAMIENTO DE POLITICA Mejorar la Gestión Ambiental.Porcentaje respecto al total de presupuesto
A161: 47 | B161: Ambiental | C161: I. LINEAMIENTO DE POLITICA Mejorar la Gestión Ambiental. | D161: AGA.1.7 | E161: Presupuesto ejecutado en la función ambiental en relación al total del presupuesto nacional - Millones de Soles | F161: Porcentaje respecto al total de presupuesto | G161: Nacional | H161: 2015 | J161: Porcentaje | K161: Ministerio de Educación (MINEDU) | L161: Ministerio de Educación (MINEDU) | M161: https://proyectos.inei.gob.pe/endes/ppr.asp | P161: I. LINEAMIENTO DE POLITICA Mejorar la Gestión Ambiental.Porcentaje respecto al total de presupuesto
A162: 47 | B162: Ambiental | C162: I. LINEAMIENTO DE POLITICA Mejorar la Gestión Ambiental. | D162: AGA.1.7 | E162: Presupuesto ejecutado en la función ambiental en relación al total del presupuesto nacional - Millones de Soles | F162: Porcentaje respecto al total de presupuesto | G162: Nacional | H162: 2016 | I162: 2.03 | J162: Porcentaje | K162: Ministerio de Educación (MINEDU) | L162: Ministerio de Educación (MINEDU) | M162: https://proyectos.inei.gob.pe/endes/ppr.asp | P162: I. LINEAMIENTO DE POLITICA Mejorar la Gestión Ambiental.Porcentaje respecto al total de presupuesto
A163: 47 | B163: Ambiental | C163: I. LINEAMIENTO DE POLITICA Mejorar la Gestión Ambiental. | D163: AGA.1.7 | E163: Presupuesto ejecutado en la función ambiental en relación al total del presupuesto nacional - Millones de Soles | F163: Porcentaje respecto al total de presupuesto | G163: Nacional | H163: 2017 | I163: 1.94 | J163: Porcentaje | K163: Ministerio de Educación (MINEDU) | L163: Ministerio de Educación (MINEDU) | M163: https://proyectos.inei.gob.pe/endes/ppr.asp | P163: I. LINEAMIENTO DE POLITICA Mejorar la Gestión Ambiental.Porcentaje respecto al total de presupuesto
A164: 47 | B164: Ambiental | C164: I. LINEAMIENTO DE POLITICA Mejorar la Gestión Ambiental. | D164: AGA.1.7 | E164: Presupuesto ejecutado en la función ambiental en relación al total del presupuesto nacional - Millones de Soles | F164: Porcentaje respecto al total de presupuesto | G164: Nacional | H164: 2018 | I164: 2.07 | J164: Porcentaje | K164: Ministerio de Educación (MINEDU) | L164: Ministerio de Educación (MINEDU) | M164: https://proyectos.inei.gob.pe/endes/ppr.asp | P164: I. LINEAMIENTO DE POLITICA Mejorar la Gestión Ambiental.Porcentaje respecto al total de presupuesto
A165: 47 | B165: Ambiental | C165: I. LINEAMIENTO DE POLITICA Mejorar la Gestión Ambiental. | D165: AGA.1.7 | E165: Presupuesto ejecutado en la función ambiental en relación al total del presupuesto nacional - Millones de Soles | F165: Porcentaje respecto al total de presupuesto | G165: Nacional | H165: 2019 | I165: 2.02 | J165: Porcentaje | K165: Ministerio de Educación (MINEDU) | L165: Ministerio de Educación (MINEDU) | M165: https://proyectos.inei.gob.pe/endes/ppr.asp | P165: I. LINEAMIENTO DE POLITICA Mejorar la Gestión Ambiental.Porcentaje respecto al total de presupuesto
A166: 47 | B166: Ambiental | C166: I. LINEAMIENTO DE POLITICA Mejorar la Gestión Ambiental. | D166: AGA.1.7 | E166: Presupuesto ejecutado en la función ambiental en relación al total del presupuesto nacional - Millones de Soles | F166: Porcentaje respecto al total de presupuesto | G166: Nacional | H166: 2020 | I166: 1.87 | J166: Porcentaje | K166: Ministerio de Educación (MINEDU) | L166: Ministerio de Educación (MINEDU) | M166: https://proyectos.inei.gob.pe/endes/ppr.asp | P166: I. LINEAMIENTO DE POLITICA Mejorar la Gestión Ambiental.Porcentaje respecto al total de presupuesto
A167: 47 | B167: Ambiental | C167: I. LINEAMIENTO DE POLITICA Mejorar la Gestión Ambiental. | D167: AGA.1.7 | E167: Presupuesto ejecutado en la función ambiental en relación al total del presupuesto nacional - Millones de Soles | F167: Porcentaje respecto al total de presupuesto | G167: Nacional | H167: 2021 | I167: 1.84 | J167: Porcentaje | K167: Ministerio de Educación (MINEDU) | L167: Ministerio de Educación (MINEDU) | M167: https://proyectos.inei.gob.pe/endes/ppr.asp | P167: I. LINEAMIENTO DE POLITICA Mejorar la Gestión Ambiental.Porcentaje respecto al total de presupuesto
A168: 47 | B168: Ambiental | C168: I. LINEAMIENTO DE POLITICA Mejorar la Gestión Ambiental. | D168: AGA.1.7 | E168: Presupuesto ejecutado en la función ambiental en relación al total del presupuesto nacional - Millones de Soles | F168: Porcentaje respecto al total de presupuesto | G168: Nacional | H168: 2022 | J168: Porcentaje | K168: Ministerio de Educación (MINEDU) | L168: Ministerio de Educación (MINEDU) | M168: https://proyectos.inei.gob.pe/endes/ppr.asp | P168: I. LINEAMIENTO DE POLITICA Mejorar la Gestión Ambiental.Porcentaje respecto al total de presupuesto
A169: 47 | B169: Ambiental | C169: I. LINEAMIENTO DE POLITICA Mejorar la Gestión Ambiental. | D169: AGA.1.7 | E169: Presupuesto ejecutado en la función ambiental en relación al total del presupuesto nacional - Millones de Soles | F169: Porcentaje respecto al total de presupuesto | G169: Nacional | H169: 2023 | J169: Porcentaje | K169: Ministerio de Educación (MINEDU) | L169: Ministerio de Educación (MINEDU) | M169: https://proyectos.inei.gob.pe/endes/ppr.asp | P169: I. LINEAMIENTO DE POLITICA Mejorar la Gestión Ambiental.Porcentaje respecto al total de presupuesto
A170: 49 | B170: Ambiental | C170: I. LINEAMIENTO DE POLITICA Mejorar la Gestión Ambiental. | D170: AGA.1.8 | E170: Número de Informes de Evaluación Ambiental Integrada por año | F170: Informes de evaluacion ambiental | G170: Nacional | H170: 2010 | J170: Sin datos | K170: Ministerio de Economía y Finanzas (MEF) - CONCYTEC | L170: Ministerio de Economía y Finanzas (MEF) | M170: https://www.mef.gob.pe/es/ | P170: I. LINEAMIENTO DE POLITICA Mejorar la Gestión Ambiental.Informes de evaluacion ambiental
A171: 50 | B171: Ambiental | C171: I. LINEAMIENTO DE POLITICA Mejorar la Gestión Ambiental. | D171: AGA.1.8 | E171: Número de Informes de Evaluación Ambiental Integrada por año | F171: Informes de evaluacion ambiental | G171: Nacional | H171: 2011 | J171: Sin datos | K171: Ministerio de Economía y Finanzas (MEF) - CONCYTEC | L171: Ministerio de Economía y Finanzas (MEF) | M171: https://www.mef.gob.pe/es/ | P171: I. LINEAMIENTO DE POLITICA Mejorar la Gestión Ambiental.Informes de evaluacion ambiental
A172: 51 | B172: Ambiental | C172: I. LINEAMIENTO DE POLITICA Mejorar la Gestión Ambiental. | D172: AGA.1.8 | E172: Número de Informes de Evaluación Ambiental Integrada por año | F172: Informes de evaluacion ambiental | G172: Nacional | H172: 2012 | J172: Sin datos | K172: Ministerio de Economía y Finanzas (MEF) - CONCYTEC | L172: Ministerio de Economía y Finanzas (MEF) | M172: https://www.mef.gob.pe/es/ | P172: I. LINEAMIENTO DE POLITICA Mejorar la Gestión Ambiental.Informes de evaluacion ambiental
A173: 52 | B173: Ambiental | C173: I. LINEAMIENTO DE POLITICA Mejorar la Gestión Ambiental. | D173: AGA.1.8 | E173: Número de Informes de Evaluación Ambiental Integrada por año | F173: Informes de evaluacion ambiental | G173: Nacional | H173: 2013 | J173: Sin datos | K173: Ministerio de Economía y Finanzas (MEF) - CONCYTEC | L173: Ministerio de Economía y Finanzas (MEF) | M173: https://www.mef.gob.pe/es/ | P173: I. LINEAMIENTO DE POLITICA Mejorar la Gestión Ambiental.Informes de evaluacion ambiental
A174: 52 | B174: Ambiental | C174: I. LINEAMIENTO DE POLITICA Mejorar la Gestión Ambiental. | D174: AGA.1.8 | E174: Número de Informes de Evaluación Ambiental Integrada por año | F174: Informes de evaluacion ambiental | G174: Nacional | H174: 2014 | J174: Sin datos | K174: Ministerio de Economía y Finanzas (MEF) - CONCYTEC | L174: Ministerio de Economía y Finanzas (MEF) | M174: https://www.mef.gob.pe/es/ | P174: I. LINEAMIENTO DE POLITICA Mejorar la Gestión Ambiental.Informes de evaluacion ambiental
A175: 52 | B175: Ambiental | C175: I. LINEAMIENTO DE POLITICA Mejorar la Gestión Ambiental. | D175: AGA.1.8 | E175: Número de Informes de Evaluación Ambiental Integrada por año | F175: Informes de evaluacion ambiental | G175: Nacional | H175: 2015 | J175: Sin datos | K175: Ministerio de Economía y Finanzas (MEF) - CONCYTEC | L175: Ministerio de Economía y Finanzas (MEF) | M175: https://www.mef.gob.pe/es/ | P175: I. LINEAMIENTO DE POLITICA Mejorar la Gestión Ambiental.Informes de evaluacion ambiental
A176: 52 | B176: Ambiental | C176: I. LINEAMIENTO DE POLITICA Mejorar la Gestión Ambiental. | D176: AGA.1.8 | E176: Número de Informes de Evaluación Ambiental Integrada por año | F176: Informes de evaluacion ambiental | G176: Nacional | H176: 2016 | J176: Sin datos | K176: Ministerio de Economía y Finanzas (MEF) - CONCYTEC | L176: Ministerio de Economía y Finanzas (MEF) | M176: https://www.mef.gob.pe/es/ | P176: I. LINEAMIENTO DE POLITICA Mejorar la Gestión Ambiental.Informes de evaluacion ambiental
A177: 52 | B177: Ambiental | C177: I. LINEAMIENTO DE POLITICA Mejorar la Gestión Ambiental. | D177: AGA.1.8 | E177: Número de Informes de Evaluación Ambiental Integrada por año | F177: Informes de evaluacion ambiental | G177: Nacional | H177: 2017 | J177: Sin datos | K177: Ministerio de Economía y Finanzas (MEF) - CONCYTEC | L177: Ministerio de Economía y Finanzas (MEF) | M177: https://www.mef.gob.pe/es/ | P177: I. LINEAMIENTO DE POLITICA Mejorar la Gestión Ambiental.Informes de evaluacion ambiental
A178: 52 | B178: Ambiental | C178: I. LINEAMIENTO DE POLITICA Mejorar la Gestión Ambiental. | D178: AGA.1.8 | E178: Número de Informes de Evaluación Ambiental Integrada por año | F178: Informes de evaluacion ambiental | G178: Nacional | H178: 2018 | J178: Sin datos | K178: Ministerio de Economía y Finanzas (MEF) - CONCYTEC | L178: Ministerio de Economía y Finanzas (MEF) | M178: https://www.mef.gob.pe/es/ | P178: I. LINEAMIENTO DE POLITICA Mejorar la Gestión Ambiental.Informes de evaluacion ambiental
A179: 52 | B179: Ambiental | C179: I. LINEAMIENTO DE POLITICA Mejorar la Gestión Ambiental. | D179: AGA.1.8 | E179: Número de Informes de Evaluación Ambiental Integrada por año | F179: Informes de evaluacion ambiental | G179: Nacional | H179: 2019 | J179: Sin datos | K179: Ministerio de Economía y Finanzas (MEF) - CONCYTEC | L179: Ministerio de Economía y Finanzas (MEF) | M179: https://www.mef.gob.pe/es/ | P179: I. LINEAMIENTO DE POLITICA Mejorar la Gestión Ambiental.Informes de evaluacion ambiental
A180: 52 | B180: Ambiental | C180: I. LINEAMIENTO DE POLITICA Mejorar la Gestión Ambiental. | D180: AGA.1.8 | E180: Número de Informes de Evaluación Ambiental Integrada por año | F180: Informes de evaluacion ambiental | G180: Nacional | H180: 2020 | J180: Sin datos | K180: Ministerio de Economía y Finanzas (MEF) - CONCYTEC | L180: Ministerio de Economía y Finanzas (MEF) | M180: https://www.mef.gob.pe/es/ | P180: I. LINEAMIENTO DE POLITICA Mejorar la Gestión Ambiental.Informes de evaluacion ambiental
A181: 52 | B181: Ambiental | C181: I. LINEAMIENTO DE POLITICA Mejorar la Gestión Ambiental. | D181: AGA.1.8 | E181: Número de Informes de Evaluación Ambiental Integrada por año | F181: Informes de evaluacion ambiental | G181: Nacional | H181: 2021 | J181: Sin datos | K181: Ministerio de Economía y Finanzas (MEF) - CONCYTEC | L181: Ministerio de Economía y Finanzas (MEF) | M181: https://www.mef.gob.pe/es/ | P181: I. LINEAMIENTO DE POLITICA Mejorar la Gestión Ambiental.Informes de evaluacion ambiental
A182: 52 | B182: Ambiental | C182: I. LINEAMIENTO DE POLITICA Mejorar la Gestión Ambiental. | D182: AGA.1.8 | E182: Número de Informes de Evaluación Ambiental Integrada por año | F182: Informes de evaluacion ambiental | G182: Nacional | H182: 2022 | J182: Sin datos | K182: Ministerio de Economía y Finanzas (MEF) - CONCYTEC | L182: Ministerio de Economía y Finanzas (MEF) | M182: https://www.mef.gob.pe/es/ | P182: I. LINEAMIENTO DE POLITICA Mejorar la Gestión Ambiental.Informes de evaluacion ambiental
A183: 52 | B183: Ambiental | C183: I. LINEAMIENTO DE POLITICA Mejorar la Gestión Ambiental. | D183: AGA.1.8 | E183: Número de Informes de Evaluación Ambiental Integrada por año | F183: Informes de evaluacion ambiental | G183: Nacional | H183: 2023 | J183: Sin datos | K183: Ministerio de Economía y Finanzas (MEF) - CONCYTEC | L183: Ministerio de Economía y Finanzas (MEF) | M183: https://www.mef.gob.pe/es/ | P183: I. LINEAMIENTO DE POLITICA Mejorar la Gestión Ambiental.Informes de evaluacion ambiental
A184: 53 | B184: Ambiental | C184: I. LINEAMIENTO DE POLITICA Mejorar la Gestión Ambiental. | D184: AGA.1.9 | E184: Porcentaje de Municipalidades que implementan acciones para la gestión ambiental a nivel distrital y provincial | F184: Municipalidades ejecutaron proyectos ambientales ( Porcentaje) | G184: Nacional | H184: 2010 | J184: Porcentaje | K184: Ministerio del Ambiente ( MINAM )-Sistema Nacional de Información Ambiental ( SINIA ) | L184: Ministerio del Ambiente ( MINAM ) | M184: https://www.gob.pe/minam | P184: I. LINEAMIENTO DE POLITICA Mejorar la Gestión Ambiental.Municipalidades ejecutaron proyectos ambientales ( Porcentaje)
A185: 54 | B185: Ambiental | C185: I. LINEAMIENTO DE POLITICA Mejorar la Gestión Ambiental. | D185: AGA.1.9 | E185: Porcentaje de Municipalidades que implementan acciones para la gestión ambiental a nivel distrital y provincial | F185: Municipalidades ejecutaron proyectos ambientales ( Porcentaje) | G185: Nacional | H185: 2011 | I185: 22 | J185: Porcentaje | K185: Ministerio del Ambiente ( MINAM )-Sistema Nacional de Información Ambiental ( SINIA ) | L185: Ministerio del Ambiente ( MINAM ) | M185: https://www.gob.pe/minam | P185: I. LINEAMIENTO DE POLITICA Mejorar la Gestión Ambiental.Municipalidades ejecutaron proyectos ambientales ( Porcentaje)
A186: 55 | B186: Ambiental | C186: I. LINEAMIENTO DE POLITICA Mejorar la Gestión Ambiental. | D186: AGA.1.9 | E186: Porcentaje de Municipalidades que implementan acciones para la gestión ambiental a nivel distrital y provincial | F186: Municipalidades ejecutaron proyectos ambientales ( Porcentaje) | G186: Nacional | H186: 2012 | I186: 18 | J186: Porcentaje | K186: Ministerio del Ambiente ( MINAM )-Sistema Nacional de Información Ambiental ( SINIA ) | L186: Ministerio del Ambiente ( MINAM ) | M186: https://www.gob.pe/minam | P186: I. LINEAMIENTO DE POLITICA Mejorar la Gestión Ambiental.Municipalidades ejecutaron proyectos ambientales ( Porcentaje)
A187: 56 | B187: Ambiental | C187: I. LINEAMIENTO DE POLITICA Mejorar la Gestión Ambiental. | D187: AGA.1.9 | E187: Porcentaje de Municipalidades que implementan acciones para la gestión ambiental a nivel distrital y provincial | F187: Municipalidades ejecutaron proyectos ambientales ( Porcentaje) | G187: Nacional | H187: 2013 | I187: 20 | J187: Porcentaje | K187: Ministerio del Ambiente ( MINAM )-Sistema Nacional de Información Ambiental ( SINIA ) | L187: Ministerio del Ambiente ( MINAM ) | M187: https://www.gob.pe/minam | P187: I. LINEAMIENTO DE POLITICA Mejorar la Gestión Ambiental.Municipalidades ejecutaron proyectos ambientales ( Porcentaje)
A188: 56 | B188: Ambiental | C188: I. LINEAMIENTO DE POLITICA Mejorar la Gestión Ambiental. | D188: AGA.1.9 | E188: Porcentaje de Municipalidades que implementan acciones para la gestión ambiental a nivel distrital y provincial | F188: Municipalidades ejecutaron proyectos ambientales ( Porcentaje) | G188: Nacional | H188: 2014 | I188: 0 | J188: Porcentaje | K188: Ministerio del Ambiente ( MINAM )-Sistema Nacional de Información Ambiental ( SINIA ) | L188: Ministerio del Ambiente ( MINAM ) | M188: https://www.gob.pe/minam | P188: I. LINEAMIENTO DE POLITICA Mejorar la Gestión Ambiental.Municipalidades ejecutaron proyectos ambientales ( Porcentaje)
A189: 56 | B189: Ambiental | C189: I. LINEAMIENTO DE POLITICA Mejorar la Gestión Ambiental. | D189: AGA.1.9 | E189: Porcentaje de Municipalidades que implementan acciones para la gestión ambiental a nivel distrital y provincial | F189: Municipalidades ejecutaron proyectos ambientales ( Porcentaje) | G189: Nacional | H189: 2015 | J189: Porcentaje | K189: Ministerio del Ambiente ( MINAM )-Sistema Nacional de Información Ambiental ( SINIA ) | L189: Ministerio del Ambiente ( MINAM ) | M189: https://www.gob.pe/minam | P189: I. LINEAMIENTO DE POLITICA Mejorar la Gestión Ambiental.Municipalidades ejecutaron proyectos ambientales ( Porcentaje)
A190: 56 | B190: Ambiental | C190: I. LINEAMIENTO DE POLITICA Mejorar la Gestión Ambiental. | D190: AGA.1.9 | E190: Porcentaje de Municipalidades que implementan acciones para la gestión ambiental a nivel distrital y provincial | F190: Municipalidades ejecutaron proyectos ambientales ( Porcentaje) | G190: Nacional | H190: 2016 | I190: 20 | J190: Porcentaje | K190: Ministerio del Ambiente ( MINAM )-Sistema Nacional de Información Ambiental ( SINIA ) | L190: Ministerio del Ambiente ( MINAM ) | M190: https://www.gob.pe/minam | P190: I. LINEAMIENTO DE POLITICA Mejorar la Gestión Ambiental.Municipalidades ejecutaron proyectos ambientales ( Porcentaje)
A191: 56 | B191: Ambiental | C191: I. LINEAMIENTO DE POLITICA Mejorar la Gestión Ambiental. | D191: AGA.1.9 | E191: Porcentaje de Municipalidades que implementan acciones para la gestión ambiental a nivel distrital y provincial | F191: Municipalidades ejecutaron proyectos ambientales ( Porcentaje) | G191: Nacional | H191: 2017 | I191: 14 | J191: Porcentaje | K191: Ministerio del Ambiente ( MINAM )-Sistema Nacional de Información Ambiental ( SINIA ) | L191: Ministerio del Ambiente ( MINAM ) | M191: https://www.gob.pe/minam | P191: I. LINEAMIENTO DE POLITICA Mejorar la Gestión Ambiental.Municipalidades ejecutaron proyectos ambientales ( Porcentaje)
A192: 56 | B192: Ambiental | C192: I. LINEAMIENTO DE POLITICA Mejorar la Gestión Ambiental. | D192: AGA.1.9 | E192: Porcentaje de Municipalidades que implementan acciones para la gestión ambiental a nivel distrital y provincial | F192: Municipalidades ejecutaron proyectos ambientales ( Porcentaje) | G192: Nacional | H192: 2018 | I192: 10 | J192: Porcentaje | K192: Ministerio del Ambiente ( MINAM )-Sistema Nacional de Información Ambiental ( SINIA ) | L192: Ministerio del Ambiente ( MINAM ) | M192: https://www.gob.pe/minam | P192: I. LINEAMIENTO DE POLITICA Mejorar la Gestión Ambiental.Municipalidades ejecutaron proyectos ambientales ( Porcentaje)
A193: 56 | B193: Ambiental | C193: I. LINEAMIENTO DE POLITICA Mejorar la Gestión Ambiental. | D193: AGA.1.9 | E193: Porcentaje de Municipalidades que implementan acciones para la gestión ambiental a nivel distrital y provincial | F193: Municipalidades ejecutaron proyectos ambientales ( Porcentaje) | G193: Nacional | H193: 2019 | J193: Porcentaje | K193: Ministerio del Ambiente ( MINAM )-Sistema Nacional de Información Ambiental ( SINIA ) | L193: Ministerio del Ambiente ( MINAM ) | M193: https://www.gob.pe/minam | P193: I. LINEAMIENTO DE POLITICA Mejorar la Gestión Ambiental.Municipalidades ejecutaron proyectos ambientales ( Porcentaje)
A194: 56 | B194: Ambiental | C194: I. LINEAMIENTO DE POLITICA Mejorar la Gestión Ambiental. | D194: AGA.1.9 | E194: Porcentaje de Municipalidades que implementan acciones para la gestión ambiental a nivel distrital y provincial | F194: Municipalidades ejecutaron proyectos ambientales ( Porcentaje) | G194: Nacional | H194: 2020 | J194: Porcentaje | K194: Ministerio del Ambiente ( MINAM )-Sistema Nacional de Información Ambiental ( SINIA ) | L194: Ministerio del Ambiente ( MINAM ) | M194: https://www.gob.pe/minam | P194: I. LINEAMIENTO DE POLITICA Mejorar la Gestión Ambiental.Municipalidades ejecutaron proyectos ambientales ( Porcentaje)
A195: 56 | B195: Ambiental | C195: I. LINEAMIENTO DE POLITICA Mejorar la Gestión Ambiental. | D195: AGA.1.9 | E195: Porcentaje de Municipalidades que implementan acciones para la gestión ambiental a nivel distrital y provincial | F195: Municipalidades ejecutaron proyectos ambientales ( Porcentaje) | G195: Nacional | H195: 2021 | J195: Porcentaje | K195: Ministerio del Ambiente ( MINAM )-Sistema Nacional de Información Ambiental ( SINIA ) | L195: Ministerio del Ambiente ( MINAM ) | M195: https://www.gob.pe/minam | P195: =CONCATENATE(C195,F195) -> I. LINEAMIENTO DE POLITICA Mejorar la Gestión Ambiental.Municipalidades ejecutaron proyectos ambientales ( Porcentaje)
A196: 56 | B196: Ambiental | C196: I. LINEAMIENTO DE POLITICA Mejorar la Gestión Ambiental. | D196: AGA.1.9 | E196: Porcentaje de Municipalidades que implementan acciones para la gestión ambiental a nivel distrital y provincial | F196: Municipalidades ejecutaron proyectos ambientales ( Porcentaje) | G196: Nacional | H196: 2022 | J196: Porcentaje | K196: Ministerio del Ambiente ( MINAM )-Sistema Nacional de Información Ambiental ( SINIA ) | L196: Ministerio del Ambiente ( MINAM ) | M196: https://www.gob.pe/minam | P196: I. LINEAMIENTO DE POLITICA Mejorar la Gestión Ambiental.Municipalidades ejecutaron proyectos ambientales ( Porcentaje)
A197: 56 | B197: Ambiental | C197: I. LINEAMIENTO DE POLITICA Mejorar la Gestión Ambiental. | D197: AGA.1.9 | E197: Porcentaje de Municipalidades que implementan acciones para la gestión ambiental a nivel distrital y provincial | F197: Municipalidades ejecutaron proyectos ambientales ( Porcentaje) | G197: Nacional | H197: 2023 | J197: Porcentaje | K197: Ministerio del Ambiente ( MINAM )-Sistema Nacional de Información Ambiental ( SINIA ) | L197: Ministerio del Ambiente ( MINAM ) | M197: https://www.gob.pe/minam | P197: I. LINEAMIENTO DE POLITICA Mejorar la Gestión Ambiental.Municipalidades ejecutaron proyectos ambientales ( Porcentaje)
A198: 57 | B198: Ambiental | C198: I. LINEAMIENTO DE POLITICA Mejorar la Gestión Ambiental. | D198: AGA.1.9 | E198: Porcentaje de Municipalidades que implementan acciones para la gestión ambiental a nivel distrital y provincial | F198: Municipalidades formularon proyectos de atención(Porcentaje) | G198: Nacional | H198: 2010 | J198: Porcentaje | K198: Ministerio del Ambiente ( MINAM )-Sistema Nacional de Información Ambiental ( SINIA ) | L198: Ministerio del Ambiente ( MINAM ) | M198: https://www.gob.pe/minam | P198: I. LINEAMIENTO DE POLITICA Mejorar la Gestión Ambiental.Municipalidades formularon proyectos de atención(Porcentaje)
A199: 58 | B199: Ambiental | C199: I. LINEAMIENTO DE POLITICA Mejorar la Gestión Ambiental. | D199: AGA.1.9 | E199: Porcentaje de Municipalidades que implementan acciones para la gestión ambiental a nivel distrital y provincial | F199: Municipalidades formularon proyectos de atención(Porcentaje) | G199: Nacional | H199: 2011 | I199: 4 | J199: Porcentaje | K199: Ministerio del Ambiente ( MINAM )-Sistema Nacional de Información Ambiental ( SINIA ) | L199: Ministerio del Ambiente ( MINAM ) | M199: https://www.gob.pe/minam | P199: I. LINEAMIENTO DE POLITICA Mejorar la Gestión Ambiental.Municipalidades formularon proyectos de atención(Porcentaje)
A200: 59 | B200: Ambiental | C200: I. LINEAMIENTO DE POLITICA Mejorar la Gestión Ambiental. | D200: AGA.1.9 | E200: Porcentaje de Municipalidades que implementan acciones para la gestión ambiental a nivel distrital y provincial | F200: Municipalidades formularon proyectos de atención(Porcentaje) | G200: Nacional | H200: 2012 | I200: 15 | J200: Porcentaje | K200: Ministerio del Ambiente ( MINAM )-Sistema Nacional de Información Ambiental ( SINIA ) | L200: Ministerio del Ambiente ( MINAM ) | M200: https://www.gob.pe/minam | P200: I. LINEAMIENTO DE POLITICA Mejorar la Gestión Ambiental.Municipalidades formularon proyectos de atención(Porcentaje)
... 4099 more rows

Sheet ListaIndicadores
A6: LINEAMIENTO | B6: Código | C6: Indicador | D6: Subindicador | E6: Unidad | F6: Fuente web | G6: 2010 | H6: 2011 | I6: 2012 | J6: 2013 | K6: 2014 | L6: 2015 | M6: 2016 | N6: 2017 | O6: 2018 | P6: 2019 | Q6: 2020 | R6: 2021 | S6: 2022 | T6: 2023 | U6: 2024 | V6: 2025 | W6: 2026 | X6: Meta 2021 | Y6: Meta 2026 | Z6: Proyeccion | AA6: Proyeccion al 2026 | AB6: Semáforo 2021 | AC6: Semáforo 2026 | AD6: concatenar | AE6: Meta 2021 | AF6: Meta 2026 | AG6: Proyección | AH6: Proyeccion al 2026 | AI6: Semáforo 2021 | AJ6: Semáforo 2026 | AK6: Positivo/negativo
A7: I. LINEAMIENTO DE POLITICA Mejorar la Gestión Ambiental. | B7: AGA.6.4. | C7: Acciones implementadas para proteger los derechos de los pueblos indígenas en situación de aislamiento y contacto inicial (PIACI) | D7: Proteccion aprobado | E7: Acciones | F7: Organismo de Evaluación y Fiscalización Ambiental (OEFA)-Entidades de Fiscalización Ambiental (EFA) | H7: 1 | I7: 0 | J7: 0 | K7: 0 | Z7: =+FORECAST(2026,H7:R7,$H$6:$R$6) -> -4 | AB7: =IF(OR(X7="",Z7="",AK7=""),"¡Faltan datos!", IF(AK7="P", IF(Z7>=(X7*85%),"Verde", IF(AND(Z7<(X7*85%),Z7>=(X7*50%)),"Ambar", IF(Z7<(X7*50%),"Rojo","Verificar!"))), IF(AK7="N", IF(Z7<=(X7*115%),"Verde", IF(AND(Z7<=(X7*150%),Z7>(X7*115%)),"Ambar", IF(Z7>(X7*150%),"Rojo","Verificar!"))),""))) -> ¡Faltan datos! | AC7: =IF(OR(Y7="",AA7="",AK7=""),"¡Faltan datos!", IF(AK7="P", IF(AA7>=(Y7*85%),"Verde", IF(AND(AA7<(Y7*85%),AA7>=(Y7*50%)),"Ambar", IF(AA7<(Y7*50%),"Rojo","Verificar!"))), IF(AK7="N", IF(AA7<=(Y7*115%),"Verde", IF(AND(AA7<=(Y7*150%),AA7>(Y7*115%)),"Ambar", IF(AA7>(Y7*150%),"Rojo","Verificar!"))),""))) -> ¡Faltan datos! | AD7: =CONCATENATE(C7,D7) -> Acciones implementadas para proteger los derechos de los pueblos indígenas en situación de aislamiento y contacto inicial (PIACI)Proteccion aprobado | AG7: -4 | AI7: ¡Faltan datos! | AJ7: ¡Faltan datos! | AK7: P
A8: I. LINEAMIENTO DE POLITICA Mejorar la Gestión Ambiental. | B8: AGA.1.2 | C8: Agenda Ambiente 2017-2018 aprobada e implementada | D8: Nacional | E8: Informes | F8: Resolución Ministerial aprobada. Responsable: Ministerio del Ambiente ( MINAM ) | H8: 0 | I8: 0 | J8: 0 | K8: 0 | Z8: =+FORECAST(2026,H8:R8,$H$6:$R$6) -> 0 | AB8: =IF(OR(X8="",Z8="",AK8=""),"¡Faltan datos!", IF(AK8="P", IF(Z8>=(X8*85%),"Verde", IF(AND(Z8<(X8*85%),Z8>=(X8*50%)),"Ambar", IF(Z8<(X8*50%),"Rojo","Verificar!"))), IF(AK8="N", IF(Z8<=(X8*115%),"Verde", IF(AND(Z8<=(X8*150%),Z8>(X8*115%)),"Ambar", IF(Z8>(X8*150%),"Rojo","Verificar!"))),""))) -> ¡Faltan datos! | AC8: =IF(OR(Y8="",AA8="",AK8=""),"¡Faltan datos!", IF(AK8="P", IF(AA8>=(Y8*85%),"Verde", IF(AND(AA8<(Y8*85%),AA8>=(Y8*50%)),"Ambar", IF(AA8<(Y8*50%),"Rojo","Verificar!"))), IF(AK8="N", IF(AA8<=(Y8*115%),"Verde", IF(AND(AA8<=(Y8*150%),AA8>(Y8*115%)),"Ambar", IF(AA8>(Y8*150%),"Rojo","Verificar!"))),""))) -> ¡Faltan datos! | AD8: =CONCATENATE(C8,D8) -> Agenda Ambiente 2017-2018 aprobada e implementadaNacional | AG8: 0 | AI8: ¡Faltan datos! | AJ8: ¡Faltan datos! | AK8: P
A9: I. LINEAMIENTO DE POLITICA Mejorar la Gestión Ambiental. | B9: AGA.4.4 | C9: Estudios de Impacto Ambiental detallados aprobados y desaprobados por el SENACE | D9: EIA | E9: EIA | F9: Ministerio de Cultura( MINCUL ) - DEFENSORIA DEL PUEBLO | H9: 0 | I9: 0 | J9: 0 | K9: 0 | Z9: 0 | AB9: ¡Faltan datos! | AC9: ¡Faltan datos! | AD9: Estudios de Impacto Ambiental detallados aprobados y desaprobados por el SENACEEIA | AG9: 0 | AI9: ¡Faltan datos! | AJ9: ¡Faltan datos! | AK9: P
A10: I. LINEAMIENTO DE POLITICA Mejorar la Gestión Ambiental. | B10: AGA.4.7 | C10: Incremento en el presupuesto del SENACE | D10: Porcentaje | E10: Porcentaje | F10: DEFENSORIA DEL PUEBLO - Reporte Mensual de Conflictos Sociales N.° 170 – Abril 2018 | H10: 2.8 | I10: 0 | J10: 0 | K10: 0 | M10: 53.8 | N10: 20.9 | O10: 3.7 | P10: 3.8 | Q10: 3.8 | R10: 4.1 | Z10: 14 | AB10: ¡Faltan datos! | AC10: ¡Faltan datos! | AD10: Incremento en el presupuesto del SENACEPorcentaje | AG10: 14 | AI10: ¡Faltan datos! | AJ10: ¡Faltan datos! | AK10: P
A11: I. LINEAMIENTO DE POLITICA Mejorar la Gestión Ambiental. | B11: AGA.3.1. | C11: Marco normativo para el Ordenamiento Territorial aprobado, actualizado e implementado por todos los niveles de gobierno en forma coordinada. | D11: Ley de Ordenamiento Territorial en discusion en Congreso | E11: Ley | F11: Ministerio del Ambiente ( MINAM ) y Gobierno Regional (GORE) | H11: 0 | I11: 0 | J11: 0 | K11: 0 | Z11: 0 | AB11: ¡Faltan datos! | AC11: ¡Faltan datos! | AD11: Marco normativo para el Ordenamiento Territorial aprobado, actualizado e implementado por todos los niveles de gobierno en forma coordinada.Ley de Ordenamiento Territorial en discusion en Congreso | AG11: 0 | AI11: ¡Faltan datos! | AJ11: ¡Faltan datos! | AK11: P
A12: I. LINEAMIENTO DE POLITICA Mejorar la Gestión Ambiental. | B12: AGA.1.6 | C12: Monto del Presupuesto público ejecutado en la función ambiental (instancias, planes, programas y proyectos de gestión ambiental en los tres niveles de gobierno) - Millones de Soles | D12: Gasto Corriente | E12: Soles | F12: Ministerio del Ambiente ( MINAM )/ Dirección General de Políticas, Normas e Instrumentos de Gestión Ambiental | H12: 2119 | I12: 2356 | J12: 2465 | K12: 26695 | M12: 2356.2 | N12: 2565.5 | O12: 2695.2 | P12: 2654.6 | Q12: 2841.2 | R12: 3040059894 | Z12: =+FORECAST(2026,H12:R12,$H$6:$R$6) -> 1658213872 | AA12: =TREND(H12:K12,$H$6:$K$6,2026,TRUE) -> 108088.7 | AB12: ¡Faltan datos! | AC12: ¡Faltan datos! | AD12: Monto del Presupuesto público ejecutado en la función ambiental (instancias, planes, programas y proyectos de gestión ambiental en los tres niveles de gobierno) - Millones de SolesGasto Corriente | AF12: 100000 | AG12: 1658213872 | AH12: 108088.7 | AI12: ¡Faltan datos! | AJ12: Verde | AK12: P
A13: I. LINEAMIENTO DE POLITICA Mejorar la Gestión Ambiental. | B13: AGA.1.6 | C13: Monto del Presupuesto público ejecutado en la función ambiental (instancias, planes, programas y proyectos de gestión ambiental en los tres niveles de gobierno) - Millones de Soles | D13: Gasto de Inversion | E13: Soles | F13: Instituto Nacional de Estadística e Informática (INEI) - Registro Nacional de Municipalidades (RENAMU) | H13: 424 | I13: 427 | J13: 458 | K13: 659 | M13: 427.3 | N13: 458 | O13: 658.9 | P13: 627.2 | Q13: 577.3 | R13: 618192657 | Z13: 337196373 | AA13: =TREND(H13:K13,$H$6:$K$6,2026,TRUE) -> 1485.6 | AB13: ¡Faltan datos! | AC13: ¡Faltan datos! | AD13: Monto del Presupuesto público ejecutado en la función ambiental (instancias, planes, programas y proyectos de gestión ambiental en los tres niveles de gobierno) - Millones de SolesGasto de Inversion | AG13: 337196373 | AH13: 1485.6 | AI13: ¡Faltan datos! | AJ13: ¡Faltan datos! | AK13: P
A14: I. LINEAMIENTO DE POLITICA Mejorar la Gestión Ambiental. | B14: AGA.4.9 | C14: Norma que regula la aplicación de la Evaluación Ambiental Estratégica (EAE) | D14: Directivas | E14: Directivas | F14: Ministerio del Ambiente ( MINAM )- Gobiernos Regionales - Gobiernos Locales | H14: 0 | I14: 0 | J14: 0 | K14: 0 | Z14: 0 | AB14: ¡Faltan datos! | AC14: ¡Faltan datos! | AD14: Norma que regula la aplicación de la Evaluación Ambiental Estratégica (EAE)Directivas | AG14: 0 | AI14: ¡Faltan datos! | AJ14: ¡Faltan datos! | AK14: P
A15: I. LINEAMIENTO DE POLITICA Mejorar la Gestión Ambiental. | B15: AGA.5.2. | C15: Número de acciones de vigilancia y control para garantizar el uso sostenible de los recursos naturales bajo su jurisdicción | D15: actividades multiples | E15: Acciones | F15: Ministro de Energía y Minas (MEM) - Ministerio del Ambiente ( MINAM ) - Presidencia del Consejo de Ministros (PCM) Comisionado Alto Nivel de Minería Informal | H15: 3 | I15: 0 | J15: 0 | K15: 0 | Z15: -11 | AB15: ¡Faltan datos! | AC15: ¡Faltan datos! | AD15: Número de acciones de vigilancia y control para garantizar el uso sostenible de los recursos naturales bajo su jurisdicciónactividades multiples | AG15: -11 | AI15: ¡Faltan datos! | AJ15: ¡Faltan datos! | AK15: P
A16: I. LINEAMIENTO DE POLITICA Mejorar la Gestión Ambiental. | B16: AGA.5.2. | C16: Número de acciones de vigilancia y control para garantizar el uso sostenible de los recursos naturales bajo su jurisdicción | D16: electricas | E16: Acciones | F16: Ministro de Energía y Minas (MEM) - Ministerio del Ambiente ( MINAM ) - Presidencia del Consejo de Ministros (PCM) Comisionado Alto Nivel de Minería Informal | H16: 1 | I16: 0 | J16: 0 | K16: 0 | Z16: -4 | AB16: ¡Faltan datos! | AC16: ¡Faltan datos! | AD16: Número de acciones de vigilancia y control para garantizar el uso sostenible de los recursos naturales bajo su jurisdicciónelectricas | AG16: -4 | AI16: ¡Faltan datos! | AJ16: ¡Faltan datos! | AK16: P
A17: I. LINEAMIENTO DE POLITICA Mejorar la Gestión Ambiental. | B17: AGA.5.2. | C17: Número de acciones de vigilancia y control para garantizar el uso sostenible de los recursos naturales bajo su jurisdicción | D17: Hidrocarburos | E17: Acciones | F17: Ministro de Energía y Minas (MEM) - Ministerio del Ambiente ( MINAM ) - Presidencia del Consejo de Ministros (PCM) Comisionado Alto Nivel de Minería Informal | H17: 3 | I17: 0 | J17: 0 | K17: 0 | Z17: -11 | AB17: ¡Faltan datos! | AC17: ¡Faltan datos! | AD17: Número de acciones de vigilancia y control para garantizar el uso sostenible de los recursos naturales bajo su jurisdicciónHidrocarburos | AG17: -11 | AI17: ¡Faltan datos! | AJ17: ¡Faltan datos! | AK17: P
A18: I. LINEAMIENTO DE POLITICA Mejorar la Gestión Ambiental. | B18: AGA.5.2. | C18: Número de acciones de vigilancia y control para garantizar el uso sostenible de los recursos naturales bajo su jurisdicción | D18: Mineria | E18: Acciones | F18: Ministerio del Ambiente ( MINAM ) - Gobiernos Regionales - Gobiernos Locales | H18: 4 | I18: 0 | J18: 0 | K18: 0 | Z18: -15 | AB18: ¡Faltan datos! | AC18: ¡Faltan datos! | AD18: Número de acciones de vigilancia y control para garantizar el uso sostenible de los recursos naturales bajo su jurisdicciónMineria | AG18: -15 | AI18: ¡Faltan datos! | AJ18: ¡Faltan datos! | AK18: P
A19: I. LINEAMIENTO DE POLITICA Mejorar la Gestión Ambiental. | B19: AGA.5.2. | C19: Número de acciones de vigilancia y control para garantizar el uso sostenible de los recursos naturales bajo su jurisdicción | D19: pesca | E19: Acciones | F19: Ministro de Energía y Minas (MEM) - Ministerio del Ambiente ( MINAM ) - Presidencia del Consejo de Ministros (PCM) Comisionado Alto Nivel de Minería Informal | H19: 4 | I19: 0 | J19: 0 | K19: 0 | Z19: -15 | AB19: ¡Faltan datos! | AC19: ¡Faltan datos! | AD19: Número de acciones de vigilancia y control para garantizar el uso sostenible de los recursos naturales bajo su jurisdicciónpesca | AG19: -15 | AI19: ¡Faltan datos! | AJ19: ¡Faltan datos! | AK19: P
A20: I. LINEAMIENTO DE POLITICA Mejorar la Gestión Ambiental. | B20: AGA.5.4. | C20: Número de autoridades y funcionarios capacitados en temas de fiscalización ambiental | D20: Nacional | E20: Número de autoridades y fincionarios | F20: SIAAMAZONIA, Ministerio del Ambiente ( MINAM ), Sistema Nacional de Información Ambiental ( SINIA ), SERNAP | H20: 0 | I20: 0 | J20: 0 | K20: 0 | Z20: 0 | AB20: ¡Faltan datos! | AC20: ¡Faltan datos! | AD20: Número de autoridades y funcionarios capacitados en temas de fiscalización ambientalNacional | AG20: 0 | AI20: ¡Faltan datos! | AJ20: ¡Faltan datos! | AK20: P
A21: I. LINEAMIENTO DE POLITICA Mejorar la Gestión Ambiental. | B21: AGA.4.3 | C21: Número de Certificaciones Ambientales Globales a cargo del SENACE | D21: Certificaciones | E21: Certificaciones | F21: Ministerio de Cultura( MINCUL ) | H21: 0 | I21: 0 | J21: 0 | K21: 0 | Z21: 0 | AB21: ¡Faltan datos! | AC21: ¡Faltan datos! | AD21: Número de Certificaciones Ambientales Globales a cargo del SENACECertificaciones | AG21: 0 | AI21: ¡Faltan datos! | AJ21: ¡Faltan datos! | AK21: P
A22: I. LINEAMIENTO DE POLITICA Mejorar la Gestión Ambiental. | B22: AGA.7.3. | C22: Número de conflictos mensuales, según su situación: activos y latentes | D22: Activos | E22: Conflictos | F22: Dirección de Conservación y Planeamiento de los Recursos Hídricos - DCPRH-Autoridad Nacional del Agua ( ANA ) | H22: 143 | I22: 156 | J22: 118 | K22: 144 | M22: 156 | N22: 118 | O22: 130 | P22: 133 | Q22: 146 | R22: 148 | Z22: 137 | AA22: =TREND(H22:K22,$H$6:$K$6,2026,TRUE) -> 93 | AB22: ¡Faltan datos! | AC22: ¡Faltan datos! | AD22: Número de conflictos mensuales, según su situación: activos y latentesActivos | AG22: 137 | AH22: 93 | AI22: ¡Faltan datos! | AJ22: ¡Faltan datos! | AK22: N
A23: I. LINEAMIENTO DE POLITICA Mejorar la Gestión Ambiental. | B23: AGA.7.3. | C23: Número de conflictos mensuales, según su situación: activos y latentes | D23: Conflictos sociales reportados | E23: Conflictos | F23: Dirección de Conservación y Planeamiento de los Recursos Hídricos - DCPRH-Autoridad Nacional del Agua ( ANA ) | H23: 211 | I23: 212 | J23: 171 | K23: 196 | M23: 212 | N23: 171 | O23: 181 | P23: 184 | Q23: 197 | R23: 202 | Z23: 183 | AA23: =TREND(H23:K23,$H$6:$K$6,2026,TRUE) -> 81.4 | AB23: ¡Faltan datos! | AC23: ¡Faltan datos! | AD23: Número de conflictos mensuales, según su situación: activos y latentesConflictos sociales reportados | AG23: 183 | AH23: 81.4 | AI23: ¡Faltan datos! | AJ23: ¡Faltan datos! | AK23: N
A24: I. LINEAMIENTO DE POLITICA Mejorar la Gestión Ambiental. | B24: AGA.7.3. | C24: Número de conflictos mensuales, según su situación: activos y latentes | D24: Latentes | E24: Conflictos | F24: Autoridad Nacional del Agua ( ANA ) | H24: 68 | I24: 56 | J24: 53 | K24: 52 | M24: 56 | N24: 53 | O24: 51 | P24: 51 | Q24: 51 | R24: 54 | Z24: 45 | AB24: ¡Faltan datos! | AC24: ¡Faltan datos! | AD24: Número de conflictos mensuales, según su situación: activos y latentesLatentes | AG24: 45 | AI24: ¡Faltan datos! | AJ24: ¡Faltan datos! | AK24: N
A25: I. LINEAMIENTO DE POLITICA Mejorar la Gestión Ambiental. | B25: AGA.7.4. | C25: Número de conflictos y costos económicos y sociales | D25: Nacional | E25: Número de conflictos. | F25: Dirección de Conservación y Planeamiento de los Recursos Hídricos - DCPRH-Autoridad Nacional del Agua ( ANA ) | H25: 0 | I25: 0 | J25: 0 | K25: 0 | Z25: 0 | AB25: ¡Faltan datos! | AC25: ¡Faltan datos! | AD25: Número de conflictos y costos económicos y socialesNacional | AG25: 0 | AI25: ¡Faltan datos! | AJ25: ¡Faltan datos! | AK25: N
A26: I. LINEAMIENTO DE POLITICA Mejorar la Gestión Ambiental. | B26: AGA.2.4 | C26: Número de Convenios del MINAM con Universidades para investigación y formación en temas ambientales. | D26: Convenios con universidades Publicas y privadas | E26: Convenios | F26: Ministerio del Ambiente ( MINAM ) - Gobierno Regional (GORE) - Ministerio de Educación (MINEDU) | H26: 10 | I26: 0 | J26: 0 | K26: 0 | Z26: -38 | AB26: ¡Faltan datos! | AC26: ¡Faltan datos! | AD26: Número de Convenios del MINAM con Universidades para investigación y formación en temas ambientales.Convenios con universidades Publicas y privadas | AG26: -38 | AI26: ¡Faltan datos! | AJ26: ¡Faltan datos! | AK26: P
A27: I. LINEAMIENTO DE POLITICA Mejorar la Gestión Ambiental. | B27: AGA.2.5 | C27: Número de Convenios del MINEDU con Universidades para la investigación, formación y gestión del conocimiento en temáticas ambientales | D27: Nacional | E27: Número de convenios | F27: Instituto Nacional de Estadística e Informática (INEI) - Registro Nacional de Municipalidades (RENAMU) | H27: 0 | I27: 0 | J27: 0 | K27: 0 | Z27: 0 | AB27: ¡Faltan datos! | AC27: ¡Faltan datos! | AD27: Número de Convenios del MINEDU con Universidades para la investigación, formación y gestión del conocimiento en temáticas ambientalesNacional | AG27: 0 | AI27: ¡Faltan datos! | AJ27: ¡Faltan datos! | AK27: P
A28: I. LINEAMIENTO DE POLITICA Mejorar la Gestión Ambiental. | B28: AGA.8.1. | C28: Numero de entidades nacionales que reportan medidas de ecoeficiencia | D28: Nacional | E28: Entidades | F28: Dirección de Administración de Recursos Hídricos (DARH)-Autoridad Nacional del Agua ( ANA ) | H28: 0 | I28: 0 | J28: 0 | K28: 0 | Z28: 0 | AB28: ¡Faltan datos! | AC28: ¡Faltan datos! | AD28: Numero de entidades nacionales que reportan medidas de ecoeficiencia Nacional | AG28: 0 | AI28: ¡Faltan datos! | AJ28: ¡Faltan datos! | AK28: P
A29: I. LINEAMIENTO DE POLITICA Mejorar la Gestión Ambiental. | B29: AGA.2.6. | C29: Número de estudios realizados para mejorar el conocimiento y las tecnologías para el uso sostenible de la biodiversidad, valorizando el conocimiento tradicional (investigaciones, estudios de mercado, usos) | D29: Nacional | E29: Estudios | F29: Ministerio del Ambiente ( MINAM ) y sectores | H29: 0 | I29: 0 | J29: 0 | K29: 0 | Z29: 0 | AB29: ¡Faltan datos! | AC29: ¡Faltan datos! | AD29: Número de estudios realizados para mejorar el conocimiento y las tecnologías para el uso sostenible de la biodiversidad, valorizando el conocimiento tradicional (investigaciones, estudios de mercado, usos)Nacional | AG29: 0 | AI29: ¡Faltan datos! | AJ29: ¡Faltan datos! | AK29: P
A30: I. LINEAMIENTO DE POLITICA Mejorar la Gestión Ambiental. | B30: AGA.3.3. | C30: Número de Gobiernos Regionales que cuentan con instrumentos de Gestión Ambiental aprobados y en implementación | D30: Nacional | E30: Gobiernos Regionales | F30: Ministerio del Ambiente ( MINAM ) | H30: 0 | I30: 0 | J30: 0 | K30: 0 | Z30: 0 | AB30: ¡Faltan datos! | AC30: ¡Faltan datos! | AD30: Número de Gobiernos Regionales que cuentan con instrumentos de Gestión Ambiental aprobados y en implementaciónNacional | AG30: 0 | AI30: ¡Faltan datos! | AJ30: ¡Faltan datos! | AK30: P
A31: I. LINEAMIENTO DE POLITICA Mejorar la Gestión Ambiental. | B31: AGA.8.2. | C31: Numero de gobiernos regionales que reportan medidas de ecoeficiencia, incluyendo sus distintas gerencias y direcciones | D31: Nacional | E31: Gobiernos Regionales | F31: Dirección de Gestión de Calidad de los Recursos Hídricos - DGCRH-Autoridad Nacional del Agua ( ANA ) | H31: 0 | I31: 0 | J31: 0 | K31: 0 | Z31: 0 | AB31: ¡Faltan datos! | AC31: ¡Faltan datos! | AD31: Numero de gobiernos regionales que reportan medidas de ecoeficiencia, incluyendo sus distintas gerencias y direcciones Nacional | AG31: 0 | AI31: ¡Faltan datos! | AJ31: ¡Faltan datos! | AK31: P
A32: I. LINEAMIENTO DE POLITICA Mejorar la Gestión Ambiental. | B32: AGA.2.2 | C32: Número de gobiernos regionales y locales que cuentan con agenda de investigación ambiental | D32: Gobiernos Regionales | E32: Gobiernos | F32: Consejo Nacional de Ciencia , Tecnologia , e Innovacion de Tecnologia ( CONCYTEC) - Instituto de Investigaciones de la Amazonía Peruana – IIAP -Sistema Nacional de Información Ambiental ( SINIA )-Ministerio del Ambiente ( MINAM ) | H32: 3 | I32: 0 | J32: 0 | K32: 0 | Z32: -11 | AB32: ¡Faltan datos! | AC32: ¡Faltan datos! | AD32: Número de gobiernos regionales y locales que cuentan con agenda de investigación ambientalGobiernos Regionales | AG32: -11 | AI32: ¡Faltan datos! | AJ32: ¡Faltan datos! | AK32: P
A33: I. LINEAMIENTO DE POLITICA Mejorar la Gestión Ambiental. | B33: AGA.4.5 | C33: Número de Gobiernos regionales y locales que reciben asesoría técnica en la concordancia entre SEIA - SNIP | D33: Funcionarios | E33: Funcionarios | F33: Informe de gestión anual ONDS 2015 - Oficina Nacional de Diálogo ONDS | H33: 147 | I33: 0 | J33: 0 | K33: 0 | Z33: -559 | AB33: ¡Faltan datos! | AC33: ¡Faltan datos! | AD33: Número de Gobiernos regionales y locales que reciben asesoría técnica en la concordancia entre SEIA - SNIPFuncionarios | AG33: -559 | AI33: ¡Faltan datos! | AJ33: ¡Faltan datos! | AK33: P
A34: I. LINEAMIENTO DE POLITICA Mejorar la Gestión Ambiental. | B34: AGA.2.3 | C34: Número de gobiernos regionales y municipalidades provinciales que cuentan con un Sistema de Información Ambiental, integrado con el SINIA | D34: Gobiernos regionales cuentan con SIAL | E34: Gobiernos | F34: Ministerio del Ambiente ( MINAM ) | H34: 65 | I34: 0 | J34: 0 | K34: 0 | Z34: -247 | AB34: ¡Faltan datos! | AC34: ¡Faltan datos! | AD34: Número de gobiernos regionales y municipalidades provinciales que cuentan con un Sistema de Información Ambiental, integrado con el SINIAGobiernos regionales cuentan con SIAL | AG34: -247 | AI34: ¡Faltan datos! | AJ34: ¡Faltan datos! | AK34: P
A35: I. LINEAMIENTO DE POLITICA Mejorar la Gestión Ambiental. | B35: AGA.2.3 | C35: Número de gobiernos regionales y municipalidades provinciales que cuentan con un Sistema de Información Ambiental, integrado con el SINIA | D35: Gobiernos regionales cuentan con SIAR | E35: Gobiernos | F35: Congreso de la República | H35: 25 | I35: 0 | J35: 0 | K35: 0 | Z35: -95 | AB35: ¡Faltan datos! | AC35: ¡Faltan datos! | AD35: Número de gobiernos regionales y municipalidades provinciales que cuentan con un Sistema de Información Ambiental, integrado con el SINIAGobiernos regionales cuentan con SIAR | AG35: -95 | AI35: ¡Faltan datos! | AJ35: ¡Faltan datos! | AK35: P
A36: I. LINEAMIENTO DE POLITICA Mejorar la Gestión Ambiental. | B36: AGA.3.2. | C36: Número de GR y GL que cuentan con procesos de Ordenamiento Territorial culminados y en ejecución | D36: GL provinciales | E36: Porcentaje | F36: Ministerio del Ambiente ( MINAM ) | H36: 20 | I36: 0 | J36: 0 | K36: 0 | Z36: -76 | AB36: ¡Faltan datos! | AC36: ¡Faltan datos! | AD36: Número de GR y GL que cuentan con procesos de Ordenamiento Territorial culminados y en ejecuciónGL provinciales | AG36: -76 | AI36: ¡Faltan datos! | AJ36: ¡Faltan datos! | AK36: P
A37: I. LINEAMIENTO DE POLITICA Mejorar la Gestión Ambiental. | B37: AGA.3.2. | C37: Número de GR y GL que cuentan con procesos de Ordenamiento Territorial culminados y en ejecución | D37: GR avanzando | E37: Gobiernos Regionales | F37: SENACE | H37: 7 | I37: 0 | J37: 0 | K37: 0 | Z37: -27 | AB37: ¡Faltan datos! | AC37: ¡Faltan datos! | AD37: Número de GR y GL que cuentan con procesos de Ordenamiento Territorial culminados y en ejecuciónGR avanzando | AG37: -27 | AI37: ¡Faltan datos! | AJ37: ¡Faltan datos! | AK37: P
A38: I. LINEAMIENTO DE POLITICA Mejorar la Gestión Ambiental. | B38: AGA.3.2. | C38: Número de GR y GL que cuentan con procesos de Ordenamiento Territorial culminados y en ejecución | D38: GR cuentan con ZEE aprobados | E38: Gobiernos Regionales | F38: Ministerio del Ambiente ( MINAM ) - Servicio Nacional de Certificacion Ambiental para las Inversiones Sostenibles ( SENACE ) | H38: 14 | I38: 0 | J38: 0 | K38: 0 | Z38: -53 | AB38: ¡Faltan datos! | AC38: ¡Faltan datos! | AD38: Número de GR y GL que cuentan con procesos de Ordenamiento Territorial culminados y en ejecuciónGR cuentan con ZEE aprobados | AG38: -53 | AI38: ¡Faltan datos! | AJ38: ¡Faltan datos! | AK38: P
A39: I. LINEAMIENTO DE POLITICA Mejorar la Gestión Ambiental. | B39: AGA.9.2. | C39: Numero de IGAC en proceso de implementación | D39: IGAC | E39: IGAC aprobados | F39: Dirección de Gestión de Calidad de los Recursos Hídricos - DGCRH-Autoridad Nacional del Agua ( ANA ) | H39: 110 | I39: 0 | J39: 0 | K39: 0 | Z39: -418 | AB39: ¡Faltan datos! | AC39: ¡Faltan datos! | AD39: Numero de IGAC en proceso de implementaciónIGAC | AG39: -418 | AI39: ¡Faltan datos! | AJ39: ¡Faltan datos! | AK39: P
A40: I. LINEAMIENTO DE POLITICA Mejorar la Gestión Ambiental. | B40: AGA.1.8 | C40: Número de Informes de Evaluación Ambiental Integrada por año | D40: Informes de evaluacion ambiental | E40: Informes | F40: Ministerio de Economía y Finanzas (MEF) - CONCYTEC | H40: 0 | I40: 0 | J40: 0 | K40: 0 | Z40: 0 | AB40: ¡Faltan datos! | AC40: ¡Faltan datos! | AD40: Número de Informes de Evaluación Ambiental Integrada por año Informes de evaluacion ambiental | AG40: 0 | AI40: ¡Faltan datos! | AJ40: ¡Faltan datos! | AK40: P
A41: I. LINEAMIENTO DE POLITICA Mejorar la Gestión Ambiental. | B41: AGA.1.3 | C41: Número de instancias de coordinación intersectorial, intergubernamental funcionando | D41: Nacional | E41: Instancias | F41: Ministerio del Ambiente ( MINAM ) | H41: 0 | I41: 0 | J41: 0 | K41: 0 | Z41: 0 | AB41: ¡Faltan datos! | AC41: ¡Faltan datos! | AD41: Número de instancias de coordinación intersectorial, intergubernamental funcionandoNacional | AG41: 0 | AI41: ¡Faltan datos! | AJ41: ¡Faltan datos! | AK41: P
A42: I. LINEAMIENTO DE POLITICA Mejorar la Gestión Ambiental. | B42: AGA.1.5 | C42: Número de instancias participativas funcionando (Comisión Nacional Ambiental, Comision Nacional sobre Cambio Climatico, Comisión Nacional de Diversidad Biologica, Comision Nacional contra la Desertificación y Sequía; Comisiones regionales y Comisiones locales) | D42: Comisiones Ambientales Municipales | E42: Comisiones Ambientales | F42: Sin datos | H42: 382 | I42: 0 | J42: 0 | K42: 0 | Z42: -1452 | AB42: ¡Faltan datos! | AC42: ¡Faltan datos! | AD42: Número de instancias participativas funcionando (Comisión Nacional Ambiental, Comision Nacional sobre Cambio Climatico, Comisión Nacional de Diversidad Biologica, Comision Nacional contra la Desertificación y Sequía; Comisiones regionales y Comisiones locales)Comisiones Ambientales Municipales | AG42: -1452 | AI42: ¡Faltan datos! | AJ42: ¡Faltan datos! | AK42: P
A43: I. LINEAMIENTO DE POLITICA Mejorar la Gestión Ambiental. | B43: AGA.1.5 | C43: Número de instancias participativas funcionando (Comisión Nacional Ambiental, Comision Nacional sobre Cambio Climatico, Comisión Nacional de Diversidad Biologica, Comision Nacional contra la Desertificación y Sequía; Comisiones regionales y Comisiones locales) | D43: Comisiones Ambientales Regionales | E43: Comisiones Ambientales Regionales | F43: Ministerio de Economía y Finanzas - MEF / SIAF Consulta Amigable Enero 2019 | H43: 24 | I43: 0 | J43: 0 | K43: 0 | Z43: -91 | AB43: ¡Faltan datos! | AC43: ¡Faltan datos! | AD43: Número de instancias participativas funcionando (Comisión Nacional Ambiental, Comision Nacional sobre Cambio Climatico, Comisión Nacional de Diversidad Biologica, Comision Nacional contra la Desertificación y Sequía; Comisiones regionales y Comisiones locales)Comisiones Ambientales Regionales | AG43: -91 | AI43: ¡Faltan datos! | AJ43: ¡Faltan datos! | AK43: P
A44: I. LINEAMIENTO DE POLITICA Mejorar la Gestión Ambiental. | B44: AGA.1.5 | C44: Número de instancias participativas funcionando (Comisión Nacional Ambiental, Comision Nacional sobre Cambio Climatico, Comisión Nacional de Diversidad Biologica, Comision Nacional contra la Desertificación y Sequía; Comisiones regionales y Comisiones locales) | D44: Comisiones Nacionales Instaladas | E44: Comisiones Nacionales | F44: Ministerio del Ambiente ( MINAM ) | H44: 4 | I44: 0 | J44: 0 | K44: 0 | Z44: -15 | AB44: ¡Faltan datos! | AC44: ¡Faltan datos! | AD44: Número de instancias participativas funcionando (Comisión Nacional Ambiental, Comision Nacional sobre Cambio Climatico, Comisión Nacional de Diversidad Biologica, Comision Nacional contra la Desertificación y Sequía; Comisiones regionales y Comisiones locales)Comisiones Nacionales Instaladas | AG44: -15 | AI44: ¡Faltan datos! | AJ44: ¡Faltan datos! | AK44: P
A45: I. LINEAMIENTO DE POLITICA Mejorar la Gestión Ambiental. | B45: AGA.4.8 | C45: Número de instrumentos de compensación ambiental implementados | D45: Nacional | E45: Instrumentos | F45: DEFENSORIA DEL PUEBLO - Reporte Mensual de Conflictos Sociales N.° 170 – Abril 2018 | H45: 0 | I45: 0 | J45: 0 | K45: 0 | Z45: 0 | AB45: ¡Faltan datos! | AC45: ¡Faltan datos! | AD45: Número de instrumentos de compensación ambiental implementadosNacional | AG45: 0 | AI45: ¡Faltan datos! | AJ45: ¡Faltan datos! | AK45: P
A46: I. LINEAMIENTO DE POLITICA Mejorar la Gestión Ambiental. | B46: AGA.1.10 | C46: Número de instrumentos de gestión ambiental que incorporan indicadores de género e interculturalidad. | D46: Número de instrumentos | E46: Número de instrumentos | F46: Ministerio del Ambiente ( MINAM ) | H46: 0 | I46: 0 | J46: 0 | K46: 0 | Z46: 0 | AB46: ¡Faltan datos! | AC46: ¡Faltan datos! | AD46: Número de instrumentos de gestión ambiental que incorporan indicadores de género e interculturalidad.Número de instrumentos | AG46: 0 | AI46: ¡Faltan datos! | AJ46: ¡Faltan datos! | AK46: P
A47: I. LINEAMIENTO DE POLITICA Mejorar la Gestión Ambiental. | B47: AGA.9.1. | C47: Numero de mineros artesanales formalizados a nivel regional y nacional | D47: Nacional | E47: Mineros | F47: OSNIRH-Autoridad Nacional del Agua ( ANA ) | H47: 0 | I47: 0 | J47: 0 | K47: 0 | Z47: 0 | AB47: ¡Faltan datos! | AC47: ¡Faltan datos! | AD47: Numero de mineros artesanales formalizados a nivel regional y nacional Nacional | AG47: 0 | AI47: ¡Faltan datos! | AJ47: ¡Faltan datos! | AK47: P
A48: I. LINEAMIENTO DE POLITICA Mejorar la Gestión Ambiental. | B48: AGA.8.3. | C48: Numero de municipalidades que reportan medidas de ecoeficiencia, incluyendo sus distintas gerencias y direcciones | D48: Nacional | E48: Municipalidades | F48: Dirección de Administración de Recursos Hídricos (DARH)-Autoridad Nacional del Agua ( ANA ) | H48: 0 | I48: 0 | J48: 0 | K48: 0 | Z48: 0 | AB48: ¡Faltan datos! | AC48: ¡Faltan datos! | AD48: Numero de municipalidades que reportan medidas de ecoeficiencia, incluyendo sus distintas gerencias y direcciones Nacional | AG48: 0 | AI48: ¡Faltan datos! | AJ48: ¡Faltan datos! | AK48: P
A49: I. LINEAMIENTO DE POLITICA Mejorar la Gestión Ambiental. | B49: AGA.4.2 | C49: Número de normas que regulan el procedimiento de evaluación de impacto ambiental a cargo de los Gobiernos Regionales | D49: Normas | E49: Normas | F49: Ministerio del Ambiente ( MINAM ) - Ministerio de Agricultura y Riego ( MINAGRI) - Gobierno Regional (GORE) | H49: 0 | I49: 0 | J49: 0 | K49: 0 | Z49: 0 | AB49: ¡Faltan datos! | AC49: ¡Faltan datos! | AD49: Número de normas que regulan el procedimiento de evaluación de impacto ambiental a cargo de los Gobiernos RegionalesNormas | AG49: 0 | AI49: ¡Faltan datos! | AJ49: ¡Faltan datos! | AK49: P
A50: I. LINEAMIENTO DE POLITICA Mejorar la Gestión Ambiental. | B50: AGA.5.3. | C50: Número de Organizaciones comunales, indígenas, de jóvenes y de la sociedad civil que participan en mecanismos de monitoreo, vigilancia ambiental | D50: Programas de monitoreo ambiental funcionando | E50: Organizaciones | F50: Ministerio del Ambiente ( MINAM )/ Dirección General de Diversidad Biológica | H50: 3 | I50: 0 | J50: 0 | K50: 0 | Z50: -11 | AB50: ¡Faltan datos! | AC50: ¡Faltan datos! | AD50: Número de Organizaciones comunales, indígenas, de jóvenes y de la sociedad civil que participan en mecanismos de monitoreo, vigilancia ambientalProgramas de monitoreo ambiental funcionando | AG50: -11 | AI50: ¡Faltan datos! | AJ50: ¡Faltan datos! | AK50: P
A51: I. LINEAMIENTO DE POLITICA Mejorar la Gestión Ambiental. | B51: AGA.6.1. | C51: Número de procesos de consulta previa culminados con participación del sector ambiente | D51: Procesos de consulta previa realizados | E51: Procesos | F51: Ministerio del Ambiente ( MINAM )/ Dirección General de Diversidad Biológica | H51: 25 | I51: 0 | J51: 0 | K51: 0 | Z51: -95 | AB51: ¡Faltan datos! | AC51: ¡Faltan datos! | AD51: Número de procesos de consulta previa culminados con participación del sector ambiente Procesos de consulta previa realizados | AG51: -95 | AI51: ¡Faltan datos! | AJ51: ¡Faltan datos! | AK51: P
A52: I. LINEAMIENTO DE POLITICA Mejorar la Gestión Ambiental. | B52: AGA.4.6 | C52: Número de procesos de EAE con asesoría de MINAM (políticas, programas y proyectos) | D52: EAE | E52: EAE | F52: DEFENSORIA DEL PUEBLO - Reporte Mensual de Conflictos Sociales N.° 170 – Abril 2018 | H52: 3 | I52: 0 | J52: 0 | K52: 0 | Z52: -11 | AB52: ¡Faltan datos! | AC52: ¡Faltan datos! | AD52: Número de procesos de EAE con asesoría de MINAM (políticas, programas y proyectos)EAE | AG52: -11 | AI52: ¡Faltan datos! | AJ52: ¡Faltan datos! | AK52: P
A53: I. LINEAMIENTO DE POLITICA Mejorar la Gestión Ambiental. | B53: AGA.6.2. | C53: Número de pueblos indigenas que han completado la titulación de sus tierras sin trabas y barreras burocráticas | D53: Comunidades Nativas | E53: Pueblos indigenas | F53: Ministerio del Ambiente ( MINAM ) | H53: 165 | I53: 0 | J53: 0 | K53: 0 | Z53: -627 | AB53: ¡Faltan datos! | AC53: ¡Faltan datos! | AD53: Número de pueblos indigenas que han completado la titulación de sus tierras sin trabas y barreras burocráticasComunidades Nativas | AG53: -627 | AI53: ¡Faltan datos! | AJ53: ¡Faltan datos! | AK53: P
A54: I. LINEAMIENTO DE POLITICA Mejorar la Gestión Ambiental. | B54: AGA.6.5. | C54: Número de pueblos indígenas y personas de estos pueblos que reciben beneficos directos por actividades extractivas | D54: Nacional | E54: Pueblos indigenas | F54: Ministerio del Ambiente ( MINAM ) | H54: 0 | I54: 0 | J54: 0 | K54: 0 | Z54: 0 | AB54: ¡Faltan datos! | AC54: ¡Faltan datos! | AD54: Número de pueblos indígenas y personas de estos pueblos que reciben beneficos directos por actividades extractivas Nacional | AG54: 0 | AI54: ¡Faltan datos! | AJ54: ¡Faltan datos! | AK54: P
A55: I. LINEAMIENTO DE POLITICA Mejorar la Gestión Ambiental. | B55: AGA.4.1. | C55: Número de reglamentos de protección ambiental a nivel sectorial aprobados | D55: Subsectores | E55: Reglamentos | F55: Instituto Nacional de Estadística e Informática (INEI) - Ministerio de Agricultura y Riego ( MINAGRI) - Gobierno Regional (GORE) | H55: 5 | I55: 0 | J55: 0 | K55: 0 | Z55: -19 | AB55: ¡Faltan datos! | AC55: ¡Faltan datos! | AD55: Número de reglamentos de protección ambiental a nivel sectorial aprobadosSubsectores | AG55: -19 | AI55: ¡Faltan datos! | AJ55: ¡Faltan datos! | AK55: P
A56: I. LINEAMIENTO DE POLITICA Mejorar la Gestión Ambiental. | B56: AGA.5.6. | C56: Número de Sanciones ejecutadas por OEFA anualmente | D56: Nacional | E56: Sanciones | F56: Ministerio del Ambiente ( MINAM ) | H56: 0 | I56: 0 | J56: 0 | K56: 0 | Z56: 0 | AB56: ¡Faltan datos! | AC56: ¡Faltan datos! | AD56: Número de Sanciones ejecutadas por OEFA anualmenteNacional | AG56: 0 | AI56: ¡Faltan datos! | AJ56: ¡Faltan datos! | AK56: P
A57: I. LINEAMIENTO DE POLITICA Mejorar la Gestión Ambiental. | B57: AGA.5.1. | C57: Número de sanciones por el incumplimiento de las obligaciones ambientales fiscalizables | D57: Regionales | E57: Regionales | F57: Ministerio del Ambiente ( MINAM ) - Gobiernos Regionales - Gobiernos Locales | H57: 9 | I57: 0 | J57: 0 | K57: 0 | Z57: -34 | AB57: ¡Faltan datos! | AC57: ¡Faltan datos! | AD57: Número de sanciones por el incumplimiento de las obligaciones ambientales fiscalizablesRegionales | AG57: -34 | AI57: ¡Faltan datos! | AJ57: ¡Faltan datos! | AK57: P
A58: I. LINEAMIENTO DE POLITICA Mejorar la Gestión Ambiental. | B58: AGA.5.5. | C58: Número de supervisiones que realice OEFA a las EFA a fin de verificar el cumplimiento de las obligaciones ambientales | D58: Nacional | E58: Supervisiones | F58: Ministerio del Ambiente ( MINAM ) | H58: 0 | I58: 0 | J58: 0 | K58: 0 | Z58: 0 | AB58: ¡Faltan datos! | AC58: ¡Faltan datos! | AD58: Número de supervisiones que realice OEFA a las EFA a fin de verificar el cumplimiento de las obligaciones ambientalesNacional | AG58: 0 | AI58: ¡Faltan datos! | AJ58: ¡Faltan datos! | AK58: P
A59: I. LINEAMIENTO DE POLITICA Mejorar la Gestión Ambiental. | B59: AGA.7.2. | C59: Observatorio de Conflictos Sociales de la Defensoría del Pueblo funcionando y reportando procesos de conflictos | D59: Conflictos por Actividad Hidrocarburíferas | E59: Número de conflictos. | F59: Defensoría del Pueblo | G59: 17 | H59: 23 | I59: 23 | J59: 17 | K59: 15 | Z59: -21 | AB59: ¡Faltan datos! | AC59: ¡Faltan datos! | AD59: Observatorio de Conflictos Sociales de la Defensoría del Pueblo funcionando y reportando procesos de conflictosConflictos por Actividad Hidrocarburíferas | AG59: -21 | AI59: ¡Faltan datos! | AJ59: ¡Faltan datos! | AK59: N
A60: I. LINEAMIENTO DE POLITICA Mejorar la Gestión Ambiental. | B60: AGA.7.2. | C60: Observatorio de Conflictos Sociales de la Defensoría del Pueblo funcionando y reportando procesos de conflictos | D60: Conflictos por Actividad Minera | E60: Número de conflictos. | F60: Defensoría del Pueblo | G60: 78 | H60: 91 | I60: 95 | J60: 78 | K60: 73 | Z60: -12 | AB60: ¡Faltan datos! | AC60: ¡Faltan datos! | AD60: Observatorio de Conflictos Sociales de la Defensoría del Pueblo funcionando y reportando procesos de conflictosConflictos por Actividad Minera | AG60: -12 | AI60: ¡Faltan datos! | AJ60: ¡Faltan datos! | AK60: N
A61: I. LINEAMIENTO DE POLITICA Mejorar la Gestión Ambiental. | B61: AGA.7.2. | C61: Observatorio de Conflictos Sociales de la Defensoría del Pueblo funcionando y reportando procesos de conflictos | D61: Conflictos por Actividades Energéticas | E61: Número de conflictos. | F61: Defensoría del Pueblo | G61: 9 | H61: 11 | I61: 12 | J61: 8 | K61: 7 | Z61: -12 | AB61: ¡Faltan datos! | AC61: ¡Faltan datos! | AD61: Observatorio de Conflictos Sociales de la Defensoría del Pueblo funcionando y reportando procesos de conflictosConflictos por Actividades Energéticas | AG61: -12 | AI61: ¡Faltan datos! | AJ61: ¡Faltan datos! | AK61: N
A62: I. LINEAMIENTO DE POLITICA Mejorar la Gestión Ambiental. | B62: AGA.7.2. | C62: Observatorio de Conflictos Sociales de la Defensoría del Pueblo funcionando y reportando procesos de conflictos | D62: Conflictos Socioambientales | E62: Número de conflictos. | F62: Defensoría del Pueblo | G62: 116 | H62: 145 | I62: 146 | J62: 120 | K62: 113 | M62: 146 | N62: 120 | O62: 113 | P62: 127 | Q62: 129 | R62: 129 | Z62: 116 | AB62: ¡Faltan datos! | AC62: ¡Faltan datos! | AD62: Observatorio de Conflictos Sociales de la Defensoría del Pueblo funcionando y reportando procesos de conflictosConflictos Socioambientales | AG62: 116 | AI62: ¡Faltan datos! | AJ62: ¡Faltan datos! | AK62: N
A63: I. LINEAMIENTO DE POLITICA Mejorar la Gestión Ambiental. | B63: AGA.7.2. | C63: Observatorio de Conflictos Sociales de la Defensoría del Pueblo funcionando y reportando procesos de conflictos | D63: Energia | E63: Porcentaje | F63: Autoridad Nacional del Agua ( ANA ) | H63: 7.6 | I63: 8.2 | J63: 6.7 | K63: 7.9 | M63: 8.2 | N63: 6.7 | O63: 6.2 | P63: 5.5 | Q63: 3.1 | R63: 66.7 | Z63: 37 | AB63: ¡Faltan datos! | AC63: ¡Faltan datos! | AD63: Observatorio de Conflictos Sociales de la Defensoría del Pueblo funcionando y reportando procesos de conflictosEnergia | AG63: 37 | AI63: ¡Faltan datos! | AJ63: ¡Faltan datos! | AK63: N
A64: I. LINEAMIENTO DE POLITICA Mejorar la Gestión Ambiental. | B64: AGA.7.2. | C64: Observatorio de Conflictos Sociales de la Defensoría del Pueblo funcionando y reportando procesos de conflictos | D64: Hidrocarburos | E64: Porcentaje | F64: Dirección de Conservación y Planeamiento de los Recursos Hídricos - DCPRH-Autoridad Nacional del Agua ( ANA ) | H64: 15.9 | I64: 15.8 | J64: 14.2 | K64: 13.4 | M64: 15.8 | N64: 14.2 | O64: 13.3 | P64: 15 | Q64: 17.8 | R64: 18.6 | Z64: 17 | AB64: ¡Faltan datos! | AC64: ¡Faltan datos! | AD64: Observatorio de Conflictos Sociales de la Defensoría del Pueblo funcionando y reportando procesos de conflictosHidrocarburos | AG64: 17 | AI64: ¡Faltan datos! | AJ64: ¡Faltan datos! | AK64: N
A65: I. LINEAMIENTO DE POLITICA Mejorar la Gestión Ambiental. | B65: AGA.7.2. | C65: Observatorio de Conflictos Sociales de la Defensoría del Pueblo funcionando y reportando procesos de conflictos | D65: Minera | E65: Porcentaje | F65: Dirección de Conservación y Planeamiento de los Recursos Hídricos - DCPRH-Autoridad Nacional del Agua ( ANA ) | H65: 62.8 | I65: 65.1 | J65: 65 | K65: 65.4 | M65: 65.1 | N65: 65 | O65: 64.6 | P65: 65.4 | Q65: 64.3 | R65: 1.6 | Z65: 31 | AB65: ¡Faltan datos! | AC65: ¡Faltan datos! | AD65: Observatorio de Conflictos Sociales de la Defensoría del Pueblo funcionando y reportando procesos de conflictosMinera | AG65: 31 | AI65: ¡Faltan datos! | AJ65: ¡Faltan datos! | AK65: N
A66: I. LINEAMIENTO DE POLITICA Mejorar la Gestión Ambiental. | B66: AGA.7.2. | C66: Observatorio de Conflictos Sociales de la Defensoría del Pueblo funcionando y reportando procesos de conflictos | D66: Nacional | E66: Porcentaje | F66: Dirección de Conservación y Planeamiento de los Recursos Hídricos - DCPRH-Autoridad Nacional del Agua ( ANA ) | H66: 68.7 | I66: 68.9 | J66: 71 | K66: 64.8 | Z66: 55 | AB66: ¡Faltan datos! | AC66: ¡Faltan datos! | AD66: Observatorio de Conflictos Sociales de la Defensoría del Pueblo funcionando y reportando procesos de conflictosNacional | AG66: 55 | AI66: ¡Faltan datos! | AJ66: ¡Faltan datos! | AK66: N
A67: I. LINEAMIENTO DE POLITICA Mejorar la Gestión Ambiental. | B67: AGA.1.1 | C67: Plan Nacional de Acción Ambiental 2016-2021 actualizado e implementado | D67: Nacional | E67: Informes | F67: Decreto Supremo aprobado. Responsable: Ministerio del Ambiente ( MINAM ) | H67: 0 | I67: 0 | J67: 0 | K67: 0 | Z67: 0 | AB67: ¡Faltan datos! | AC67: ¡Faltan datos! | AD67: Plan Nacional de Acción Ambiental 2016-2021 actualizado e implementadoNacional | AG67: 0 | AI67: ¡Faltan datos! | AJ67: ¡Faltan datos! | AK67: P
A68: I. LINEAMIENTO DE POLITICA Mejorar la Gestión Ambiental. | B68: AGA.1.4 | C68: Plan Nacional de Educación Ambiental 2016-2021 (PLANEA) aprobado e implementado | D68: Nacional | E68: Informes | F68: Decreto Supremo aprobado. Responsable: MINEDU y MINAM | H68: 0 | I68: 0 | J68: 0 | K68: 0 | Z68: 0 | AB68: ¡Faltan datos! | AC68: ¡Faltan datos! | AD68: Plan Nacional de Educación Ambiental 2016-2021 (PLANEA) aprobado e implementadoNacional | AG68: 0 | AI68: ¡Faltan datos! | AJ68: ¡Faltan datos! | AK68: P
A69: I. LINEAMIENTO DE POLITICA Mejorar la Gestión Ambiental. | B69: AGA.3.4. | C69: Porcentaje de Municipalidades cuentan con instrumentos de gestión ambiental aprobados y en implementación | D69: Agenda ambiental-Municipios distritales | E69: Porcentaje | F69: Organismo de Evaluación y Fiscalización Ambiental (OEFA)- OSINFOR | H69: 14 | I69: 19 | J69: 18 | K69: 21.4 | M69: 19 | N69: 18 | O69: 20 | P69: 10 | Q69: 12 | Z69: 12 | AB69: ¡Faltan datos! | AC69: ¡Faltan datos! | AD69: Porcentaje de Municipalidades cuentan con instrumentos de gestión ambiental aprobados y en implementaciónAgenda ambiental-Municipios distritales | AG69: 12 | AI69: ¡Faltan datos! | AJ69: ¡Faltan datos! | AK69: P
A70: I. LINEAMIENTO DE POLITICA Mejorar la Gestión Ambiental. | B70: AGA.3.4. | C70: Porcentaje de Municipalidades cuentan con instrumentos de gestión ambiental aprobados y en implementación | D70: Diagnostico ambiental-Municipios distritales | E70: Porcentaje | F70: Ministerio del Ambiente ( MINAM ) | H70: 22 | I70: 33 | J70: 31 | K70: 41.4 | M70: 31 | N70: 32 | O70: 34 | P70: 14 | Q70: 16 | Z70: 16 | AB70: ¡Faltan datos! | AC70: ¡Faltan datos! | AD70: Porcentaje de Municipalidades cuentan con instrumentos de gestión ambiental aprobados y en implementaciónDiagnostico ambiental-Municipios distritales | AG70: 16 | AI70: ¡Faltan datos! | AJ70: ¡Faltan datos! | AK70: P
A71: I. LINEAMIENTO DE POLITICA Mejorar la Gestión Ambiental. | B71: AGA.3.4. | C71: Porcentaje de Municipalidades cuentan con instrumentos de gestión ambiental aprobados y en implementación | D71: Evaluaciones ambientales | E71: Porcentaje | F71: Organismo de Evaluación y Fiscalización Ambiental (OEFA)- OSINFOR | H71: 10 | I71: 12 | J71: 18 | K71: 0 | M71: 18 | N71: 58 | O71: 20 | P71: 64 | Q71: 94 | Z71: 115 | AB71: ¡Faltan datos! | AC71: =IF(OR(Y71="",AA71="",AK71=""),"¡Faltan datos!", IF(AK71="P", IF(AA71>=(Y71*85%),"Verde", IF(AND(AA71<(Y71*85%),AA71>=(Y71*50%)),"Ambar", IF(AA71<(Y71*50%),"Rojo","Verificar!"))), IF(AK71="N", IF(AA71<=(Y71*115%),"Verde", IF(AND(AA71<=(Y71*150%),AA71>(Y71*115%)),"Ambar", IF(AA71>(Y71*150%),"Rojo","Verificar!"))),""))) -> ¡Faltan datos! | AD71: Porcentaje de Municipalidades cuentan con instrumentos de gestión ambiental aprobados y en implementaciónEvaluaciones ambientales | AG71: 115 | AI71: ¡Faltan datos! | AJ71: ¡Faltan datos! | AK71: P
A72: I. LINEAMIENTO DE POLITICA Mejorar la Gestión Ambiental. | B72: AGA.3.4. | C72: Porcentaje de Municipalidades cuentan con instrumentos de gestión ambiental aprobados y en implementación | D72: Fiscalizaciones ambientales | E72: Fiscalizaciones | F72: MINCUL - MINAM | H72: 13 | I72: 27 | J72: 32 | K72: 0 | M72: 32 | N72: 58 | O72: 35 | P72: 64 | Q72: 94 | Z72: =+FORECAST(2026,H72:R72,$H$6:$R$6) -> 114 | AB72: =IF(OR(X72="",Z72="",AK72=""),"¡Faltan datos!", IF(AK72="P", IF(Z72>=(X72*85%),"Verde", IF(AND(Z72<(X72*85%),Z72>=(X72*50%)),"Ambar", IF(Z72<(X72*50%),"Rojo","Verificar!"))), IF(AK72="N", IF(Z72<=(X72*115%),"Verde", IF(AND(Z72<=(X72*150%),Z72>(X72*115%)),"Ambar", IF(Z72>(X72*150%),"Rojo","Verificar!"))),""))) -> ¡Faltan datos! | AC72: ¡Faltan datos! | AD72: =CONCATENATE(C72,D72) -> Porcentaje de Municipalidades cuentan con instrumentos de gestión ambiental aprobados y en implementaciónFiscalizaciones ambientales | AG72: 114 | AI72: ¡Faltan datos! | AJ72: ¡Faltan datos! | AK72: P
A73: I. LINEAMIENTO DE POLITICA Mejorar la Gestión Ambiental. | B73: AGA.3.4. | C73: Porcentaje de Municipalidades cuentan con instrumentos de gestión ambiental aprobados y en implementación | D73: Municipalidades que tienen instrumentos de gestion ambiental | E73: Porcentaje | F73: Ministerio de Economía y Finanzas (MEF) -Ministerio del Ambiente ( MINAM ) - Servicio Nacional de Certificacion Ambiental para las Inversiones Sostenibles ( SENACE ) | H73: 46 | I73: 59 | J73: 61 | K73: 0 | M73: 61 | N73: 70 | O73: 75 | P73: 72 | Q73: 83 | R73: 85 | Z73: 105 | AB73: ¡Faltan datos! | AC73: ¡Faltan datos! | AD73: Porcentaje de Municipalidades cuentan con instrumentos de gestión ambiental aprobados y en implementaciónMunicipalidades que tienen instrumentos de gestion ambiental | AG73: 105 | AI73: ¡Faltan datos! | AJ73: ¡Faltan datos! | AK73: P
A74: I. LINEAMIENTO DE POLITICA Mejorar la Gestión Ambiental. | B74: AGA.3.4. | C74: Porcentaje de Municipalidades cuentan con instrumentos de gestión ambiental aprobados y en implementación | D74: Plan de accion ambiental | E74: Porcentaje | F74: Ministerio del Ambiente ( MINAM ) | H74: 17 | I74: 24 | J74: 30 | K74: 0 | M74: 30 | N74: 28 | O74: 31 | P74: 14 | Q74: 17 | Z74: 23 | AB74: ¡Faltan datos! | AC74: ¡Faltan datos! | AD74: Porcentaje de Municipalidades cuentan con instrumentos de gestión ambiental aprobados y en implementaciónPlan de accion ambiental | AG74: 23 | AI74: ¡Faltan datos! | AJ74: ¡Faltan datos! | AK74: P
A75: I. LINEAMIENTO DE POLITICA Mejorar la Gestión Ambiental. | B75: AGA.3.4. | C75: Porcentaje de Municipalidades cuentan con instrumentos de gestión ambiental aprobados y en implementación | D75: Plan de calidad de aire | E75: Porcentaje | F75: Organismo de Evaluación y Fiscalización Ambiental (OEFA)-Entidades de Fiscalización Ambiental (EFA) | H75: 3 | I75: 3 | J75: 3 | K75: 0 | M75: 3 | Z75: 0 | AB75: ¡Faltan datos! | AC75: ¡Faltan datos! | AD75: Porcentaje de Municipalidades cuentan con instrumentos de gestión ambiental aprobados y en implementaciónPlan de calidad de aire | AG75: 0 | AI75: ¡Faltan datos! | AJ75: ¡Faltan datos! | AK75: P
A76: I. LINEAMIENTO DE POLITICA Mejorar la Gestión Ambiental. | B76: AGA.3.4. | C76: Porcentaje de Municipalidades cuentan con instrumentos de gestión ambiental aprobados y en implementación | D76: Politica ambiental | E76: Porcentaje | F76: Organismo de Evaluación y Fiscalización Ambiental (OEFA)- OSINFOR | H76: 14 | I76: 18 | J76: 18 | K76: 0 | M76: 18 | N76: 20 | O76: 23 | P76: 14 | Q76: 16 | Z76: 21 | AB76: ¡Faltan datos! | AC76: ¡Faltan datos! | AD76: Porcentaje de Municipalidades cuentan con instrumentos de gestión ambiental aprobados y en implementaciónPolitica ambiental | AG76: 21 | AI76: ¡Faltan datos! | AJ76: ¡Faltan datos! | AK76: P
A77: I. LINEAMIENTO DE POLITICA Mejorar la Gestión Ambiental. | B77: AGA.3.4. | C77: Porcentaje de Municipalidades cuentan con instrumentos de gestión ambiental aprobados y en implementación | D77: Sistema de gestion ambiental | E77: Porcentaje | F77: Organismo de Evaluación y Fiscalización Ambiental (OEFA)- OSINFOR | H77: 11 | I77: 18 | J77: 18 | K77: 0 | M77: 18 | O77: 20 | Z77: 24 | AB77: ¡Faltan datos! | AC77: ¡Faltan datos! | AD77: Porcentaje de Municipalidades cuentan con instrumentos de gestión ambiental aprobados y en implementaciónSistema de gestion ambiental | AG77: 24 | AI77: ¡Faltan datos! | AJ77: ¡Faltan datos! | AK77: P
A78: I. LINEAMIENTO DE POLITICA Mejorar la Gestión Ambiental. | B78: AGA.3.4. | C78: Porcentaje de Municipalidades cuentan con instrumentos de gestión ambiental aprobados y en implementación | D78: ZEE | E78: Porcentaje | F78: Organismo de Evaluación y Fiscalización Ambiental (OEFA)- OSINFOR | H78: 5 | I78: 7 | J78: 6 | K78: 0 | M78: 6 | N78: 6 | Z78: 5 | AB78: ¡Faltan datos! | AC78: ¡Faltan datos! | AD78: Porcentaje de Municipalidades cuentan con instrumentos de gestión ambiental aprobados y en implementaciónZEE | AG78: 5 | AI78: ¡Faltan datos! | AJ78: ¡Faltan datos! | AK78: P
A79: I. LINEAMIENTO DE POLITICA Mejorar la Gestión Ambiental. | B79: AGA.1.9 | C79: Porcentaje de Municipalidades que implementan acciones para la gestión ambiental a nivel distrital y provincial | D79: Municipalidades ejecutaron proyectos ambientales ( Porcentaje) | E79: Porcentaje | F79: Ministerio del Ambiente ( MINAM )-Sistema Nacional de Información Ambiental ( SINIA ) | H79: 22 | I79: 18 | J79: 20 | K79: 0 | M79: 20 | N79: 14 | O79: 10 | Z79: 2 | AB79: ¡Faltan datos! | AC79: ¡Faltan datos! | AD79: Porcentaje de Municipalidades que implementan acciones para la gestión ambiental a nivel distrital y provincialMunicipalidades ejecutaron proyectos ambientales ( Porcentaje) | AG79: 2 | AI79: ¡Faltan datos! | AJ79: ¡Faltan datos! | AK79: P
A80: I. LINEAMIENTO DE POLITICA Mejorar la Gestión Ambiental. | B80: AGA.1.9 | C80: Porcentaje de Municipalidades que implementan acciones para la gestión ambiental a nivel distrital y provincial | D80: Municipalidades formularon proyectos de atención(Porcentaje) | E80: Porcentaje | F80: Ministerio del Ambiente ( MINAM )-Sistema Nacional de Información Ambiental ( SINIA ) | H80: 4 | I80: 15 | J80: 15 | K80: 0 | M80: 15 | N80: 12 | O80: 7 | Z80: 12 | AB80: ¡Faltan datos! | AC80: ¡Faltan datos! | AD80: Porcentaje de Municipalidades que implementan acciones para la gestión ambiental a nivel distrital y provincialMunicipalidades formularon proyectos de atención(Porcentaje) | AG80: 12 | AI80: ¡Faltan datos! | AJ80: ¡Faltan datos! | AK80: P
A81: I. LINEAMIENTO DE POLITICA Mejorar la Gestión Ambiental. | B81: AGA.2.1 | C81: Porcentaje de Presupuesto nacional, regional y local ejecutado para la implementación de estudios, investigaciones, centros de información y comunicación para la gestión ambiental | D81: Norma Técnica para la aprobación del enfoque ambiental en la educación básica | E81: Porcentaje | F81: MINEDU | H81: 0 | I81: 0 | J81: 0 | K81: 0 | M81: 20.3 | N81: 18.2 | O81: 18.5 | P81: 16.7 | Q81: 13.2 | R81: 16.4 | Z81: 31 | AB81: ¡Faltan datos! | AC81: ¡Faltan datos! | AD81: Porcentaje de Presupuesto nacional, regional y local ejecutado para la implementación de estudios, investigaciones, centros de información y comunicación para la gestión ambientalNorma Técnica para la aprobación del enfoque ambiental en la educación básica | AG81: 31 | AI81: ¡Faltan datos! | AJ81: ¡Faltan datos! | AK81: P
A82: I. LINEAMIENTO DE POLITICA Mejorar la Gestión Ambiental. | B82: AGA.1.7 | C82: Presupuesto ejecutado en la función ambiental en relación al total del presupuesto nacional - Millones de Soles | D82: Gasto publico | E82: Millones de soles | F82: Informe anual de Ministerio del Ambiente ( MINAM ) de la Ley 28983 Igualdad de Oportunidades entre Mujeres y Hombres | H82: 0 | I82: 2783.5 | J82: 2923.5 | K82: 3328.1 | M82: 2783.5 | N82: 2923.5 | O82: 3328.1 | P82: 3287.9 | Q82: 3418.4 | R82: 3658252551 | Z82: 1995413331 | AA82: =TREND(H82:K82,$H$6:$K$6,2026,TRUE) -> 15926.6 | AB82: ¡Faltan datos! | AC82: ¡Faltan datos! | AD82: Presupuesto ejecutado en la función ambiental en relación al total del presupuesto nacional - Millones de SolesGasto publico | AF82: 100000 | AG82: 1995413331 | AH82: 15926.6 | AI82: ¡Faltan datos! | AJ82: Rojo | AK82: P
A83: I. LINEAMIENTO DE POLITICA Mejorar la Gestión Ambiental. | B83: AGA.1.7 | C83: Presupuesto ejecutado en la función ambiental en relación al total del presupuesto nacional - Millones de Soles | D83: Porcentaje respecto al total de presupuesto | E83: Porcentaje | F83: Ministerio de Educación (MINEDU) | H83: 0 | I83: 2 | J83: 1.9 | K83: 2.1 | M83: 2.03 | N83: 1.94 | O83: 2.07 | P83: 2.02 | Q83: 1.87 | R83: 1.84 | Z83: 3 | AB83: ¡Faltan datos! | AC83: ¡Faltan datos! | AD83: Presupuesto ejecutado en la función ambiental en relación al total del presupuesto nacional - Millones de SolesPorcentaje respecto al total de presupuesto | AG83: 3 | AI83: ¡Faltan datos! | AJ83: ¡Faltan datos! | AK83: P
A84: I. LINEAMIENTO DE POLITICA Mejorar la Gestión Ambiental. | B84: AGA.6.3. | C84: Pueblos indigenas participando en iniciativas de gestión de recursos naturales | D84: Nacional | E84: Pueblos indigenas | F84: Ministerio del Ambiente ( MINAM ) | H84: 0 | I84: 0 | J84: 0 | K84: 0 | Z84: 0 | AB84: ¡Faltan datos! | AC84: ¡Faltan datos! | AD84: Pueblos indigenas participando en iniciativas de gestión de recursos naturalesNacional | AG84: 0 | AI84: ¡Faltan datos! | AJ84: ¡Faltan datos! | AK84: P
A85: I. LINEAMIENTO DE POLITICA Mejorar la Gestión Ambiental. | B85: AGA.7.1. | C85: Sistema nacional de diálogo y gestión de conflictos funcionando en forma coordinada y descentralizada | D85: Nacional | E85: Informes | F85: Ministerio del Ambiente ( MINAM ) | H85: 0 | I85: 0 | J85: 0 | K85: 0 | Z85: 0 | AB85: ¡Faltan datos! | AC85: ¡Faltan datos! | AD85: Sistema nacional de diálogo y gestión de conflictos funcionando en forma coordinada y descentralizadaNacional | AG85: 0 | AI85: ¡Faltan datos! | AJ85: ¡Faltan datos! | AK85: P
A86: II. LINEAMIENTO DE POLITICA Fomentar el uso y aprovechamiento sostenible de los Recursos Naturales. | B86: AGA.10.4. | C86: % del ámbito marítimo que se encuentra bajo alguna modalidad de gestión efectiva de la biodiversidad | D86: Ambito marino | E86: Porcentaje | F86: Dirección de Gestión de Conocimiento y Coordinación Interinstitucional - DGCCI-Autoridad Nacional del Agua ( ANA ) | H86: 0 | I86: 0 | J86: 0 | K86: 0 | Z86: 0 | AB86: ¡Faltan datos! | AC86: ¡Faltan datos! | AD86: % del ámbito marítimo que se encuentra bajo alguna modalidad de gestión efectiva de la biodiversidadAmbito marino | AG86: 0 | AI86: ¡Faltan datos! | AJ86: ¡Faltan datos! | AK86: P
A87: II. LINEAMIENTO DE POLITICA Fomentar el uso y aprovechamiento sostenible de los Recursos Naturales. | B87: AGA.10.3. | C87: % del ámbito terrestre que se encuentra bajo alguna modalidad de gestión efectiva de la biodiversidad | D87: Porcentaje del ambito | E87: Porcentaje | F87: Dirección de Gestión de Conocimiento y Coordinación Interinstitucional - DGCCI-Autoridad Nacional del Agua ( ANA ) | H87: 12 | I87: 0 | J87: 0 | K87: 0 | Z87: -46 | AB87: ¡Faltan datos! | AC87: ¡Faltan datos! | AD87: % del ámbito terrestre que se encuentra bajo alguna modalidad de gestión efectiva de la biodiversidadPorcentaje del ambito | AG87: -46 | AI87: ¡Faltan datos! | AJ87: ¡Faltan datos! | AK87: P
A88: II. LINEAMIENTO DE POLITICA Fomentar el uso y aprovechamiento sostenible de los Recursos Naturales. | B88: AGA.13.5. | C88: Creación y funcionamiento de Consejos de Recursos hídricos en cuencas con participación de sociedad civil | D88: Consejos de Recursos Hídricos en cuencas Instalados | E88: Consejos | F88: Dirección de Conservación y Planeamiento de los Recursos Hídricos - DCPRH-Autoridad Nacional del Agua ( ANA ) | H88: 6 | I88: 0 | J88: 0 | K88: 0 | Z88: -23 | AB88: ¡Faltan datos! | AC88: ¡Faltan datos! | AD88: Creación y funcionamiento de Consejos de Recursos hídricos en cuencas con participación de sociedad civilConsejos de Recursos Hídricos en cuencas Instalados | AG88: -23 | AI88: ¡Faltan datos! | AJ88: ¡Faltan datos! | AK88: P
A89: II. LINEAMIENTO DE POLITICA Fomentar el uso y aprovechamiento sostenible de los Recursos Naturales. | B89: AGA.10.1. | C89: Diagnóstico nacional del estado de la biodiversidad del pais, actualizado y difundido anualmente | D89: Nacional | E89: Informes | F89: Dirección de Gestión de Calidad de los Recursos Hídricos - DGCRH-Autoridad Nacional del Agua ( ANA ) | H89: 0 | I89: 0 | J89: 0 | K89: 0 | Z89: 0 | AB89: ¡Faltan datos! | AC89: ¡Faltan datos! | AD89: Diagnóstico nacional del estado de la biodiversidad del pais, actualizado y difundido anualmenteNacional | AG89: 0 | AI89: ¡Faltan datos! | AJ89: ¡Faltan datos! | AK89: P
A90: II. LINEAMIENTO DE POLITICA Fomentar el uso y aprovechamiento sostenible de los Recursos Naturales. | B90: AGA.10.2. | C90: Estado de la conservación del SINANPE | D90: AREAS DE CONSERVACION PRIVADA | E90: Área | F90: Dirección de Gestión de Calidad de los Recursos Hídricos - DGCRH-Autoridad Nacional del Agua ( ANA ) | H90: 62 | I90: 0 | J90: 0 | K90: 0 | Z90: -236 | AB90: ¡Faltan datos! | AC90: ¡Faltan datos! | AD90: Estado de la conservación del SINANPEAREAS DE CONSERVACION PRIVADA | AG90: -236 | AI90: ¡Faltan datos! | AJ90: ¡Faltan datos! | AK90: P
A91: II. LINEAMIENTO DE POLITICA Fomentar el uso y aprovechamiento sostenible de los Recursos Naturales. | B91: AGA.10.2. | C91: Estado de la conservación del SINANPE | D91: AREAS DE CONSERVACION REGIONAL | E91: Área | F91: Autoridad Nacional del Agua ( ANA ) | H91: 15 | I91: 0 | J91: 0 | K91: 0 | Z91: -57 | AB91: ¡Faltan datos! | AC91: ¡Faltan datos! | AD91: Estado de la conservación del SINANPEAREAS DE CONSERVACION REGIONAL | AG91: -57 | AI91: ¡Faltan datos! | AJ91: ¡Faltan datos! | AK91: P
A92: II. LINEAMIENTO DE POLITICA Fomentar el uso y aprovechamiento sostenible de los Recursos Naturales. | B92: AGA.10.2. | C92: Estado de la conservación del SINANPE | D92: AREAS NATURALES PROTEGIDAS | E92: Área | F92: Dirección de Gestión de Calidad de los Recursos Hídricos - DGCRH-Autoridad Nacional del Agua ( ANA ) | H92: 77 | I92: 0 | J92: 0 | K92: 0 | Z92: -293 | AB92: ¡Faltan datos! | AC92: ¡Faltan datos! | AD92: Estado de la conservación del SINANPEAREAS NATURALES PROTEGIDAS | AG92: -293 | AI92: ¡Faltan datos! | AJ92: ¡Faltan datos! | AK92: P
A93: II. LINEAMIENTO DE POLITICA Fomentar el uso y aprovechamiento sostenible de los Recursos Naturales. | B93: AGA.10.7. | C93: Estrategia Nacional contra la Desertificación y Sequía implementada | D93: Nacional | E93: Informes | F93: Dirección de Gestión de Conocimiento y Coordinación Interinstitucional - DGCCI-Autoridad Nacional del Agua ( ANA ) | H93: 0 | I93: 0 | J93: 0 | K93: 0 | Z93: 0 | AB93: ¡Faltan datos! | AC93: ¡Faltan datos! | AD93: Estrategia Nacional contra la Desertificación y Sequía implementadaNacional | AG93: 0 | AI93: ¡Faltan datos! | AJ93: ¡Faltan datos! | AK93: P
A94: II. LINEAMIENTO DE POLITICA Fomentar el uso y aprovechamiento sostenible de los Recursos Naturales. | B94: AGA.10.6. | C94: Estrategia Nacional de Humedales implementada | D94: Nacional | E94: Informes | F94: Dirección de Gestión de Conocimiento y Coordinación Interinstitucional - DGCCI-Autoridad Nacional del Agua ( ANA ) | H94: 0 | I94: 0 | J94: 0 | K94: 0 | Z94: 0 | AB94: ¡Faltan datos! | AC94: ¡Faltan datos! | AD94: Estrategia Nacional de Humedales implementadaNacional | AG94: 0 | AI94: ¡Faltan datos! | AJ94: ¡Faltan datos! | AK94: P
A95: II. LINEAMIENTO DE POLITICA Fomentar el uso y aprovechamiento sostenible de los Recursos Naturales. | B95: AGA.13.4. | C95: Implementación del Sistema Nacional de Gestión de los Recursos Hídricos | D95: Nacional | E95: Informes | F95: Ministerio del Ambiente ( MINAM ) - PCB | H95: 0 | I95: 0 | J95: 0 | K95: 0 | Z95: 0 | AB95: ¡Faltan datos! | AC95: ¡Faltan datos! | AD95: Implementación del Sistema Nacional de Gestión de los Recursos HídricosNacional | AG95: 0 | AI95: ¡Faltan datos! | AJ95: ¡Faltan datos! | AK95: P
A96: II. LINEAMIENTO DE POLITICA Fomentar el uso y aprovechamiento sostenible de los Recursos Naturales. | B96: AGA.13.3. | C96: Implementar planes de gestión de recursos hídricos por cuencas transfronterizas. | D96: Nacional | E96: Informes | F96: Ministerio del Ambiente ( MINAM ) | H96: 0 | I96: 0 | J96: 0 | K96: 0 | Z96: 0 | AB96: ¡Faltan datos! | AC96: ¡Faltan datos! | AD96: Implementar planes de gestión de recursos hídricos por cuencas transfronterizas.Nacional | AG96: 0 | AI96: ¡Faltan datos! | AJ96: ¡Faltan datos! | AK96: P
A97: II. LINEAMIENTO DE POLITICA Fomentar el uso y aprovechamiento sostenible de los Recursos Naturales. | B97: AGA.11.1. | C97: N° de bionegocios competitivos, preferentemente orientados al modelo de biocomercio | D97: Competitivos Orientados | E97: Bionegocios | F97: Autoridad Nacional del Agua ( ANA ) - sectores públicos involucrados | H97: 89 | I97: 0 | J97: 0 | K97: 0 | Z97: -338 | AB97: ¡Faltan datos! | AC97: ¡Faltan datos! | AD97: N° de bionegocios competitivos, preferentemente orientados al modelo de biocomercioCompetitivos Orientados | AG97: -338 | AI97: ¡Faltan datos! | AJ97: ¡Faltan datos! | AK97: P
A98: II. LINEAMIENTO DE POLITICA Fomentar el uso y aprovechamiento sostenible de los Recursos Naturales. | B98: AGA.12.1. | C98: N° de proyectos de servicios ecosistemicos implementados y en funcionamiento | D98: Iniciativas | E98: Proyectos | F98: Autoridad Nacional del Agua ( ANA )-Ministerio del Ambiente ( MINAM )-Ministerio de Economía y Finanzas (MEF) | H98: 2 | I98: 0 | J98: 0 | K98: 0 | Z98: -8 | AB98: ¡Faltan datos! | AC98: ¡Faltan datos! | AD98: N° de proyectos de servicios ecosistemicos implementados y en funcionamientoIniciativas | AG98: -8 | AI98: ¡Faltan datos! | AJ98: ¡Faltan datos! | AK98: P
A99: II. LINEAMIENTO DE POLITICA Fomentar el uso y aprovechamiento sostenible de los Recursos Naturales. | B99: AGA.12.1. | C99: N° de proyectos de servicios ecosistemicos implementados y en funcionamiento | D99: Proceso | E99: Proyectos | F99: Ministerio de Energia y Mina ( MINEM) | H99: 6 | I99: 0 | J99: 0 | K99: 0 | Z99: -23 | AB99: ¡Faltan datos! | AC99: ¡Faltan datos! | AD99: N° de proyectos de servicios ecosistemicos implementados y en funcionamientoProceso | AG99: -23 | AI99: ¡Faltan datos! | AJ99: ¡Faltan datos! | AK99: P
A100: II. LINEAMIENTO DE POLITICA Fomentar el uso y aprovechamiento sostenible de los Recursos Naturales. | B100: AGA.10.9. | C100: N° de GOREs que cuentan con Estrategias y Planes de acción para la gestión de la biodiversidad en implementación | D100: Estrategias Regionales | E100: GORES | F100: Dirección de Gestión de Conocimiento y Coordinación Interinstitucional - DGCCI-Autoridad Nacional del Agua ( ANA ) | H100: 10 | I100: 0 | J100: 0 | K100: 0 | Z100: -38 | AB100: ¡Faltan datos! | AC100: ¡Faltan datos! | AD100: N° de GOREs que cuentan con Estrategias y Planes de acción para la gestión de la biodiversidad en implementaciónEstrategias Regionales | AG100: -38 | AI100: ¡Faltan datos! | AJ100: ¡Faltan datos! | AK100: P
A101: II. LINEAMIENTO DE POLITICA Fomentar el uso y aprovechamiento sostenible de los Recursos Naturales. | B101: AGA.16.1. | C101: N° de Informes mensuales y anuales de Monitoreo del uso sectorial de los recursos hídricos | D101: Nacional | E101: Informes | F101: Ministerio de Economía y Finanzas - MEF / SIAF Consulta Amigable 2019 | H101: 0 | I101: 0 | J101: 0 | K101: 0 | Z101: 0 | AB101: ¡Faltan datos! | AC101: ¡Faltan datos! | AD101: N° de Informes mensuales y anuales de Monitoreo del uso sectorial de los recursos hídricos Nacional | AG101: 0 | AI101: ¡Faltan datos! | AJ101: ¡Faltan datos! | AK101: P
A102: II. LINEAMIENTO DE POLITICA Fomentar el uso y aprovechamiento sostenible de los Recursos Naturales. | B102: AGA.10.8. | C102: N° de planes de conservación de especies elaborados y con implementación iniciada | D102: Numero de planes | E102: Plan | F102: Dirección de Gestión de Conocimiento y Coordinación Interinstitucional - DGCCI-Autoridad Nacional del Agua ( ANA ) | H102: 1 | I102: 0 | J102: 0 | K102: 0 | Z102: -4 | AB102: ¡Faltan datos! | AC102: ¡Faltan datos! | AD102: N° de planes de conservación de especies elaborados y con implementación iniciadaNumero de planes | AG102: -4 | AI102: ¡Faltan datos! | AJ102: ¡Faltan datos! | AK102: P
A103: II. LINEAMIENTO DE POLITICA Fomentar el uso y aprovechamiento sostenible de los Recursos Naturales. | B103: AGA.16.2. | C103: N° de Programas y estrategias de conservación de los recursos hídricos implementados (para riego tecnificado, reuso de aguas, por ejemplo) | D103: Nacional | E103: Programas | F103: Autoridad Nacional del Agua ( ANA ) - sectores públicos involucrados | H103: 0 | I103: 0 | J103: 0 | K103: 0 | Z103: 0 | AB103: ¡Faltan datos! | AC103: ¡Faltan datos! | AD103: N° de Programas y estrategias de conservación de los recursos hídricos implementados (para riego tecnificado, reuso de aguas, por ejemplo)Nacional | AG103: 0 | AI103: ¡Faltan datos! | AJ103: ¡Faltan datos! | AK103: P
A104: II. LINEAMIENTO DE POLITICA Fomentar el uso y aprovechamiento sostenible de los Recursos Naturales. | B104: AGA.13.7. | C104: Numero de autorizaciones de vertimiento de aguas residuales tratadas (RAVR) | D104: Nacional | E104: Autorizaciones | F104: Ministerio del Ambiente ( MINAM ), Programa Nacional de Conservación de Bosques | H104: 0 | I104: 0 | J104: 0 | K104: 0 | Z104: 0 | AB104: ¡Faltan datos! | AC104: ¡Faltan datos! | AD104: Numero de autorizaciones de vertimiento de aguas residuales tratadas (RAVR)Nacional | AG104: 0 | AI104: ¡Faltan datos! | AJ104: ¡Faltan datos! | AK104: P
A105: II. LINEAMIENTO DE POLITICA Fomentar el uso y aprovechamiento sostenible de los Recursos Naturales. | B105: AGA.18.1. | C105: Número de Comunidades nativas beneficiarias | D105: Nacional | E105: Comunidades | F105: Ministerio de Energia y Mina ( MINEM) - Ministerio de Educación (MINEDU) | H105: 0 | I105: 0 | J105: 0 | K105: 0 | Z105: 0 | AB105: ¡Faltan datos! | AC105: ¡Faltan datos! | AD105: Número de Comunidades nativas beneficiariasNacional | AG105: 0 | AI105: ¡Faltan datos! | AJ105: ¡Faltan datos! | AK105: P
A106: II. LINEAMIENTO DE POLITICA Fomentar el uso y aprovechamiento sostenible de los Recursos Naturales. | B106: AGA.18.6. | C106: Número de familias participando anualmente en el Programa Bosques | D106: Nacional | E106: Familias | F106: Sistema Nacional de Información Ambiental ( SINIA ) | H106: 0 | I106: 0 | J106: 0 | K106: 0 | N106: 14000 | O106: 8356 | P106: 12431 | Z106: 25371 | AB106: ¡Faltan datos! | AC106: ¡Faltan datos! | AD106: Número de familias participando anualmente en el Programa BosquesNacional | AG106: 25371 | AI106: ¡Faltan datos! | AJ106: ¡Faltan datos! | AK106: P
A107: II. LINEAMIENTO DE POLITICA Fomentar el uso y aprovechamiento sostenible de los Recursos Naturales. | B107: AGA.18.2. | C107: Número de Ha. de cultivos ilegales erradicadas | D107: Comunidades nativas beneficiarias del mecanismo TDC | E107: Comunidades | F107: Ministerio del Ambiente ( MINAM )- PCB | H107: 55 | I107: 0 | J107: 0 | K107: 0 | N107: 188 | O107: 241 | P107: 163 | Z107: 400 | AB107: ¡Faltan datos! | AC107: ¡Faltan datos! | AD107: Número de Ha. de cultivos ilegales erradicadas Comunidades nativas beneficiarias del mecanismo TDC | AG107: 400 | AI107: ¡Faltan datos! | AJ107: ¡Faltan datos! | AK107: P
A108: II. LINEAMIENTO DE POLITICA Fomentar el uso y aprovechamiento sostenible de los Recursos Naturales. | B108: AGA.19.2. | C108: Número de Informes anuales sobre estado de Superficie Marina protegida | D108: Nacional | E108: Informes | F108: Sistema Nacional de Información Ambiental ( SINIA ) | H108: 0 | I108: 0 | J108: 0 | K108: 0 | Z108: 0 | AB108: ¡Faltan datos! | AC108: ¡Faltan datos! | AD108: Número de Informes anuales sobre estado de Superficie Marina protegidaNacional | AG108: 0 | AI108: ¡Faltan datos! | AJ108: ¡Faltan datos! | AK108: P
A109: II. LINEAMIENTO DE POLITICA Fomentar el uso y aprovechamiento sostenible de los Recursos Naturales. | B109: AGA.18.3. | C109: Número de Informes anuales sobre superficie del territorio y superficie de bosques amazónicos conservados | D109: Cultivos de coca | E109: Hectárea | F109: Reporte Oficina de las Naciones Unidas contra la Droga y el Delito ( UNODC)- Dic 2018 | H109: 40300 | I109: 43900 | J109: 49900 | K109: 0 | M109: 43900 | N109: 49900 | Z109: 45639 | AB109: ¡Faltan datos! | AC109: ¡Faltan datos! | AD109: Número de Informes anuales sobre superficie del territorio y superficie de bosques amazónicos conservadosCultivos de coca | AG109: 45639 | AI109: ¡Faltan datos! | AJ109: ¡Faltan datos! | AK109: P
A110: II. LINEAMIENTO DE POLITICA Fomentar el uso y aprovechamiento sostenible de los Recursos Naturales. | B110: AGA.18.3. | C110: Número de Informes anuales sobre superficie del territorio y superficie de bosques amazónicos conservados | D110: Erradicadas | E110: Hectárea | F110: Reporte Oficina de las Naciones Unidas contra la Droga y el Delito ( UNODC)- Dic 2018 | H110: 35868 | I110: 30151 | J110: 25784 | K110: 0 | M110: 30151 | N110: 25784 | Z110: 10380 | AB110: ¡Faltan datos! | AC110: ¡Faltan datos! | AD110: Número de Informes anuales sobre superficie del territorio y superficie de bosques amazónicos conservadosErradicadas | AG110: 10380 | AI110: ¡Faltan datos! | AJ110: ¡Faltan datos! | AK110: P
A111: II. LINEAMIENTO DE POLITICA Fomentar el uso y aprovechamiento sostenible de los Recursos Naturales. | B111: AGA.18.3. | C111: Número de Informes anuales sobre superficie del territorio y superficie de bosques amazónicos conservados | D111: Nacional | E111: Informes | F111: Ministerio del Ambiente ( MINAM ), Programa Nacional de Conservación de Bosques | H111: 0 | I111: 0 | J111: 0 | K111: 0 | Z111: 0 | AB111: ¡Faltan datos! | AC111: ¡Faltan datos! | AD111: Número de Informes anuales sobre superficie del territorio y superficie de bosques amazónicos conservadosNacional | AG111: 0 | AI111: ¡Faltan datos! | AJ111: ¡Faltan datos! | AK111: P
A112: II. LINEAMIENTO DE POLITICA Fomentar el uso y aprovechamiento sostenible de los Recursos Naturales. | B112: AGA.14.3. | C112: Número de Informes de Monitoreo de vertimientos | D112: Nacional | E112: Informes | F112: Ministerio de Economía y Finanzas - MEF / SIAF Consulta Amigable 2019 | H112: 0 | I112: 0 | J112: 0 | K112: 0 | Z112: 0 | AB112: ¡Faltan datos! | AC112: ¡Faltan datos! | AD112: Número de Informes de Monitoreo de vertimientosNacional | AG112: 0 | AI112: ¡Faltan datos! | AJ112: ¡Faltan datos! | AK112: P
A113: II. LINEAMIENTO DE POLITICA Fomentar el uso y aprovechamiento sostenible de los Recursos Naturales. | B113: AGA.14.2. | C113: Número de informes de Monitoreo participativo de la calidad de los recursos hídricos en las fuentes naturales para la prevención de conflictos vinculados con la calidad del agua. | D113: Cuencas | E113: Cuencas | F113: Ministerio de Economía y Finanzas - MEF / SIAF Consulta Amigable 2019 | H113: 106 | I113: 0 | J113: 0 | K113: 0 | Z113: -403 | AB113: ¡Faltan datos! | AC113: ¡Faltan datos! | AD113: Número de informes de Monitoreo participativo de la calidad de los recursos hídricos en las fuentes naturales para la prevención de conflictos vinculados con la calidad del agua.Cuencas | AG113: -403 | AI113: ¡Faltan datos! | AJ113: ¡Faltan datos! | AK113: P
A114: II. LINEAMIENTO DE POLITICA Fomentar el uso y aprovechamiento sostenible de los Recursos Naturales. | B114: AGA.15.1. | C114: Número de Investigaciones realizadas para el mejoramiento del conocimiento y cultura del agua orientada al aprovechamiento de los recursos hídricos. | D114: Nacional | E114: Investigaciones | F114: Instituto del Mar del Perú (IMARPE), Ministerio del Ambiente ( MINAM ),Ministerio de Educación (MINEDU) | H114: 0 | I114: 0 | J114: 0 | K114: 0 | Z114: 0 | AB114: ¡Faltan datos! | AC114: ¡Faltan datos! | AD114: Número de Investigaciones realizadas para el mejoramiento del conocimiento y cultura del agua orientada al aprovechamiento de los recursos hídricos.Nacional | AG114: 0 | AI114: ¡Faltan datos! | AJ114: ¡Faltan datos! | AK114: P
A115: II. LINEAMIENTO DE POLITICA Fomentar el uso y aprovechamiento sostenible de los Recursos Naturales. | B115: AGA.14.4. | C115: Número de Planes Ambientales de Agua-PAMA-AGUA aprobados | D115: Nacional | E115: Planes aprobados | F115: Ministerio del Ambiente ( MINAM )/ Dirección General de Ordenamiento Territorial | H115: 0 | I115: 0 | J115: 0 | K115: 0 | Z115: 0 | AB115: ¡Faltan datos! | AC115: ¡Faltan datos! | AD115: Número de Planes Ambientales de Agua-PAMA-AGUA aprobados Nacional | AG115: 0 | AI115: ¡Faltan datos! | AJ115: ¡Faltan datos! | AK115: P
A116: II. LINEAMIENTO DE POLITICA Fomentar el uso y aprovechamiento sostenible de los Recursos Naturales. | B116: AGA.19.1. | C116: Número de Planes de manejo de zonas marino-costeras | D116: Nacional | E116: Planes aprobados | F116: Ministerio del Ambiente ( MINAM )/ Dirección General de Ordenamiento Territorial | H116: 0 | I116: 0 | J116: 0 | K116: 0 | Z116: 0 | AB116: ¡Faltan datos! | AC116: ¡Faltan datos! | AD116: Número de Planes de manejo de zonas marino-costerasNacional | AG116: 0 | AI116: ¡Faltan datos! | AJ116: ¡Faltan datos! | AK116: P
A117: II. LINEAMIENTO DE POLITICA Fomentar el uso y aprovechamiento sostenible de los Recursos Naturales. | B117: AGA.14.5. | C117: Número de Programas de mejoramiento de la calidad de los recursos hídricos en unidades hidrográficas y marino costeras, implementados. | D117: Nacional | E117: Programas | F117: Sistema Nacional de Información Ambiental ( SINIA ) | H117: 0 | I117: 0 | J117: 0 | K117: 0 | Z117: 0 | AB117: ¡Faltan datos! | AC117: ¡Faltan datos! | AD117: Número de Programas de mejoramiento de la calidad de los recursos hídricos en unidades hidrográficas y marino costeras, implementados.Nacional | AG117: 0 | AI117: ¡Faltan datos! | AJ117: ¡Faltan datos! | AK117: P
A118: II. LINEAMIENTO DE POLITICA Fomentar el uso y aprovechamiento sostenible de los Recursos Naturales. | B118: AGA.15.2. | C118: Número de Propuestas curriculares implementadas en los diferentes niveles y modalidades educativas para el desarrollo de una cultura del agua, para cada realidad sociocultural. | D118: Directivas Regionales de Educación aprobadas | E118: Directivas | F118: Ministerio del Ambiente ( MINAM ) | H118: 6 | I118: 0 | J118: 0 | K118: 0 | Z118: -23 | AB118: ¡Faltan datos! | AC118: ¡Faltan datos! | AD118: Número de Propuestas curriculares implementadas en los diferentes niveles y modalidades educativas para el desarrollo de una cultura del agua, para cada realidad sociocultural.Directivas Regionales de Educación aprobadas | AG118: -23 | AI118: ¡Faltan datos! | AJ118: ¡Faltan datos! | AK118: P
A119: II. LINEAMIENTO DE POLITICA Fomentar el uso y aprovechamiento sostenible de los Recursos Naturales. | B119: AGA.19.3. | C119: Número de propuestas de educación ambiental para el desarrollo de una cultura de conservación del ecosistema marino costero | D119: Nacional | E119: Propuestas | F119: Instituto del Mar del Perú (IMARPE), Ministerio del Ambiente ( MINAM ),Ministerio de Educación (MINEDU) | H119: 0 | I119: 0 | J119: 0 | K119: 0 | Z119: 0 | AB119: ¡Faltan datos! | AC119: ¡Faltan datos! | AD119: Número de propuestas de educación ambiental para el desarrollo de una cultura de conservación del ecosistema marino costeroNacional | AG119: 0 | AI119: ¡Faltan datos! | AJ119: ¡Faltan datos! | AK119: P
A120: II. LINEAMIENTO DE POLITICA Fomentar el uso y aprovechamiento sostenible de los Recursos Naturales. | B120: AGA.17.2. | C120: Número de proyectos de Recursos de Energías Renovables (RER) en el Plan Energético Nacional | D120: Nacional | E120: Proyectos | F120: Ministerio de Energia y Mina ( MINEM) | H120: 0 | I120: 0 | J120: 0 | K120: 0 | Z120: 0 | AB120: ¡Faltan datos! | AC120: ¡Faltan datos! | AD120: Número de proyectos de Recursos de Energías Renovables (RER) en el Plan Energético NacionalNacional | AG120: 0 | AI120: ¡Faltan datos! | AJ120: ¡Faltan datos! | AK120: P
A121: II. LINEAMIENTO DE POLITICA Fomentar el uso y aprovechamiento sostenible de los Recursos Naturales. | B121: AGA.20.2. | C121: Porcentaje de implementación de la Estrategia Nacional de Lucha contra la Desertificación y la Sequía- ENLCDS | D121: Nacional | E121: Porcentaje | F121: Ministerio del Ambiente ( MINAM )/ Dirección General de Cambio Climático, Desertificación y Recursos Hídricos | H121: 0 | I121: 0 | J121: 0 | K121: 0 | Z121: 0 | AB121: ¡Faltan datos! | AC121: ¡Faltan datos! | AD121: Porcentaje de implementación de la Estrategia Nacional de Lucha contra la Desertificación y la Sequía- ENLCDSNacional | AG121: 0 | AI121: ¡Faltan datos! | AJ121: ¡Faltan datos! | AK121: P
A122: II. LINEAMIENTO DE POLITICA Fomentar el uso y aprovechamiento sostenible de los Recursos Naturales. | B122: AGA.17.1. | C122: Porcentaje de incremento del consumo de la electricidad generada por energias renovables no convencionales | D122: Energia consumida | E122: Porcentaje | F122: Ministerio de Energia y Mina ( MINEM) | H122: 40 | I122: 0 | J122: 0 | K122: 0 | Z122: -152 | AB122: ¡Faltan datos! | AC122: ¡Faltan datos! | AD122: Porcentaje de incremento del consumo de la electricidad generada por energias renovables no convencionalesEnergia consumida | AG122: -152 | AI122: ¡Faltan datos! | AJ122: ¡Faltan datos! | AK122: P
A123: II. LINEAMIENTO DE POLITICA Fomentar el uso y aprovechamiento sostenible de los Recursos Naturales. | B123: AGA.17.5. | C123: Porcentaje de tasa de degradación de los ecosistemas (Reducir al 5% al año 2021) | D123: Nacional | E123: Porcentaje | F123: Congreso de la República | H123: 0 | I123: 0 | J123: 0 | K123: 0 | Z123: 0 | AB123: ¡Faltan datos! | AC123: ¡Faltan datos! | AD123: Porcentaje de tasa de degradación de los ecosistemas (Reducir al 5% al año 2021)Nacional | AG123: 0 | AI123: ¡Faltan datos! | AJ123: ¡Faltan datos! | AK123: P
A124: II. LINEAMIENTO DE POLITICA Fomentar el uso y aprovechamiento sostenible de los Recursos Naturales. | B124: AGA.13.6. | C124: Porcentaje de usuarios que formalizan sus derechos de usos de agua. | D124: Costa | E124: Porcentaje | F124: Dirección de Conservación y Planeamiento de los Recursos Hídricos - DCPRH-Autoridad Nacional del Agua ( ANA ) | H124: 70 | I124: 0 | J124: 0 | K124: 0 | Z124: -266 | AB124: ¡Faltan datos! | AC124: ¡Faltan datos! | AD124: Porcentaje de usuarios que formalizan sus derechos de usos de agua.Costa | AG124: -266 | AI124: ¡Faltan datos! | AJ124: ¡Faltan datos! | AK124: P
A125: II. LINEAMIENTO DE POLITICA Fomentar el uso y aprovechamiento sostenible de los Recursos Naturales. | B125: AGA.13.6. | C125: Porcentaje de usuarios que formalizan sus derechos de usos de agua. | D125: Sierra | E125: Porcentaje | F125: Dirección de Conservación y Planeamiento de los Recursos Hídricos - DCPRH-Autoridad Nacional del Agua ( ANA ) | H125: 10 | I125: 0 | J125: 0 | K125: 0 | Z125: -38 | AB125: ¡Faltan datos! | AC125: ¡Faltan datos! | AD125: Porcentaje de usuarios que formalizan sus derechos de usos de agua.Sierra | AG125: -38 | AI125: ¡Faltan datos! | AJ125: ¡Faltan datos! | AK125: P
A126: II. LINEAMIENTO DE POLITICA Fomentar el uso y aprovechamiento sostenible de los Recursos Naturales. | B126: AGA.13.6. | C126: Porcentaje de usuarios que formalizan sus derechos de usos de agua. | D126: Titicaca | E126: Porcentaje | F126: Dirección de Conservación y Planeamiento de los Recursos Hídricos - DCPRH-Autoridad Nacional del Agua ( ANA ) | H126: 20 | I126: 0 | J126: 0 | K126: 0 | Z126: -76 | AB126: ¡Faltan datos! | AC126: ¡Faltan datos! | AD126: Porcentaje de usuarios que formalizan sus derechos de usos de agua.Titicaca | AG126: -76 | AI126: ¡Faltan datos! | AJ126: ¡Faltan datos! | AK126: P
A127: II. LINEAMIENTO DE POLITICA Fomentar el uso y aprovechamiento sostenible de los Recursos Naturales. | B127: AGA.13.6. | C127: Porcentaje de usuarios que formalizan sus derechos de usos de agua. | D127: Vertedero Atlantico | E127: Porcentaje | F127: Dirección de Conservación y Planeamiento de los Recursos Hídricos - DCPRH-Autoridad Nacional del Agua ( ANA ) | H127: 2 | I127: 0 | J127: 0 | K127: 0 | Z127: -8 | AB127: ¡Faltan datos! | AC127: ¡Faltan datos! | AD127: Porcentaje de usuarios que formalizan sus derechos de usos de agua.Vertedero Atlantico | AG127: -8 | AI127: ¡Faltan datos! | AJ127: ¡Faltan datos! | AK127: P
A128: II. LINEAMIENTO DE POLITICA Fomentar el uso y aprovechamiento sostenible de los Recursos Naturales. | B128: AGA.18.13 | C128: Presupuesto anual ejecutado en Gestión Sostenible de RRNN y diversidad Biológica (PP 0035) - Millones de Soles | D128: Gobierno Locales | E128: Millones de soles | F128: Ministerio de Economía y Finanzas - MEF / SIAF Consulta Amigable 2019 | H128: 49.2 | I128: 42.5 | J128: 21.1 | K128: 33.4 | M128: 42.48 | N128: 21.13 | O128: 33.43 | P128: 34.19 | Q128: 21.48 | R128: 26978754 | Z128: 14715687 | AB128: ¡Faltan datos! | AC128: ¡Faltan datos! | AD128: Presupuesto anual ejecutado en Gestión Sostenible de RRNN y diversidad Biológica (PP 0035) - Millones de SolesGobierno Locales | AG128: 14715687 | AI128: ¡Faltan datos! | AJ128: ¡Faltan datos! | AK128: P
A129: II. LINEAMIENTO DE POLITICA Fomentar el uso y aprovechamiento sostenible de los Recursos Naturales. | B129: AGA.18.13 | C129: Presupuesto anual ejecutado en Gestión Sostenible de RRNN y diversidad Biológica (PP 0035) - Millones de Soles | D129: Gobierno Nacional | E129: Millones de soles | F129: Ministerio de Economía y Finanzas - MEF / SIAF Consulta Amigable 2019 | H129: 144.2 | I129: 129.6 | J129: 139 | K129: 192.5 | M129: 129.59 | N129: 138.99 | O129: 192.46 | P129: 207.18 | Q129: 212.69 | R129: 211617545 | Z129: 115427883 | AB129: ¡Faltan datos! | AC129: ¡Faltan datos! | AD129: Presupuesto anual ejecutado en Gestión Sostenible de RRNN y diversidad Biológica (PP 0035) - Millones de SolesGobierno Nacional | AG129: 115427883 | AI129: ¡Faltan datos! | AJ129: ¡Faltan datos! | AK129: P
A130: II. LINEAMIENTO DE POLITICA Fomentar el uso y aprovechamiento sostenible de los Recursos Naturales. | B130: AGA.18.13 | C130: Presupuesto anual ejecutado en Gestión Sostenible de RRNN y diversidad Biológica (PP 0035) - Millones de Soles | D130: Gobiernos Regionales | E130: Millones de soles | F130: Ministerio de Economía y Finanzas - MEF / SIAF Consulta Amigable 2019 | H130: 52.3 | I130: 45.8 | J130: 22 | K130: 29.4 | M130: 45.76 | N130: 22 | O130: 29.38 | P130: 49.76 | Q130: 43.79 | R130: 64997001 | Z130: 35452926 | AB130: ¡Faltan datos! | AC130: ¡Faltan datos! | AD130: Presupuesto anual ejecutado en Gestión Sostenible de RRNN y diversidad Biológica (PP 0035) - Millones de SolesGobiernos Regionales | AG130: 35452926 | AI130: ¡Faltan datos! | AJ130: ¡Faltan datos! | AK130: P
A131: II. LINEAMIENTO DE POLITICA Fomentar el uso y aprovechamiento sostenible de los Recursos Naturales. | B131: AGA.18.12 | C131: Presupuesto anual ejecutado en Conservación de la Diversidad Biológica y Aprovechamiento Sostenible del RRNN en Área Natural Protegida (PP 0057) - Soles | D131: Gobierno Nacional | E131: Millones de soles | F131: Ministerio de Economía y Finanzas - MEF / SIAF Consulta Amigable 2019 | H131: 39.6 | I131: 54 | J131: 57.5 | K131: 62.5 | M131: 53.97 | N131: 57.52 | O131: 62.5 | P131: 74.4 | Q131: 70.41 | R131: 63287278 | Z131: 34520380 | AB131: ¡Faltan datos! | AC131: ¡Faltan datos! | AD131: Presupuesto anual ejecutado en Conservación de la Diversidad Biológica y Aprovechamiento Sostenible del RRNN en Área Natural Protegida (PP 0057) - SolesGobierno Nacional | AG131: 34520380 | AI131: ¡Faltan datos! | AJ131: ¡Faltan datos! | AK131: P
A132: II. LINEAMIENTO DE POLITICA Fomentar el uso y aprovechamiento sostenible de los Recursos Naturales. | B132: AGA.18.12 | C132: Presupuesto anual ejecutado en Conservación de la Diversidad Biológica y Aprovechamiento Sostenible del RRNN en Área Natural Protegida (PP 0057) - Soles | D132: Gobiernos Regionales | E132: Millones de soles | F132: Ministerio de Economía y Finanzas - MEF / SIAF Consulta Amigable 2019 | H132: 3.9 | I132: 10.2 | J132: 15.1 | K132: 10.3 | M132: 10.24 | N132: 15.05 | O132: 10.25 | P132: 8.9 | Q132: 9.63 | R132: 9513317 | Z132: 5189088 | AB132: ¡Faltan datos! | AC132: ¡Faltan datos! | AD132: Presupuesto anual ejecutado en Conservación de la Diversidad Biológica y Aprovechamiento Sostenible del RRNN en Área Natural Protegida (PP 0057) - SolesGobiernos Regionales | AG132: 5189088 | AI132: ¡Faltan datos! | AJ132: ¡Faltan datos! | AK132: P
A133: II. LINEAMIENTO DE POLITICA Fomentar el uso y aprovechamiento sostenible de los Recursos Naturales. | B133: AGA.20.4 | C133: Presupuesto Ejecutado en Reducción de la Degradación de los suelos agrarios (PP 0089) - Soles | D133: Gobierno Locales | E133: Millones de soles | F133: Ministerio de Economía y Finanzas - MEF / SIAF Consulta Amigable 2019 | H133: 22.9 | I133: 21.3 | J133: 11.3 | K133: 12.2 | M133: 21.27 | N133: 11.32 | O133: 12.2 | P133: 8.23 | Q133: 8.29 | R133: 8294266 | Z133: 4524142 | AB133: ¡Faltan datos! | AC133: ¡Faltan datos! | AD133: Presupuesto Ejecutado en Reducción de la Degradación de los suelos agrarios (PP 0089) - SolesGobierno Locales | AG133: 4524142 | AI133: ¡Faltan datos! | AJ133: ¡Faltan datos! | AK133: P
A134: II. LINEAMIENTO DE POLITICA Fomentar el uso y aprovechamiento sostenible de los Recursos Naturales. | B134: AGA.20.4 | C134: Presupuesto Ejecutado en Reducción de la Degradación de los suelos agrarios (PP 0089) - Soles | D134: Gobierno Nacional | E134: Millones de soles | F134: Ministerio de Economía y Finanzas - MEF / SIAF Consulta Amigable 2019 | H134: 8.5 | I134: 9.7 | J134: 9.8 | K134: 6.2 | M134: 9.66 | N134: 9.75 | O134: 6.17 | P134: 3.39 | Q134: 3.89 | R134: 3894575 | Z134: 2124313 | AB134: ¡Faltan datos! | AC134: ¡Faltan datos! | AD134: Presupuesto Ejecutado en Reducción de la Degradación de los suelos agrarios (PP 0089) - SolesGobierno Nacional | AG134: 2124313 | AI134: ¡Faltan datos! | AJ134: ¡Faltan datos! | AK134: P
A135: II. LINEAMIENTO DE POLITICA Fomentar el uso y aprovechamiento sostenible de los Recursos Naturales. | B135: AGA.20.4 | C135: Presupuesto Ejecutado en Reducción de la Degradación de los suelos agrarios (PP 0089) - Soles | D135: Gobiernos Regionales | E135: Millones de soles | F135: Ministerio de Economía y Finanzas - MEF / SIAF Consulta Amigable 2019 | H135: 1.5 | I135: 0.9 | J135: 1.1 | K135: 1.3 | M135: 0.94 | N135: 1.07 | O135: 1.29 | P135: 1.2 | Q135: 6.57 | R135: 6573296 | Z135: 3585437 | AB135: ¡Faltan datos! | AC135: =IF(OR(Y135="",AA135="",AK135=""),"¡Faltan datos!", IF(AK135="P", IF(AA135>=(Y135*85%),"Verde", IF(AND(AA135<(Y135*85%),AA135>=(Y135*50%)),"Ambar", IF(AA135<(Y135*50%),"Rojo","Verificar!"))), IF(AK135="N", IF(AA135<=(Y135*115%),"Verde", IF(AND(AA135<=(Y135*150%),AA135>(Y135*115%)),"Ambar", IF(AA135>(Y135*150%),"Rojo","Verificar!"))),""))) -> ¡Faltan datos! | AD135: Presupuesto Ejecutado en Reducción de la Degradación de los suelos agrarios (PP 0089) - SolesGobiernos Regionales | AG135: 3585437 | AI135: ¡Faltan datos! | AJ135: ¡Faltan datos! | AK135: P
A136: II. LINEAMIENTO DE POLITICA Fomentar el uso y aprovechamiento sostenible de los Recursos Naturales. | B136: AGA.18.11 | C136: Presupuesto ejecutado por los tres niveles de gobierno en manejo eficiente de Recursos Forestales y Fauna Silvestre (PP 0130) - Soles | D136: Gobierno Locales | E136: Millones de soles | F136: Ministerio de Economía y Finanzas - MEF / SIAF Consulta Amigable 2019 | H136: 4.7 | I136: 4.5 | J136: 14.1 | K136: 24.2 | M136: 4.48 | N136: 14.07 | O136: 24.19 | P136: 18 | Q136: 12.52 | R136: 31209944 | Z136: =+FORECAST(2026,H136:R136,$H$6:$R$6) -> 17023620 | AB136: =IF(OR(X136="",Z136="",AK136=""),"¡Faltan datos!", IF(AK136="P", IF(Z136>=(X136*85%),"Verde", IF(AND(Z136<(X136*85%),Z136>=(X136*50%)),"Ambar", IF(Z136<(X136*50%),"Rojo","Verificar!"))), IF(AK136="N", IF(Z136<=(X136*115%),"Verde", IF(AND(Z136<=(X136*150%),Z136>(X136*115%)),"Ambar", IF(Z136>(X136*150%),"Rojo","Verificar!"))),""))) -> ¡Faltan datos! | AC136: ¡Faltan datos! | AD136: =CONCATENATE(C136,D136) -> Presupuesto ejecutado por los tres niveles de gobierno en manejo eficiente de Recursos Forestales y Fauna Silvestre (PP 0130) - SolesGobierno Locales | AG136: 17023620 | AI136: ¡Faltan datos! | AJ136: ¡Faltan datos! | AK136: P
A137: II. LINEAMIENTO DE POLITICA Fomentar el uso y aprovechamiento sostenible de los Recursos Naturales. | B137: AGA.18.11 | C137: Presupuesto ejecutado por los tres niveles de gobierno en manejo eficiente de Recursos Forestales y Fauna Silvestre (PP 0130) - Soles | D137: Gobierno Nacional | E137: Millones de soles | F137: Ministerio de Economía y Finanzas - MEF / SIAF Consulta Amigable 2019 | H137: 39.2 | I137: 55.4 | J137: 67.2 | K137: 100.9 | M137: 55.39 | N137: 67.2 | O137: 100.92 | P137: 94.4 | Q137: 87.39 | R137: 91507106 | Z137: 49913035 | AB137: ¡Faltan datos! | AC137: ¡Faltan datos! | AD137: Presupuesto ejecutado por los tres niveles de gobierno en manejo eficiente de Recursos Forestales y Fauna Silvestre (PP 0130) - SolesGobierno Nacional | AG137: 49913035 | AI137: ¡Faltan datos! | AJ137: ¡Faltan datos! | AK137: P
A138: II. LINEAMIENTO DE POLITICA Fomentar el uso y aprovechamiento sostenible de los Recursos Naturales. | B138: AGA.18.11 | C138: Presupuesto ejecutado por los tres niveles de gobierno en manejo eficiente de Recursos Forestales y Fauna Silvestre (PP 0130) - Soles | D138: Gobiernos Regionales | E138: Millones de soles | F138: Ministerio de Economía y Finanzas - MEF / SIAF Consulta Amigable 2019 | H138: 11.3 | I138: 15.3 | J138: 14 | K138: 25.5 | M138: 15.31 | N138: 13.97 | O138: 25.47 | P138: 42.3 | Q138: 47.11 | R138: 57160700 | Z138: 31178598 | AB138: ¡Faltan datos! | AC138: ¡Faltan datos! | AD138: Presupuesto ejecutado por los tres niveles de gobierno en manejo eficiente de Recursos Forestales y Fauna Silvestre (PP 0130) - SolesGobiernos Regionales | AG138: 31178598 | AI138: ¡Faltan datos! | AJ138: ¡Faltan datos! | AK138: P
A139: II. LINEAMIENTO DE POLITICA Fomentar el uso y aprovechamiento sostenible de los Recursos Naturales. | B139: AGA.17.3. | C139: Producción anual de energía eléctrica de acuerdo a fuentes de generación (Gigawatt hora) | D139: Nacional | E139: GigaWatt hora | F139: Ministerio de Energia y Mina ( MINEM) | H139: 0 | I139: 0 | J139: 0 | K139: 0 | Z139: 0 | AB139: ¡Faltan datos! | AC139: ¡Faltan datos! | AD139: Producción anual de energía eléctrica de acuerdo a fuentes de generación (Gigawatt hora)Nacional | AG139: 0 | AI139: ¡Faltan datos! | AJ139: ¡Faltan datos! | AK139: P
A140: II. LINEAMIENTO DE POLITICA Fomentar el uso y aprovechamiento sostenible de los Recursos Naturales. | B140: AGA.14.1. | C140: Se cuenta con Estándares nacionales de la calidad ambiental del agua, y de los límites máximos permisibles actualizados y en ejecución | D140: Nacional | E140: Estandares | F140: Ministerio de Economía y Finanzas - MEF / SIAF Consulta Amigable 2019 | H140: 0 | I140: 0 | J140: 0 | K140: 0 | Z140: 0 | AB140: ¡Faltan datos! | AC140: ¡Faltan datos! | AD140: Se cuenta con Estándares nacionales de la calidad ambiental del agua, y de los límites máximos permisibles actualizados y en ejecuciónNacional | AG140: 0 | AI140: ¡Faltan datos! | AJ140: ¡Faltan datos! | AK140: P
A141: II. LINEAMIENTO DE POLITICA Fomentar el uso y aprovechamiento sostenible de los Recursos Naturales. | B141: AGA.15.5. | C141: Se cuenta con Instituto para el desarrollo de conocimiento y capacidades científicas y tecnológicas en materia de agua creado e implementado | D141: Nacional | E141: Informes | F141: Ministerio de Economía y Finanzas - MEF / SIAF Consulta Amigable 2019 | H141: 0 | I141: 0 | J141: 0 | K141: 0 | Z141: 0 | AB141: ¡Faltan datos! | AC141: ¡Faltan datos! | AD141: Se cuenta con Instituto para el desarrollo de conocimiento y capacidades científicas y tecnológicas en materia de agua creado e implementadoNacional | AG141: 0 | AI141: ¡Faltan datos! | AJ141: ¡Faltan datos! | AK141: P
A142: II. LINEAMIENTO DE POLITICA Fomentar el uso y aprovechamiento sostenible de los Recursos Naturales. | B142: AGA.17.4. | C142: Se cuenta con Ley de micro generación eléctrica | D142: Nacional | E142: Informes | F142: Ministerio de Energia y Mina ( MINEM) | H142: 0 | I142: 0 | J142: 0 | K142: 0 | Z142: 0 | AB142: ¡Faltan datos! | AC142: ¡Faltan datos! | AD142: Se cuenta con Ley de micro generación eléctricaNacional | AG142: 0 | AI142: ¡Faltan datos! | AJ142: ¡Faltan datos! | AK142: P
A143: II. LINEAMIENTO DE POLITICA Fomentar el uso y aprovechamiento sostenible de los Recursos Naturales. | B143: AGA.13.1. | C143: Se cuenta con linea de base actualizada de la situacion de recursos hídricos (oferta, demanda y balance) y de su uso multisectorial. | D143: Estudios hidrológicos | E143: Acuíferos | F143: Autoridad Nacional del Agua ( ANA ) | H143: 51 | I143: 0 | J143: 0 | K143: 0 | Z143: -194 | AB143: ¡Faltan datos! | AC143: ¡Faltan datos! | AD143: Se cuenta con linea de base actualizada de la situacion de recursos hídricos (oferta, demanda y balance) y de su uso multisectorial. Estudios hidrológicos | AG143: -194 | AI143: ¡Faltan datos! | AJ143: ¡Faltan datos! | AK143: P
A144: II. LINEAMIENTO DE POLITICA Fomentar el uso y aprovechamiento sostenible de los Recursos Naturales. | B144: AGA.13.1. | C144: Se cuenta con linea de base actualizada de la situacion de recursos hídricos (oferta, demanda y balance) y de su uso multisectorial. | D144: Nacional | E144: Linea base | F144: Congreso de la República | H144: 0 | I144: 0 | J144: 0 | K144: 0 | Z144: 0 | AB144: ¡Faltan datos! | AC144: ¡Faltan datos! | AD144: Se cuenta con linea de base actualizada de la situacion de recursos hídricos (oferta, demanda y balance) y de su uso multisectorial. Nacional | AG144: 0 | AI144: ¡Faltan datos! | AJ144: ¡Faltan datos! | AK144: P
A145: II. LINEAMIENTO DE POLITICA Fomentar el uso y aprovechamiento sostenible de los Recursos Naturales. | B145: AGA.13.1. | C145: Se cuenta con linea de base actualizada de la situacion de recursos hídricos (oferta, demanda y balance) y de su uso multisectorial. | D145: Nacional | E145: Linea base | F145: Ministerio de Energia y Mina ( MINEM) | H145: 0 | I145: 0 | J145: 0 | K145: 0 | Z145: 0 | AB145: ¡Faltan datos! | AC145: ¡Faltan datos! | AD145: Se cuenta con linea de base actualizada de la situacion de recursos hídricos (oferta, demanda y balance) y de su uso multisectorial. Nacional | AG145: 0 | AI145: ¡Faltan datos! | AJ145: ¡Faltan datos! | AK145: P
A146: II. LINEAMIENTO DE POLITICA Fomentar el uso y aprovechamiento sostenible de los Recursos Naturales. | B146: AGA.13.8. | C146: Se cuenta con metodología adecuada de cálculo de la retribución económica y pago de derechos de vertimiento para garantizar la sostenibilidad infraestructura hidráulica y la gestión de los recursos hídricos. | D146: Nacional | E146: Metodología | F146: Programa de Desarrollo Productivo Agrario Rural | H146: 0 | I146: 0 | J146: 0 | K146: 0 | Z146: 0 | AB146: ¡Faltan datos! | AC146: ¡Faltan datos! | AD146: Se cuenta con metodología adecuada de cálculo de la retribución económica y pago de derechos de vertimiento para garantizar la sostenibilidad infraestructura hidráulica y la gestión de los recursos hídricos.Nacional | AG146: 0 | AI146: ¡Faltan datos! | AJ146: ¡Faltan datos! | AK146: P
A147: II. LINEAMIENTO DE POLITICA Fomentar el uso y aprovechamiento sostenible de los Recursos Naturales. | B147: AGA.13.2. | C147: Se cuenta con Planes de Gestión integrada de recursos hídricos a nivel nacional y por cuencas hidrograficas. | D147: Planes de Gestión de recursos hídricos | E147: Planes aprobados | F147: Dirección de Conservación y Planeamiento de los Recursos Hídricos - DCPRH-Autoridad Nacional del Agua ( ANA ) | H147: 6 | I147: 0 | J147: 0 | K147: 0 | Z147: -23 | AB147: ¡Faltan datos! | AC147: ¡Faltan datos! | AD147: Se cuenta con Planes de Gestión integrada de recursos hídricos a nivel nacional y por cuencas hidrograficas.Planes de Gestión de recursos hídricos | AG147: -23 | AI147: ¡Faltan datos! | AJ147: ¡Faltan datos! | AK147: P
A148: II. LINEAMIENTO DE POLITICA Fomentar el uso y aprovechamiento sostenible de los Recursos Naturales. | B148: AGA.20.3. | C148: Se han protegido e incluido nuevas Áreas de humedales. | D148: Nacional | E148: Héctareas | F148: Ministerio del Ambiente ( MINAM ) | H148: 0 | I148: 0 | J148: 0 | K148: 0 | Z148: 0 | AB148: ¡Faltan datos! | AC148: ¡Faltan datos! | AD148: Se han protegido e incluido nuevas Áreas de humedales.Nacional | AG148: 0 | AI148: ¡Faltan datos! | AJ148: ¡Faltan datos! | AK148: P
A149: II. LINEAMIENTO DE POLITICA Fomentar el uso y aprovechamiento sostenible de los Recursos Naturales. | B149: AGA.15.3. | C149: Se implementa Plan de alta especialización en gestión, investigación y desarrollo de innovaciones tecnológicas en recursos hídricos. | D149: Nacional | E149: Plan | F149: Ministerio del Ambiente ( MINAM ) | H149: 0 | I149: 0 | J149: 0 | K149: 0 | Z149: 0 | AB149: ¡Faltan datos! | AC149: ¡Faltan datos! | AD149: Se implementa Plan de alta especialización en gestión, investigación y desarrollo de innovaciones tecnológicas en recursos hídricos.Nacional | AG149: 0 | AI149: ¡Faltan datos! | AJ149: ¡Faltan datos! | AK149: P
A150: II. LINEAMIENTO DE POLITICA Fomentar el uso y aprovechamiento sostenible de los Recursos Naturales. | B150: AGA.15.3. | C150: Se implementa Plan de alta especialización en gestión, investigación y desarrollo de innovaciones tecnológicas en recursos hídricos. | D150: Nacional | E150: Plan | F150: Ministerio del Ambiente ( MINAM )/ Dirección General de Cambio Climático, Desertificación y Recursos Hídricos | H150: 0 | I150: 0 | J150: 0 | K150: 0 | Z150: 0 | AB150: ¡Faltan datos! | AC150: ¡Faltan datos! | AD150: Se implementa Plan de alta especialización en gestión, investigación y desarrollo de innovaciones tecnológicas en recursos hídricos.Nacional | AG150: 0 | AI150: ¡Faltan datos! | AJ150: ¡Faltan datos! | AK150: P
A151: II. LINEAMIENTO DE POLITICA Fomentar el uso y aprovechamiento sostenible de los Recursos Naturales. | B151: AGA.15.4. | C151: Se implementa Plan para la valoración de los recursos hídricos y corresponsabilidad de la población en el pago de la retribución económica y de tarifas adecuadas por acceso y el uso del agua. | D151: Nacional | E151: Plan | F151: Ministerio de Economía y Finanzas - MEF / SIAF Consulta Amigable 2019 | H151: 0 | I151: 0 | J151: 0 | K151: 0 | Z151: 0 | AB151: ¡Faltan datos! | AC151: ¡Faltan datos! | AD151: Se implementa Plan para la valoración de los recursos hídricos y corresponsabilidad de la población en el pago de la retribución económica y de tarifas adecuadas por acceso y el uso del agua.Nacional | AG151: 0 | AI151: ¡Faltan datos! | AJ151: ¡Faltan datos! | AK151: P
A152: II. LINEAMIENTO DE POLITICA Fomentar el uso y aprovechamiento sostenible de los Recursos Naturales. | B152: AGA.20.1. | C152: Se mantienen bajos niveles de desertificación de suelos en el país | D152: Nacional | E152: Hectárea | F152: Ministerio del Ambiente ( MINAM ) | H152: 0 | I152: 0 | J152: 0 | K152: 0 | Z152: 0 | AB152: ¡Faltan datos! | AC152: ¡Faltan datos! | AD152: Se mantienen bajos niveles de desertificación de suelos en el paísNacional | AG152: 0 | AI152: ¡Faltan datos! | AJ152: ¡Faltan datos! | AK152: P
A153: II. LINEAMIENTO DE POLITICA Fomentar el uso y aprovechamiento sostenible de los Recursos Naturales. | B153: AGA.13.9. | C153: Sistema Nacional de información de Recursos Hídricos para la gestión y la prevención de riesgos por eventos climatológicos extremos en funcionamiento | D153: Nacional | E153: Informes | F153: Programa de Desarrollo Productivo Agrario Rural | H153: 0 | I153: 0 | J153: 0 | K153: 0 | Z153: 0 | AB153: ¡Faltan datos! | AC153: ¡Faltan datos! | AD153: Sistema Nacional de información de Recursos Hídricos para la gestión y la prevención de riesgos por eventos climatológicos extremos en funcionamientoNacional | AG153: 0 | AI153: ¡Faltan datos! | AJ153: ¡Faltan datos! | AK153: P
A154: II. LINEAMIENTO DE POLITICA Fomentar el uso y aprovechamiento sostenible de los Recursos Naturales. | B154: AGA.18.10. | C154: Superficie con manejo forestal por años | D154: Nacional | E154: Hectárea | F154: Programa de Desarrollo Productivo Agrario Rural | H154: 0 | I154: 0 | J154: 0 | K154: 0 | Z154: 0 | AB154: ¡Faltan datos! | AC154: ¡Faltan datos! | AD154: Superficie con manejo forestal por añosNacional | AG154: 0 | AI154: ¡Faltan datos! | AJ154: ¡Faltan datos! | AK154: P
A155: II. LINEAMIENTO DE POLITICA Fomentar el uso y aprovechamiento sostenible de los Recursos Naturales. | B155: AGA.18.8. | C155: Superficie de bosques perdidas anualmente | D155: Superficie de bosques | E155: Hectárea | F155: Ministerio del Ambiente ( MINAM ), Programa Nacional de Conservación de Bosques | H155: 115275 | I155: 164662 | J155: 155914 | K155: 0 | M155: 164662 | N155: 155914 | O155: 154766 | Z155: 184140 | AB155: ¡Faltan datos! | AC155: ¡Faltan datos! | AD155: Superficie de bosques perdidas anualmenteSuperficie de bosques | AG155: 184140 | AI155: ¡Faltan datos! | AJ155: ¡Faltan datos! | AK155: N
A156: II. LINEAMIENTO DE POLITICA Fomentar el uso y aprovechamiento sostenible de los Recursos Naturales. | B156: AGA.18.9. | C156: Superficie reforestada anualmente | D156: Superficie reforestada anualmente | E156: Hectárea | F156: Programa de Desarrollo Productivo Agrario Rural | H156: 369 | I156: 369 | J156: 0 | K156: 0 | Z156: -1808 | AB156: ¡Faltan datos! | AC156: ¡Faltan datos! | AD156: Superficie reforestada anualmenteSuperficie reforestada anualmente | AG156: -1808 | AI156: ¡Faltan datos! | AJ156: ¡Faltan datos! | AK156: P
A157: II. LINEAMIENTO DE POLITICA Fomentar el uso y aprovechamiento sostenible de los Recursos Naturales. | B157: AGA.18.7. | C157: Superficie(Ha.) de bosques para conservación gestionados por Comunidades nativas por año | D157: Conservacion | E157: Hectárea | F157: Ministerio del Ambiente ( MINAM ), Programa Nacional de Conservación de Bosques | H157: 542812.51 | I157: 0 | J157: 0 | K157: 0 | N157: 1821.82 | O157: 2409.52 | P157: 1862.06 | Z157: -314333 | AB157: ¡Faltan datos! | AC157: ¡Faltan datos! | AD157: Superficie(Ha.) de bosques para conservación gestionados por Comunidades nativas por año Conservacion | AG157: -314333 | AI157: ¡Faltan datos! | AJ157: ¡Faltan datos! | AK157: P
A158: II. LINEAMIENTO DE POLITICA Fomentar el uso y aprovechamiento sostenible de los Recursos Naturales. | B158: AGA.18.5. | C158: Tasa anual de deforestación nacional | D158: Tasa de deforestación nacional | E158: Porcentaje | F158: Sistema Nacional de Información Ambiental ( SINIA ) | H158: 0.1 | I158: 0.2 | J158: 0.2 | K158: 0 | M158: 0.24 | N158: 0.23 | Z158: 0 | AB158: ¡Faltan datos! | AC158: ¡Faltan datos! | AD158: Tasa anual de deforestación nacionalTasa de deforestación nacional | AG158: 0 | AI158: ¡Faltan datos! | AJ158: ¡Faltan datos! | AK158: N
A159: III. LINEAMIENTO DE POLITICA: Impulsar acciones de reducción de gases de efecto invernadero, preparación y adaptación frente al Cambio Climático. | B159: AGA.23.1. | C159: % de población participando en mecanismos de adaptación frente al CC | D159: Nacional | E159: Porcentaje | F159: Ministerio del Ambiente ( MINAM ), sectores públicos | H159: 0 | I159: 0 | J159: 0 | K159: 0 | Z159: 0 | AB159: ¡Faltan datos! | AC159: ¡Faltan datos! | AD159: % de población participando en mecanismos de adaptación frente al CCNacional | AG159: 0 | AI159: ¡Faltan datos! | AJ159: ¡Faltan datos! | AK159: P
A160: III. LINEAMIENTO DE POLITICA: Impulsar acciones de reducción de gases de efecto invernadero, preparación y adaptación frente al Cambio Climático. | B160: AGA.21.2. | C160: Emisiones per cápita (tCO2e del Inv./Pob. Nac) | D160: Nacional | E160: tCO2e del Inv./Pob. Nac | F160: Inventario Nacional de GEI e Informes de INDCs | H160: 0 | I160: 0 | J160: 0 | K160: 0 | Z160: 0 | AB160: ¡Faltan datos! | AC160: ¡Faltan datos! | AD160: Emisiones per cápita (tCO2e del Inv./Pob. Nac)Nacional | AG160: 0 | AI160: ¡Faltan datos! | AJ160: ¡Faltan datos! | AK160: N
A161: III. LINEAMIENTO DE POLITICA: Impulsar acciones de reducción de gases de efecto invernadero, preparación y adaptación frente al Cambio Climático. | B161: AGA.22.3. | C161: Estrategia Nacional de Crecimiento Verde aprobada e implementada | D161: Nacional | E161: Informes | F161: Ministerio de Economía y Finanzas (MEF) - Ministerio del Ambiente ( MINAM ) | H161: 0 | I161: 0 | J161: 0 | K161: 0 | Z161: 0 | AB161: ¡Faltan datos! | AC161: ¡Faltan datos! | AD161: Estrategia Nacional de Crecimiento Verde aprobada e implementadaNacional | AG161: 0 | AI161: ¡Faltan datos! | AJ161: ¡Faltan datos! | AK161: P
A162: III. LINEAMIENTO DE POLITICA: Impulsar acciones de reducción de gases de efecto invernadero, preparación y adaptación frente al Cambio Climático. | B162: AGA.24.2. | C162: Extensión anual de cobertura boscosa del país | D162: Extensión anual de cobertura | E162: Hectárea | F162: Ministerio del Ambiente ( MINAM )-Ministerio de Agricultura y Riego ( MINAGRI)-Servicio Nacional Forestal y de Fauna Silvestre ( SERFOR)-Organismo de Supervisión de los Recursos Forestales y de Fauna Silvestre ( OSINFOR )-Programa Nacional de Conservación de Bosques ( PNCB) | H162: 69170368 | I162: 0 | J162: 0 | K162: 0 | N162: 68577.35 | O162: 68422.59 | Z162: -55055581 | AB162: ¡Faltan datos! | AC162: ¡Faltan datos! | AD162: Extensión anual de cobertura boscosa del paísExtensión anual de cobertura | AG162: -55055581 | AI162: ¡Faltan datos! | AJ162: ¡Faltan datos! | AK162: P
A163: III. LINEAMIENTO DE POLITICA: Impulsar acciones de reducción de gases de efecto invernadero, preparación y adaptación frente al Cambio Climático. | B163: AGA.28.2. | C163: Informes anuales emitidos sobre situación de daños producidos por el CC y su atención por el Estado | D163: Nacional | E163: Informes | F163: Sin datos | H163: 0 | I163: 0 | J163: 0 | K163: 0 | Z163: 0 | AB163: ¡Faltan datos! | AC163: ¡Faltan datos! | AD163: Informes anuales emitidos sobre situación de daños producidos por el CC y su atención por el EstadoNacional | AG163: 0 | AI163: ¡Faltan datos! | AJ163: ¡Faltan datos! | AK163: P
A164: III. LINEAMIENTO DE POLITICA: Impulsar acciones de reducción de gases de efecto invernadero, preparación y adaptación frente al Cambio Climático. | B164: AGA.21.1. | C164: Inventarios Nacionales Anuales de GEI (tCO2e) | D164: Nacional | E164: Informes | F164: Inventario Nacional de GEI e Informes de INDCs | H164: 0 | I164: 0 | J164: 0 | K164: 0 | Z164: 0 | AB164: ¡Faltan datos! | AC164: ¡Faltan datos! | AD164: Inventarios Nacionales Anuales de GEI (tCO2e)Nacional | AG164: 0 | AI164: ¡Faltan datos! | AJ164: ¡Faltan datos! | AK164: P
A165: III. LINEAMIENTO DE POLITICA: Impulsar acciones de reducción de gases de efecto invernadero, preparación y adaptación frente al Cambio Climático. | B165: AGA.28.1. | C165: Montos anuales de daños y pérdidas por afecto del cambio climatico | D165: Nacional | E165: Soles | F165: Sin datos | H165: 0 | I165: 0 | J165: 0 | K165: 0 | Z165: 0 | AB165: ¡Faltan datos! | AC165: ¡Faltan datos! | AD165: Montos anuales de daños y pérdidas por afecto del cambio climatico Nacional | AG165: 0 | AI165: ¡Faltan datos! | AJ165: ¡Faltan datos! | AK165: N
A166: III. LINEAMIENTO DE POLITICA: Impulsar acciones de reducción de gases de efecto invernadero, preparación y adaptación frente al Cambio Climático. | B166: AGA.29.1 | C166: Número de agricultores y comuneros participando en actividades agroforestales | D166: Nacional | E166: Agricultores | F166: Sin datos | H166: 0 | I166: 0 | J166: 0 | K166: 0 | Z166: 0 | AB166: ¡Faltan datos! | AC166: ¡Faltan datos! | AD166: Número de agricultores y comuneros participando en actividades agroforestalesNacional | AG166: 0 | AI166: ¡Faltan datos! | AJ166: ¡Faltan datos! | AK166: P
A167: III. LINEAMIENTO DE POLITICA: Impulsar acciones de reducción de gases de efecto invernadero, preparación y adaptación frente al Cambio Climático. | B167: AGA.29.4 | C167: Número de comuneros participando en proyectos MFC (Mecanismo de Fondos Concursables) | D167: Nacional | E167: Comuneros | F167: Sin datos | H167: 0 | I167: 0 | J167: 0 | K167: 0 | Z167: 0 | AB167: ¡Faltan datos! | AC167: ¡Faltan datos! | AD167: Número de comuneros participando en proyectos MFC (Mecanismo de Fondos Concursables)Nacional | AG167: 0 | AI167: ¡Faltan datos! | AJ167: ¡Faltan datos! | AK167: P
A168: III. LINEAMIENTO DE POLITICA: Impulsar acciones de reducción de gases de efecto invernadero, preparación y adaptación frente al Cambio Climático. | B168: AGA.27.2. | C168: Número de Comunicaciones Nacionales publicadas y difundidas | D168: Nacional | E168: Informes | F168: Sin datos | H168: 0 | I168: 0 | J168: 0 | K168: 0 | Z168: 0 | AB168: ¡Faltan datos! | AC168: ¡Faltan datos! | AD168: Número de Comunicaciones Nacionales publicadas y difundidasNacional | AG168: 0 | AI168: ¡Faltan datos! | AJ168: ¡Faltan datos! | AK168: P
A169: III. LINEAMIENTO DE POLITICA: Impulsar acciones de reducción de gases de efecto invernadero, preparación y adaptación frente al Cambio Climático. | B169: AGA.27.1. | C169: Número de Comunicaciones Nacionales remitidas a la CMNUCC | D169: Nacional | E169: Informes | F169: Sin datos | H169: 0 | I169: 0 | J169: 0 | K169: 0 | Z169: 0 | AB169: ¡Faltan datos! | AC169: ¡Faltan datos! | AD169: Número de Comunicaciones Nacionales remitidas a la CMNUCC Nacional | AG169: 0 | AI169: ¡Faltan datos! | AJ169: ¡Faltan datos! | AK169: P
A170: III. LINEAMIENTO DE POLITICA: Impulsar acciones de reducción de gases de efecto invernadero, preparación y adaptación frente al Cambio Climático. | B170: AGA.22.2. | C170: Número de espacios de coordinación con sector privado y sociedad civil creados para promover el uso y hacer seguimiento a las políticas públicas sobre RER | D170: Nacional | E170: Espacios | F170: Ministerio de Energia y Mina ( MINEM) | H170: 0 | I170: 0 | J170: 0 | K170: 0 | Z170: 0 | AB170: ¡Faltan datos! | AC170: ¡Faltan datos! | AD170: Número de espacios de coordinación con sector privado y sociedad civil creados para promover el uso y hacer seguimiento a las políticas públicas sobre RERNacional | AG170: 0 | AI170: ¡Faltan datos! | AJ170: ¡Faltan datos! | AK170: P
A171: III. LINEAMIENTO DE POLITICA: Impulsar acciones de reducción de gases de efecto invernadero, preparación y adaptación frente al Cambio Climático. | B171: AGA.23.3. | C171: Número de Gobiernos Regionales y Locales que implementan acciones frente al cambio climático | D171: Nacional | E171: Gobiernos regionales y locales | F171: Instituto Nacional de Estadística e Informática (INEI) - Registro Nacional de Municipalidades (RENAMU) | H171: 0 | I171: 0 | J171: 0 | K171: 0 | Z171: 0 | AB171: ¡Faltan datos! | AC171: ¡Faltan datos! | AD171: Número de Gobiernos Regionales y Locales que implementan acciones frente al cambio climáticoNacional | AG171: 0 | AI171: ¡Faltan datos! | AJ171: ¡Faltan datos! | AK171: P
A172: III. LINEAMIENTO DE POLITICA: Impulsar acciones de reducción de gases de efecto invernadero, preparación y adaptación frente al Cambio Climático. | B172: AGA.28.3. | C172: Número de Hectáreas protegidas por seguro catastrófico | D172: Nacional | E172: Hectárea | F172: Sin datos | H172: 0 | I172: 0 | J172: 0 | K172: 0 | Z172: 0 | AB172: ¡Faltan datos! | AC172: ¡Faltan datos! | AD172: Número de Hectáreas protegidas por seguro catastrófico Nacional | AG172: 0 | AI172: ¡Faltan datos! | AJ172: ¡Faltan datos! | AK172: P
A173: III. LINEAMIENTO DE POLITICA: Impulsar acciones de reducción de gases de efecto invernadero, preparación y adaptación frente al Cambio Climático. | B173: AGA.29.2 | C173: Número de hectáreas incorporadas a actividades forestales | D173: Nacional | E173: Hectárea | F173: Sin datos | H173: 0 | I173: 0 | J173: 0 | K173: 0 | Z173: 0 | AB173: ¡Faltan datos! | AC173: ¡Faltan datos! | AD173: Número de hectáreas incorporadas a actividades forestales Nacional | AG173: 0 | AI173: ¡Faltan datos! | AJ173: ¡Faltan datos! | AK173: P
A174: III. LINEAMIENTO DE POLITICA: Impulsar acciones de reducción de gases de efecto invernadero, preparación y adaptación frente al Cambio Climático. | B174: AGA.23.4. | C174: Número de IIEE que implementan acciones pedagógicas e institucionales de adaptación al cambio climático. | D174: Nacional | E174: IIEE | F174: Ministerio de Educación (MINEDU) | H174: 0 | I174: 0 | J174: 0 | K174: 0 | Z174: 0 | AB174: ¡Faltan datos! | AC174: ¡Faltan datos! | AD174: Número de IIEE que implementan acciones pedagógicas e institucionales de adaptación al cambio climático. Nacional | AG174: 0 | AI174: ¡Faltan datos! | AJ174: ¡Faltan datos! | AK174: P
A175: III. LINEAMIENTO DE POLITICA: Impulsar acciones de reducción de gases de efecto invernadero, preparación y adaptación frente al Cambio Climático. | B175: AGA.25.2 | C175: Número de proyectos de adaptación implementados por organizaciones indígenas y agricultores con el apoyo del estado | D175: Nacional | E175: Proyectos | F175: Sin datos | H175: 0 | I175: 0 | J175: 0 | K175: 0 | Z175: 0 | AB175: ¡Faltan datos! | AC175: ¡Faltan datos! | AD175: Número de proyectos de adaptación implementados por organizaciones indígenas y agricultores con el apoyo del estado Nacional | AG175: 0 | AI175: ¡Faltan datos! | AJ175: ¡Faltan datos! | AK175: P
A176: III. LINEAMIENTO DE POLITICA: Impulsar acciones de reducción de gases de efecto invernadero, preparación y adaptación frente al Cambio Climático. | B176: AGA.25.1. | C176: Númerode Gobiernos Regionales con Estrategias Regionales de Cambio Climático, incluidas en PDC y en implementación | D176: Gobiernos regionales tienen Estrategias, formuladas y aprobadas. | E176: Gobiernos | F176: Ministerio del Ambiente ( MINAM ), sectores públicos | H176: 11 | I176: 0 | J176: 0 | K176: 0 | Z176: -42 | AB176: ¡Faltan datos! | AC176: ¡Faltan datos! | AD176: Númerode Gobiernos Regionales con Estrategias Regionales de Cambio Climático, incluidas en PDC y en implementación Gobiernos regionales tienen Estrategias, formuladas y aprobadas. | AG176: -42 | AI176: ¡Faltan datos! | AJ176: ¡Faltan datos! | AK176: P
A177: III. LINEAMIENTO DE POLITICA: Impulsar acciones de reducción de gases de efecto invernadero, preparación y adaptación frente al Cambio Climático. | B177: AGA.22.1. | C177: Porcentaje de generación eléctrica con RER no convencional hacia al 2021 | D177: Nacional | E177: Porcentaje | F177: Ministerio de Energia y Mina ( MINEM) | H177: 0 | I177: 0 | J177: 0 | K177: 0 | Z177: 0 | AB177: ¡Faltan datos! | AC177: ¡Faltan datos! | AD177: Porcentaje de generación eléctrica con RER no convencional hacia al 2021 Nacional | AG177: 0 | AI177: ¡Faltan datos! | AJ177: ¡Faltan datos! | AK177: P
A178: III. LINEAMIENTO DE POLITICA: Impulsar acciones de reducción de gases de efecto invernadero, preparación y adaptación frente al Cambio Climático. | B178: AGA.23.2. | C178: Porcentaje de recursos públicos destinados a apoyar acciones de adaptación | D178: Nacional | E178: Porcentaje | F178: Ministerio del Ambiente ( MINAM ), sectores públicos | H178: 0 | I178: 0 | J178: 0 | K178: 0 | Z178: 0 | AB178: ¡Faltan datos! | AC178: ¡Faltan datos! | AD178: Porcentaje de recursos públicos destinados a apoyar acciones de adaptaciónNacional | AG178: 0 | AI178: ¡Faltan datos! | AJ178: ¡Faltan datos! | AK178: P
A179: III. LINEAMIENTO DE POLITICA: Impulsar acciones de reducción de gases de efecto invernadero, preparación y adaptación frente al Cambio Climático. | B179: AGA.21.3. | C179: Reducción de emisiones de GEI en % (Emisiones LB - Emisiones Inv)/Emisiones LB) | D179: Nacional | E179: Porcentaje | F179: Inventario Nacional de GEI e Informes de INDCs | H179: 0 | I179: 0 | J179: 0 | K179: 0 | Z179: 0 | AB179: ¡Faltan datos! | AC179: ¡Faltan datos! | AD179: Reducción de emisiones de GEI en % (Emisiones LB - Emisiones Inv)/Emisiones LB)Nacional | AG179: 0 | AI179: ¡Faltan datos! | AJ179: ¡Faltan datos! | AK179: P
A180: III. LINEAMIENTO DE POLITICA: Impulsar acciones de reducción de gases de efecto invernadero, preparación y adaptación frente al Cambio Climático. | B180: AGA.24.1. | C180: Tasa de deforestación anual | D180: Deforestacion | E180: Hectárea | F180: Ministerio del Ambiente ( MINAM )-Ministerio de Agricultura y Riego ( MINAGRI)-Servicio Nacional Forestal y de Fauna Silvestre ( SERFOR)-Organismo de Supervisión de los Recursos Forestales y de Fauna Silvestre ( OSINFOR )-Programa Nacional de Conservación de Bosques ( PNCB) | H180: 115275 | I180: 0 | J180: 0 | K180: 0 | M180: 164662 | N180: 155914 | O180: 154766 | Z180: 311058 | AB180: ¡Faltan datos! | AC180: ¡Faltan datos! | AD180: Tasa de deforestación anual Deforestacion | AG180: 311058 | AI180: ¡Faltan datos! | AJ180: ¡Faltan datos! | AK180: N
A181: III. LINEAMIENTO DE POLITICA: Impulsar acciones de reducción de gases de efecto invernadero, preparación y adaptación frente al Cambio Climático. | B181: AGA.26.1. | C181: Tn de Consumo de sustancias agotadoras de la capa de ozono | D181: Tn | E181: Tn | F181: Superintendencia Nacional de Aduanas. Ministerio de la Producción | H181: 386 | I181: 0 | J181: 0 | K181: 0 | Z181: -1467 | AB181: ¡Faltan datos! | AC181: ¡Faltan datos! | AD181: Tn de Consumo de sustancias agotadoras de la capa de ozonoTn | AG181: -1467 | AI181: ¡Faltan datos! | AJ181: ¡Faltan datos! | AK181: N
A182: III. LINEAMIENTO DE POLITICA: Impulsar acciones de reducción de gases de efecto invernadero, preparación y adaptación frente al Cambio Climático. | B182: AGA.26.2. | C182: Tn de Consumo potencial agotador de ozono | D182: Tn | E182: Tn | F182: Superintendencia Nacional de Aduanas. Ministerio de la Producción | H182: 24 | I182: 0 | J182: 0 | K182: 0 | Z182: -91 | AB182: ¡Faltan datos! | AC182: ¡Faltan datos! | AD182: Tn de Consumo potencial agotador de ozonoTn | AG182: -91 | AI182: ¡Faltan datos! | AJ182: ¡Faltan datos! | AK182: N
A183: III. LINEAMIENTO DE POLITICA: Impulsar acciones de reducción de gases de efecto invernadero, preparación y adaptación frente al Cambio Climático. | B183: AGA.29.3 | C183: Volumen anual de fondos públicos y proyectos para apoyar la actividad forestal | D183: Nacional | E183: Soles | F183: Sin datos | H183: 0 | I183: 0 | J183: 0 | K183: 0 | Z183: 0 | AB183: ¡Faltan datos! | AC183: ¡Faltan datos! | AD183: Volumen anual de fondos públicos y proyectos para apoyar la actividad forestalNacional | AG183: 0 | AI183: ¡Faltan datos! | AJ183: ¡Faltan datos! | AK183: P
A184: IV. LINEAMIENTO DE POLITICA: Promover Ciudades y Comunidades Saludables en armonía con su entorno natural. | B184: AGA.34.5 | C184: Áreas verdes por estudiante en IIEE por departamento. | D184: Hectáreas | E184: Hectárea | F184: Ministerio de Educación (MINEDU) | H184: 8990 | I184: 0 | J184: 0 | K184: 0 | Z184: -34162 | AB184: ¡Faltan datos! | AC184: ¡Faltan datos! | AD184: Áreas verdes por estudiante en IIEE por departamento.Hectáreas | AG184: -34162 | AI184: ¡Faltan datos! | AJ184: ¡Faltan datos! | AK184: P
A185: IV. LINEAMIENTO DE POLITICA: Promover Ciudades y Comunidades Saludables en armonía con su entorno natural. | B185: AGA.34.1 | C185: Áreas verdes por habitante por departamento menos de 8m2/hab. | D185: Nacional | E185: M2/habitante | F185: Sin datos | H185: 0 | I185: 0 | J185: 0 | K185: 0 | Z185: 0 | AB185: ¡Faltan datos! | AC185: ¡Faltan datos! | AD185: Áreas verdes por habitante por departamento menos de 8m2/hab.Nacional | AG185: 0 | AI185: ¡Faltan datos! | AJ185: ¡Faltan datos! | AK185: P
A186: IV. LINEAMIENTO DE POLITICA: Promover Ciudades y Comunidades Saludables en armonía con su entorno natural. | B186: AGA.36.2 | C186: Implementación de tambos comunales en distritos de pobreza | D186: Tambos | E186: Tambos | F186: Memoria Institucional del Ministerio de Vivienda | H186: 212 | I186: 0 | J186: 0 | K186: 0 | Z186: -806 | AB186: ¡Faltan datos! | AC186: ¡Faltan datos! | AD186: Implementación de tambos comunales en distritos de pobrezaTambos | AG186: -806 | AI186: ¡Faltan datos! | AJ186: ¡Faltan datos! | AK186: P
A187: IV. LINEAMIENTO DE POLITICA: Promover Ciudades y Comunidades Saludables en armonía con su entorno natural. | B187: AGA.32.1. | C187: Medición del cloro residual libre del agua para consumo humano | D187: Agua con dosificación de cloro residual, Total | E187: Porcentaje | F187: Instituto Nacional de Estadística e Informatica (INEI) - Acceso al Agua y Saneamiento 2017 - Cuadro No. 13 Perú: Población que consume agua proveniente de red pública, según niveles de cloro, 2010 - 2017 | H187: 48.6 | I187: 47.2 | J187: 47.8 | K187: 0 | M187: 47.2 | N187: 48.1 | O187: 52.3 | P187: 53.5 | Q187: 53.7 | Z187: 61 | AB187: ¡Faltan datos! | AC187: ¡Faltan datos! | AD187: Medición del cloro residual libre del agua para consumo humanoAgua con dosificación de cloro residual, Total | AG187: 61 | AI187: ¡Faltan datos! | AJ187: ¡Faltan datos! | AK187: P
A188: IV. LINEAMIENTO DE POLITICA: Promover Ciudades y Comunidades Saludables en armonía con su entorno natural. | B188: AGA.32.1. | C188: Medición del cloro residual libre del agua para consumo humano | D188: Agua con dosificación de cloro residual,Adecuado | E188: Porcentaje | F188: Instituto Nacional de Estadística e Informatica (INEI) - Acceso al Agua y Saneamiento 2017 - Cuadro No. 13 Perú: Población que consume agua proveniente de red pública, según niveles de cloro, 2010 - 2018 | H188: 28.4 | I188: 31.4 | J188: 32.8 | K188: 0 | M188: 31.4 | N188: 33.1 | O188: 36.3 | P188: 39 | Q188: 38.6 | Z188: 47 | AB188: ¡Faltan datos! | AC188: ¡Faltan datos! | AD188: Medición del cloro residual libre del agua para consumo humanoAgua con dosificación de cloro residual,Adecuado | AG188: 47 | AI188: ¡Faltan datos! | AJ188: ¡Faltan datos! | AK188: P
A189: IV. LINEAMIENTO DE POLITICA: Promover Ciudades y Comunidades Saludables en armonía con su entorno natural. | B189: AGA.32.1. | C189: Medición del cloro residual libre del agua para consumo humano | D189: Agua con dosificación de cloro residual,Inadecuado | E189: Porcentaje | F189: Instituto Nacional de Estadística e Informatica (INEI) - Acceso al Agua y Saneamiento 2017 - Cuadro No. 13 Perú: Población que consume agua proveniente de red pública, según niveles de cloro, 2010 - 2019 | H189: 20.2 | I189: 15.8 | J189: 15 | K189: 0 | M189: 15.8 | N189: 15 | O189: 16 | P189: 14.6 | Q189: 15 | Z189: 14 | AB189: ¡Faltan datos! | AC189: ¡Faltan datos! | AD189: Medición del cloro residual libre del agua para consumo humanoAgua con dosificación de cloro residual,Inadecuado | AG189: 14 | AI189: ¡Faltan datos! | AJ189: ¡Faltan datos! | AK189: N
A190: IV. LINEAMIENTO DE POLITICA: Promover Ciudades y Comunidades Saludables en armonía con su entorno natural. | B190: AGA.32.1. | C190: Medición del cloro residual libre del agua para consumo humano | D190: Rural | E190: Porcentaje | F190: Instituto Nacional de Estadística e Informatica (INEI) - Acceso al Agua y Saneamiento 2017 - Cuadro No. 13 Perú: Población que consume agua proveniente de red pública, según niveles de cloro, 2010 - 2021 | H190: 48.6 | I190: 61 | J190: 4.9 | K190: 0 | M190: 4.3 | N190: 4.9 | O190: 7.4 | P190: 9.3 | Q190: 9.2 | Z190: -28 | AB190: ¡Faltan datos! | AC190: ¡Faltan datos! | AD190: Medición del cloro residual libre del agua para consumo humanoRural | AG190: -28 | AI190: ¡Faltan datos! | AJ190: ¡Faltan datos! | AK190: P
A191: IV. LINEAMIENTO DE POLITICA: Promover Ciudades y Comunidades Saludables en armonía con su entorno natural. | B191: AGA.32.1. | C191: Medición del cloro residual libre del agua para consumo humano | D191: Urbana | E191: Porcentaje | F191: Instituto Nacional de Estadística e Informatica (INEI) - Acceso al Agua y Saneamiento 2017 - Cuadro No. 13 Perú: Población que consume agua proveniente de red pública, según niveles de cloro, 2010 - 2020 | H191: 48.6 | I191: 61 | J191: 4.3 | K191: 0 | M191: 60.9 | N191: 61.3 | O191: 65 | P191: 66.4 | Q191: 66.3 | Z191: 92 | AB191: ¡Faltan datos! | AC191: ¡Faltan datos! | AD191: Medición del cloro residual libre del agua para consumo humanoUrbana | AG191: 92 | AI191: ¡Faltan datos! | AJ191: ¡Faltan datos! | AK191: P
A192: IV. LINEAMIENTO DE POLITICA: Promover Ciudades y Comunidades Saludables en armonía con su entorno natural. | B192: AGA.35.8 | C192: Mejoramiento de los sistemas de gestión de los RRSS y porcentaje de Entidades de Fiscalización Ambiental (EFA) supervisadas | D192: cuentan con caracterización de RRSS | E192: cuentan con caracterización de RRSS | F192: Organismo de Evaluación y Fiscalización Ambiental (OEFA) | H192: 57 | I192: 0 | J192: 0 | K192: 0 | Z192: -217 | AB192: ¡Faltan datos! | AC192: ¡Faltan datos! | AD192: Mejoramiento de los sistemas de gestión de los RRSS y porcentaje de Entidades de Fiscalización Ambiental (EFA) supervisadascuentan con caracterización de RRSS | AG192: -217 | AI192: ¡Faltan datos! | AJ192: ¡Faltan datos! | AK192: P
A193: IV. LINEAMIENTO DE POLITICA: Promover Ciudades y Comunidades Saludables en armonía con su entorno natural. | B193: AGA.35.8 | C193: Mejoramiento de los sistemas de gestión de los RRSS y porcentaje de Entidades de Fiscalización Ambiental (EFA) supervisadas | D193: PIGARS (Planes Integrales de Gestión Ambiental de RRSS) | E193: PIGARS (Planes Integrales de Gestión Ambiental de RRSS) | F193: Organismo de Evaluación y Fiscalización Ambiental (OEFA) | H193: 62 | I193: 0 | J193: 0 | K193: 0 | Z193: -236 | AB193: ¡Faltan datos! | AC193: ¡Faltan datos! | AD193: Mejoramiento de los sistemas de gestión de los RRSS y porcentaje de Entidades de Fiscalización Ambiental (EFA) supervisadasPIGARS (Planes Integrales de Gestión Ambiental de RRSS) | AG193: -236 | AI193: ¡Faltan datos! | AJ193: ¡Faltan datos! | AK193: P
A194: IV. LINEAMIENTO DE POLITICA: Promover Ciudades y Comunidades Saludables en armonía con su entorno natural. | B194: AGA.35.8 | C194: Mejoramiento de los sistemas de gestión de los RRSS y porcentaje de Entidades de Fiscalización Ambiental (EFA) supervisadas | D194: Programa de segregación | E194: Programa de segregación | F194: Organismo de Evaluación y Fiscalización Ambiental (OEFA) | H194: 42 | I194: 0 | J194: 0 | K194: 0 | Z194: -160 | AB194: ¡Faltan datos! | AC194: ¡Faltan datos! | AD194: Mejoramiento de los sistemas de gestión de los RRSS y porcentaje de Entidades de Fiscalización Ambiental (EFA) supervisadasPrograma de segregación | AG194: -160 | AI194: ¡Faltan datos! | AJ194: ¡Faltan datos! | AK194: P
A195: IV. LINEAMIENTO DE POLITICA: Promover Ciudades y Comunidades Saludables en armonía con su entorno natural. | B195: AGA.35.8 | C195: Mejoramiento de los sistemas de gestión de los RRSS y porcentaje de Entidades de Fiscalización Ambiental (EFA) supervisadas | D195: Promueven formalización de recicladores | E195: Promueven formalización de recicladores | F195: Organismo de Evaluación y Fiscalización Ambiental (OEFA) | H195: 17 | I195: 0 | J195: 0 | K195: 0 | Z195: -65 | AB195: ¡Faltan datos! | AC195: ¡Faltan datos! | AD195: Mejoramiento de los sistemas de gestión de los RRSS y porcentaje de Entidades de Fiscalización Ambiental (EFA) supervisadasPromueven formalización de recicladores | AG195: -65 | AI195: ¡Faltan datos! | AJ195: ¡Faltan datos! | AK195: P
A196: IV. LINEAMIENTO DE POLITICA: Promover Ciudades y Comunidades Saludables en armonía con su entorno natural. | B196: AGA.35.8 | C196: Mejoramiento de los sistemas de gestión de los RRSS y porcentaje de Entidades de Fiscalización Ambiental (EFA) supervisadas | D196: reportan la gestión y el manejo de los RRSS en el SIGERSOL (Sistema de Información para la Gestión de Residuos Sólidos) y 5% cuentan con plan de cierre y recuperación de botaderos | E196: reportan la gestión y el manejo de los RRSS en el SIGERSOL (Sistema de Información para la Gestión de Residuos Sólidos) y 5% cuentan con plan de cierre y recuperación de botaderos | F196: Organismo de Evaluación y Fiscalización Ambiental (OEFA) | H196: 44 | I196: 0 | J196: 0 | K196: 0 | Z196: -167 | AB196: ¡Faltan datos! | AC196: ¡Faltan datos! | AD196: Mejoramiento de los sistemas de gestión de los RRSS y porcentaje de Entidades de Fiscalización Ambiental (EFA) supervisadasreportan la gestión y el manejo de los RRSS en el SIGERSOL (Sistema de Información para la Gestión de Residuos Sólidos) y 5% cuentan con plan de cierre y recuperación de botaderos | AG196: -167 | AI196: ¡Faltan datos! | AJ196: ¡Faltan datos! | AK196: P
A197: IV. LINEAMIENTO DE POLITICA: Promover Ciudades y Comunidades Saludables en armonía con su entorno natural. | B197: AGA.38.3 | C197: Número de acciones de evaluación, monitoreo, vigilancia, control y sanción de las diversas actividades económicas realizados por OEFA y EFA, nacionales, regionales y locales | D197: Nacional | E197: Acciones | F197: Organismo de Evaluación y Fiscalización Ambiental (OEFA).Entidades de Fiscalización Ambiental (EFA) | H197: 0 | I197: 0 | J197: 0 | K197: 0 | Z197: 0 | AB197: ¡Faltan datos! | AC197: ¡Faltan datos! | AD197: Número de acciones de evaluación, monitoreo, vigilancia, control y sanción de las diversas actividades económicas realizados por OEFA y EFA, nacionales, regionales y localesNacional | AG197: 0 | AI197: ¡Faltan datos! | AJ197: ¡Faltan datos! | AK197: P
A198: IV. LINEAMIENTO DE POLITICA: Promover Ciudades y Comunidades Saludables en armonía con su entorno natural. | B198: AGA.34.3 | C198: Número de árboles sembrados y con mantenimiento. | D198: Nacional | E198: Árboles | F198: Sin datos | H198: 0 | I198: 0 | J198: 0 | K198: 0 | Z198: 0 | AB198: ¡Faltan datos! | AC198: ¡Faltan datos! | AD198: Número de árboles sembrados y con mantenimiento.Nacional | AG198: 0 | AI198: ¡Faltan datos! | AJ198: ¡Faltan datos! | AK198: P
A199: IV. LINEAMIENTO DE POLITICA: Promover Ciudades y Comunidades Saludables en armonía con su entorno natural. | B199: AGA.31.1. | C199: Número de conexiones anualizado: Total, Sedapal, EPS Grandes, EPS Medianas, EPS Pequeñas | D199: EPS grandes | E199: Eps grandes | F199: Superintendencia Nacional de Servicio de Saneamiento | H199: 1545278 | I199: 1438026 | J199: 211.8 | K199: 0 | Z199: -7453546 | AB199: ¡Faltan datos! | AC199: =IF(OR(Y199="",AA199="",AK199=""),"¡Faltan datos!", IF(AK199="P", IF(AA199>=(Y199*85%),"Verde", IF(AND(AA199<(Y199*85%),AA199>=(Y199*50%)),"Ambar", IF(AA199<(Y199*50%),"Rojo","Verificar!"))), IF(AK199="N", IF(AA199<=(Y199*115%),"Verde", IF(AND(AA199<=(Y199*150%),AA199>(Y199*115%)),"Ambar", IF(AA199>(Y199*150%),"Rojo","Verificar!"))),""))) -> ¡Faltan datos! | AD199: Número de conexiones anualizado: Total, Sedapal, EPS Grandes, EPS Medianas, EPS PequeñasEPS grandes | AG199: -7453546 | AI199: ¡Faltan datos! | AJ199: ¡Faltan datos! | AK199: P
A200: IV. LINEAMIENTO DE POLITICA: Promover Ciudades y Comunidades Saludables en armonía con su entorno natural. | B200: AGA.31.1. | C200: Número de conexiones anualizado: Total, Sedapal, EPS Grandes, EPS Medianas, EPS Pequeñas | D200: EPS medianas | E200: Eps medianas | F200: Superintendencia Nacional de Servicio de Saneamiento | H200: 332314 | I200: 0 | J200: 0 | K200: 0 | Z200: =+FORECAST(2026,H200:R200,$H$6:$R$6) -> -1262793 | AB200: =IF(OR(X200="",Z200="",AK200=""),"¡Faltan datos!", IF(AK200="P", IF(Z200>=(X200*85%),"Verde", IF(AND(Z200<(X200*85%),Z200>=(X200*50%)),"Ambar", IF(Z200<(X200*50%),"Rojo","Verificar!"))), IF(AK200="N", IF(Z200<=(X200*115%),"Verde", IF(AND(Z200<=(X200*150%),Z200>(X200*115%)),"Ambar", IF(Z200>(X200*150%),"Rojo","Verificar!"))),""))) -> ¡Faltan datos! | AC200: ¡Faltan datos! | AD200: =CONCATENATE(C200,D200) -> Número de conexiones anualizado: Total, Sedapal, EPS Grandes, EPS Medianas, EPS PequeñasEPS medianas | AG200: -1262793 | AI200: ¡Faltan datos! | AJ200: ¡Faltan datos! | AK200: P
A201: IV. LINEAMIENTO DE POLITICA: Promover Ciudades y Comunidades Saludables en armonía con su entorno natural. | B201: AGA.31.1. | C201: Número de conexiones anualizado: Total, Sedapal, EPS Grandes, EPS Medianas, EPS Pequeñas | D201: EPS pequeñas | E201: Eps pequeñas | F201: Superintendencia Nacional de Servicio de Saneamiento | H201: 163830 | I201: 0 | J201: 0 | K201: 0 | Z201: -622554 | AB201: ¡Faltan datos! | AC201: ¡Faltan datos! | AD201: Número de conexiones anualizado: Total, Sedapal, EPS Grandes, EPS Medianas, EPS PequeñasEPS pequeñas | AG201: -622554 | AI201: ¡Faltan datos! | AJ201: ¡Faltan datos! | AK201: P
A202: IV. LINEAMIENTO DE POLITICA: Promover Ciudades y Comunidades Saludables en armonía con su entorno natural. | B202: AGA.31.1. | C202: Número de conexiones anualizado: Total, Sedapal, EPS Grandes, EPS Medianas, EPS Pequeñas | D202: Sedapal | E202: Sedapal | F202: Superintendencia Nacional de Servicio de Saneamiento | H202: 1438026 | I202: 0 | J202: 0 | K202: 0 | Z202: -5464499 | AB202: ¡Faltan datos! | AC202: ¡Faltan datos! | AD202: Número de conexiones anualizado: Total, Sedapal, EPS Grandes, EPS Medianas, EPS PequeñasSedapal | AG202: -5464499 | AI202: ¡Faltan datos! | AJ202: ¡Faltan datos! | AK202: P
A203: IV. LINEAMIENTO DE POLITICA: Promover Ciudades y Comunidades Saludables en armonía con su entorno natural. | B203: AGA.36.3 | C203: Número de familias beneficiadas con Programa Nacional de Vivienda Rural | D203: Familias | E203: Familias | F203: Memoria institucional anual del Ministerio de Vivienda | H203: 1032 | I203: 0 | J203: 0 | K203: 0 | Z203: -3922 | AB203: ¡Faltan datos! | AC203: ¡Faltan datos! | AD203: Número de familias beneficiadas con Programa Nacional de Vivienda RuralFamilias | AG203: -3922 | AI203: ¡Faltan datos! | AJ203: ¡Faltan datos! | AK203: P
A204: IV. LINEAMIENTO DE POLITICA: Promover Ciudades y Comunidades Saludables en armonía con su entorno natural. | B204: AGA.30.2. | C204: Número de gobiernos locales que cuentan con instrumentos de gestión ambiental | D204: Nacional | E204: Gobiernos Locales | F204: Instituto Nacional de Estadística e Informática (INEI) - Registro Nacional de Municipalidades (RENAMU) | H204: 842 | I204: 1091 | J204: 1124 | K204: 0 | M204: 1091 | N204: 1124 | O204: 1306 | P204: 1344 | Q204: 1561 | R204: 1601 | Z204: 1923 | AB204: ¡Faltan datos! | AC204: ¡Faltan datos! | AD204: Número de gobiernos locales que cuentan con instrumentos de gestión ambientalNacional | AG204: 1923 | AI204: ¡Faltan datos! | AJ204: ¡Faltan datos! | AK204: P
A205: IV. LINEAMIENTO DE POLITICA: Promover Ciudades y Comunidades Saludables en armonía con su entorno natural. | B205: AGA.30.1 | C205: Número de gobiernos regionales que incluyen la dimensión ambiental en sus Acuerdos de Gobernabilidad | D205: Gobiernos regionales que incluyen la dimensión ambiental | E205: Gobiernos Regionales | F205: Mesa de Concertación para la Lucha contra la Pobreza (MCLCP) | H205: 23 | I205: 0 | J205: 0 | K205: 0 | Z205: -87 | AB205: ¡Faltan datos! | AC205: ¡Faltan datos! | AD205: Número de gobiernos regionales que incluyen la dimensión ambiental en sus Acuerdos de GobernabilidadGobiernos regionales que incluyen la dimensión ambiental | AG205: -87 | AI205: ¡Faltan datos! | AJ205: ¡Faltan datos! | AK205: P
... 135 more rows

Sheet TD_2n
A4: Etiquetas de fila
A5: I. LINEAMIENTO DE POLITICA Mejorar la Gestión Ambiental.
A6: II. LINEAMIENTO DE POLITICA Fomentar el uso y aprovechamiento sostenible de los Recursos Naturales.
A7: III. LINEAMIENTO DE POLITICA: Impulsar acciones de reducción de gases de efecto invernadero, preparación y adaptación frente al Cambio Climático.
A8: IV. LINEAMIENTO DE POLITICA: Promover Ciudades y Comunidades Saludables en armonía con su entorno natural.
A9: V. LINEAMIENTO DE POLITICA: Fortalecer la Ciudadanía Ambiental.
A10: VI. LINEAMIENTO DE POLITICA: Implementar Planes y Programas integrados de gestión para la reducción de riesgos de desastres.
A11: (en blanco)

Sheet TDInd
A2: Segundo Nivel | B2: I. LINEAMIENTO DE POLITICA Mejorar la Gestión Ambiental.
A4: Etiquetas de fila
A5: Acciones implementadas para proteger los derechos de los pueblos indígenas en situación de aislamiento y contacto inicial (PIACI)
A6: Agenda Ambiente 2017-2018 aprobada e implementada
A7: Estudios de Impacto Ambiental detallados aprobados y desaprobados por el SENACE
